Workbook

Sheet Imprint
B4: PtG/PtL calculator: An interactive tool to determine the cost of Power-to-Gas (methane) und Power-to-Liquid
B6: developed by: | C6: Frontier Economics Ltd. | H6: commissioned by | J6: Agora Energiewende und | L6: and | M6: Agora Verkehrswende
C7: Im Zollhafen 24 | J7: Anna-Louisa-Karsch-Str. 2 | M7: Anna-Louisa-Karsch-Str. 2
C8: 50678 Köln | J8: 10178 Berlin | M8: 10178 Berlin
C9: Germany | J9: Germany | M9: Germany
C10: www.frontier-economics.com | J10: www.agora-energiewende.de | M10: www.agora-verkehrswende.de
B12: Autors: | C12: Andrea Lövenich
C13: Dr. Michaela Unteutsch
C14: Dr. Jens Perner
H15: © Frontier Economics, Agora Energiewende und Agora Verkehrswende. All rights reserved.
H16: The use of the methods, standard data and results is only permitted with reference to the authors and
B17: Last update: | C17: 2017-10-23 | H17: to Agora Energiewende und Agora Verkehrswende.
B18: Model version: | C18: 1.0
H19: Suggested citation: | J19: Frontier Economics (2018): PtG/PtL calculator: An interactive tool to determine the
B20: Contact: | C20: info@agora-energiewende.de | J20: cost of Power-to-Gas (methane) und Power-to-Liquid.
J21: Commissioned by Agora Energiewende and Agora Verkehrswende.
J22: =CONCATENATE("Model version ",C18,", Berlin, ",TEXT(C17,"TT.MM.JJ")) -> Model version 1.0, Berlin, 23.10.17

Sheet Guidelines

Sheet Control Panel
B3: CONTROL PANEL
B4: Scenario | C4: Reference
B5: Origin of the synthetic fuel (country/region) | C5: North Africa
B6: Renewable energy source | C6: PV
B7: Method of CO2 extraction | C7: Direct Air Capture - TSA
B8: Cost of capital (WACC) | C8: 0.06
B9: PtL - Fossil fuel for blending | C9: Premium petrol

Sheet Results >>>

Sheet Cost of methane
B1: Cost elements of synthetic methane and total cost of methane depending on the proportion of blended synthetic methane
B2: ="Scenario:" & $C$4 & ", Origin:" & $C$5 & ", Source:" & $C$6 & ", WACC:" & $C$7*100 & "%" -> Scenario:Reference, Origin:North Africa, Source:PV, WACC:6%
B3: Underlying assumptions - to be adjusted in the 'Control Panel'
B4: Scenario | C4: ='Control Panel'!$C$4:$E$4 -> Reference
B5: Origin of the synthetic fuel (country/region) | C5: ='Control Panel'!$C$5:$E$5 -> North Africa
B6: Renewable energy source | C6: ='Control Panel'!$C$6:$E$6 -> PV
B7: Cost of capital (WACC) | C7: ='Control Panel'!$C$8:$E$8 -> 0.06
B8: Method of CO2 extraction | C8: ='Control Panel'!$C$7:$E$7 -> Direct Air Capture - TSA
B9: Technology of hydrogen electrolysis | C9: ='H2 electrolysis'!$C$4 -> Low-temperature
B10: Taxes and levies | C10: Default: No taxes/levies. Can be adjusted in '4. Taxes&levies'
B11: Grid connection costs for offshore wind in North and Baltic Seas | C11: Default: included. Can be adjusted in 'LCOE renewables'
B13: Underlying assumptions - to be adjusted in 'H2 electrolysis'
B14: Technology of hydrogen electrolysis | C14: ='H2 electrolysis'!C4 -> Low-temperature
B15: Investment cost (2016/17) | C15: €/kWel
B16: - Low-temperature | C16: ='H2 electrolysis'!C6 -> 800
B17: - High-temperature | C17: ='H2 electrolysis'!C7 -> 1000
B18: Selection only in the reference scenario | C18: Low-temperature | D18: High-temperature
B19: Relative cost decline over 5 years | C19: ='H2 electrolysis'!C11 -> 0.079 | D19: ='H2 electrolysis'!D11 -> 0.0703
B21: Underlying assumptions - to be adjusted in 'PtG-Methane'
B22: Expected full-load hours per year | C22: ='PtG-Methane'!C4 -> 8000
B23: Relative cost decline over 5 years | C23: ='PtG-Methane'!C7 -> 0.065
B25: Table for Figure 1 - Cost elements of synthetic methane - by country and renewable energy source
B27: =C4&": "&C5&"-"&C6 -> Reference: North Africa-PV | D27: 2016/17 | E27: 2020 | F27: 2025 | G27: 2030 | H27: 2035 | I27: 2040 | J27: 2045 | K27: 2050
B28: Electricity cost of hydrogen electrolysis | C28: ct/kWh(methane) | D28: =IF($C$4="Optimistic",'Cost of methane'!D$76,IF($C$4="Reference",'Cost of methane'!D$94,'Cost of methane'!D$112)) -> 7.967883114 | E28: =IF($C$4="Optimistic",'Cost of methane'!E$76,IF($C$4="Reference",'Cost of methane'!E$94,'Cost of methane'!E$112)) -> 6.385230093 | F28: =IF($C$4="Optimistic",'Cost of methane'!F$76,IF($C$4="Reference",'Cost of methane'!F$94,'Cost of methane'!F$112)) -> 5.451547647 | G28: =IF($C$4="Optimistic",'Cost of methane'!G$76,IF($C$4="Reference",'Cost of methane'!G$94,'Cost of methane'!G$112)) -> 4.737450515 | H28: =IF($C$4="Optimistic",'Cost of methane'!H$76,IF($C$4="Reference",'Cost of methane'!H$94,'Cost of methane'!H$112)) -> 4.078804071 | I28: =IF($C$4="Optimistic",'Cost of methane'!I$76,IF($C$4="Reference",'Cost of methane'!I$94,'Cost of methane'!I$112)) -> 3.588763763 | J28: =IF($C$4="Optimistic",'Cost of methane'!J$76,IF($C$4="Reference",'Cost of methane'!J$94,'Cost of methane'!J$112)) -> 3.194661461 | K28: =IF($C$4="Optimistic",'Cost of methane'!K$76,IF($C$4="Reference",'Cost of methane'!K$94,'Cost of methane'!K$112)) -> 2.833168518
B29: Conversion via hydrogen electrolysis | C29: ct/kWh(methane) | D29: =IF(D28>0,IF($C$4="Optimistic",'Cost of methane'!D$77,IF($C$4="Reference",'Cost of methane'!D$95,'Cost of methane'!D$113)),NA()) -> 7.1035359 | E29: =IF(E28>0,IF($C$4="Optimistic",'Cost of methane'!E$77,IF($C$4="Reference",'Cost of methane'!E$95,'Cost of methane'!E$113)),NA()) -> 6.333577549 | F29: =IF(F28>0,IF($C$4="Optimistic",'Cost of methane'!F$77,IF($C$4="Reference",'Cost of methane'!F$95,'Cost of methane'!F$113)),NA()) -> 5.652835338 | G29: =IF(G28>0,IF($C$4="Optimistic",'Cost of methane'!G$77,IF($C$4="Reference",'Cost of methane'!G$95,'Cost of methane'!G$113)),NA()) -> 5.050092785 | H29: =IF(H28>0,IF($C$4="Optimistic",'Cost of methane'!H$77,IF($C$4="Reference",'Cost of methane'!H$95,'Cost of methane'!H$113)),NA()) -> 4.515684624 | I29: =IF(I28>0,IF($C$4="Optimistic",'Cost of methane'!I$77,IF($C$4="Reference",'Cost of methane'!I$95,'Cost of methane'!I$113)),NA()) -> 4.04125853 | J29: =IF(J28>0,IF($C$4="Optimistic",'Cost of methane'!J$77,IF($C$4="Reference",'Cost of methane'!J$95,'Cost of methane'!J$113)),NA()) -> 3.619577631 | K29: =IF(K28>0,IF($C$4="Optimistic",'Cost of methane'!K$77,IF($C$4="Reference",'Cost of methane'!K$95,'Cost of methane'!K$113)),NA()) -> 3.244356054
B30: Conversion to methane (including H2 storage) | C30: ct/kWh(methane) | D30: =IF(D28>0,IF($C$4="Optimistic",SUM('Cost of methane'!D$78:D$81),IF($C$4="Reference",SUM('Cost of methane'!D$96:D$99),SUM('Cost of methane'!D$114:D$117))),NA()) -> 4.429992823 | E30: =IF(E28>0,IF($C$4="Optimistic",SUM('Cost of methane'!E$78:E$81),IF($C$4="Reference",SUM('Cost of methane'!E$96:E$99),SUM('Cost of methane'!E$114:E$117))),NA()) -> 4.240409928 | F30: =IF(F28>0,IF($C$4="Optimistic",SUM('Cost of methane'!F$78:F$81),IF($C$4="Reference",SUM('Cost of methane'!F$96:F$99),SUM('Cost of methane'!F$114:F$117))),NA()) -> 4.092213114 | G30: =IF(G28>0,IF($C$4="Optimistic",SUM('Cost of methane'!G$78:G$81),IF($C$4="Reference",SUM('Cost of methane'!G$96:G$99),SUM('Cost of methane'!G$114:G$117))),NA()) -> 3.19876003 | H30: =IF(H28>0,IF($C$4="Optimistic",SUM('Cost of methane'!H$78:H$81),IF($C$4="Reference",SUM('Cost of methane'!H$96:H$99),SUM('Cost of methane'!H$114:H$117))),NA()) -> 3.094832329 | I30: =IF(I28>0,IF($C$4="Optimistic",SUM('Cost of methane'!I$78:I$81),IF($C$4="Reference",SUM('Cost of methane'!I$96:I$99),SUM('Cost of methane'!I$114:I$117))),NA()) -> 3.009386133 | J30: =IF(J28>0,IF($C$4="Optimistic",SUM('Cost of methane'!J$78:J$81),IF($C$4="Reference",SUM('Cost of methane'!J$96:J$99),SUM('Cost of methane'!J$114:J$117))),NA()) -> 2.938037131 | K30: =IF(K28>0,IF($C$4="Optimistic",SUM('Cost of methane'!K$78:K$81),IF($C$4="Reference",SUM('Cost of methane'!K$96:K$99),SUM('Cost of methane'!K$114:K$117))),NA()) -> 3.157998015
B31: Transport | C31: ct/kWh(methane) | D31: =IF(D28>0,INDEX('3. Transport cost'!$C$16:$J$19,MATCH($C$5,'3. Transport cost'!$B$16:$B$19,0),MATCH(D$71,'3. Transport cost'!$C$15:$J$15,0)),NA()) -> 0.9548302368 | E31: =IF(E28>0,INDEX('3. Transport cost'!$C$16:$J$19,MATCH($C$5,'3. Transport cost'!$B$16:$B$19,0),MATCH(E$71,'3. Transport cost'!$C$15:$J$15,0)),NA()) -> 0.9548302368 | F31: =IF(F28>0,INDEX('3. Transport cost'!$C$16:$J$19,MATCH($C$5,'3. Transport cost'!$B$16:$B$19,0),MATCH(F$71,'3. Transport cost'!$C$15:$J$15,0)),NA()) -> 0.9487331693 | G31: =IF(G28>0,INDEX('3. Transport cost'!$C$16:$J$19,MATCH($C$5,'3. Transport cost'!$B$16:$B$19,0),MATCH(G$71,'3. Transport cost'!$C$15:$J$15,0)),NA()) -> 0.939587568 | H31: =IF(H28>0,INDEX('3. Transport cost'!$C$16:$J$19,MATCH($C$5,'3. Transport cost'!$B$16:$B$19,0),MATCH(H$71,'3. Transport cost'!$C$15:$J$15,0)),NA()) -> 0.939587568 | I31: =IF(I28>0,INDEX('3. Transport cost'!$C$16:$J$19,MATCH($C$5,'3. Transport cost'!$B$16:$B$19,0),MATCH(I$71,'3. Transport cost'!$C$15:$J$15,0)),NA()) -> 0.9091022304 | J31: =IF(J28>0,INDEX('3. Transport cost'!$C$16:$J$19,MATCH($C$5,'3. Transport cost'!$B$16:$B$19,0),MATCH(J$71,'3. Transport cost'!$C$15:$J$15,0)),NA()) -> 0.9091022304 | K31: =IF(K28>0,INDEX('3. Transport cost'!$C$16:$J$19,MATCH($C$5,'3. Transport cost'!$B$16:$B$19,0),MATCH(K$71,'3. Transport cost'!$C$15:$J$15,0)),NA()) -> 0.8786168928
B32: Taxes and levies | C32: ct/kWh(methane) | D32: =IF(D28>0,IF($C$4="Optimistic",'4. Taxes & levies'!Q25,IF($C$4="Reference",'4. Taxes & levies'!Q26,'4. Taxes & levies'!Q27)),NA()) -> 0 | E32: =IF(E28>0,IF($C$4="Optimistic",'4. Taxes & levies'!R25,IF($C$4="Reference",'4. Taxes & levies'!R26,'4. Taxes & levies'!R27)),NA()) -> 0 | F32: =IF(F28>0,IF($C$4="Optimistic",'4. Taxes & levies'!S25,IF($C$4="Reference",'4. Taxes & levies'!S26,'4. Taxes & levies'!S27)),NA()) -> 0 | G32: =IF(G28>0,IF($C$4="Optimistic",'4. Taxes & levies'!T25,IF($C$4="Reference",'4. Taxes & levies'!T26,'4. Taxes & levies'!T27)),NA()) -> 0 | H32: =IF(H28>0,IF($C$4="Optimistic",'4. Taxes & levies'!U25,IF($C$4="Reference",'4. Taxes & levies'!U26,'4. Taxes & levies'!U27)),NA()) -> 0 | I32: =IF(I28>0,IF($C$4="Optimistic",'4. Taxes & levies'!V25,IF($C$4="Reference",'4. Taxes & levies'!V26,'4. Taxes & levies'!V27)),NA()) -> 0 | J32: =IF(J28>0,IF($C$4="Optimistic",'4. Taxes & levies'!W25,IF($C$4="Reference",'4. Taxes & levies'!W26,'4. Taxes & levies'!W27)),NA()) -> 0 | K32: =IF(K28>0,IF($C$4="Optimistic",'4. Taxes & levies'!X25,IF($C$4="Reference",'4. Taxes & levies'!X26,'4. Taxes & levies'!X27)),NA()) -> 0
B33: Grid/distribution | C33: ct/kWh(methane) | D33: =IF(D28>0,SUM('4. Taxes & levies'!$D$17:$D$18),NA()) -> 2.02 | E33: =IF(E28>0,SUM('4. Taxes & levies'!$D$17:$D$18),NA()) -> 2.02 | F33: =IF(F28>0,SUM('4. Taxes & levies'!$D$17:$D$18),NA()) -> 2.02 | G33: =IF(G28>0,SUM('4. Taxes & levies'!$D$17:$D$18),NA()) -> 2.02 | H33: =IF(H28>0,SUM('4. Taxes & levies'!$D$17:$D$18),NA()) -> 2.02 | I33: =IF(I28>0,SUM('4. Taxes & levies'!$D$17:$D$18),NA()) -> 2.02 | J33: =IF(J28>0,SUM('4. Taxes & levies'!$D$17:$D$18),NA()) -> 2.02 | K33: =IF(K28>0,SUM('4. Taxes & levies'!$D$17:$D$18),NA()) -> 2.02
B34: Total cost of synthetic methane | C34: ct/kWh(methane) | D34: =SUM(D28:D33) -> 22.47624207 | E34: =SUM(E28:E33) -> 19.93404781 | F34: =SUM(F28:F33) -> 18.16532927 | G34: 15.9458909 | H34: 14.64890859 | I34: 13.56851066 | J34: 12.68137845 | K34: 12.13413948
B37: Table for Figure 2 - Total cost of the final product (including transport, taxes and levies, grid tariﬀs and distribution costs) depending on the proportion of blended synthetic methane
C39: 2016/17 | D39: 2016/17 | E39: 2016/17 | F39: 2016/17 | G39: 2016/17 | H39: 2020 | I39: 2020 | J39: 2020 | K39: 2020 | L39: 2020 | M39: 2025 | N39: 2025 | O39: 2025 | P39: 2025 | Q39: 2025 | R39: 2030 | S39: 2030 | T39: 2030 | U39: 2030 | V39: 2030 | W39: 2035 | X39: 2035 | Y39: 2035 | Z39: 2035 | AA39: 2035 | AB39: 2040 | AC39: 2040 | AD39: 2040 | AE39: 2040 | AF39: 2040 | AG39: 2045 | AH39: 2045 | AI39: 2045 | AJ39: 2045 | AK39: 2045 | AL39: 2050 | AM39: 2050 | AN39: 2050 | AO39: 2050 | AP39: 2050
C40: 2016/17 | H40: 2020 | M40: 2025 | R40: 2030 | W40: 2035 | AB40: 2040 | AG40: 2045 | AL40: 2050
B41: Blending ratio | C41: 0 | D41: 0.25 | E41: 0.5 | F41: 0.75 | G41: 1 | H41: 0 | I41: 0.25 | J41: 0.5 | K41: 0.75 | L41: 1 | M41: 0 | N41: 0.25 | O41: 0.5 | P41: 0.75 | Q41: 1 | R41: 0 | S41: 0.25 | T41: 0.5 | U41: 0.75 | V41: 1 | W41: 0 | X41: 0.25 | Y41: 0.5 | Z41: 0.75 | AA41: 1 | AB41: 0 | AC41: 0.25 | AD41: 0.5 | AE41: 0.75 | AF41: 1 | AG41: 0 | AH41: 0.25 | AI41: 0.5 | AJ41: 0.75 | AK41: 1 | AL41: 0 | AM41: 0.25 | AN41: 0.5 | AO41: 0.75 | AP41: 1
B42: Scenario: Optimistic | C42: =C41*C46+(1-C41)*C47 -> 3.368190406 | D42: =D41*D46+(1-D41)*D47 -> 7.993325916 | E42: 12.61846143 | F42: 17.24359694 | G42: 21.86873245 | H42: 3.437615507 | I42: 7.22481057 | J42: 11.01200563 | K42: 14.7992007 | L42: 18.58639576 | M42: 3.572536257 | N42: 6.739114249 | O42: 9.905692241 | P42: 13.07227023 | Q42: 16.23884823 | R42: 3.715820233 | S42: 6.185347136 | T42: 8.654874039 | U42: 11.12440094 | V42: 13.59392784 | W42: 3.853528725 | X42: 5.871333857 | Y42: 7.889138989 | Z42: 9.906944121 | AA42: 11.92474925 | AB42: 3.992631088 | AC42: 5.656837614 | AD42: 7.321044139 | AE42: 8.985250665 | AF42: 10.64945719 | AG42: 4.131733451 | AH42: 5.518433155 | AI42: 6.905132858 | AJ42: 8.291832561 | AK42: 9.678532264 | AL42: 4.270835814 | AM42: 5.416372381 | AN42: 6.561908948 | AO42: 7.707445515 | AP42: 8.852982081
B43: Scenario: Reference | C43: =C41*C48+(1-C41)*C49 -> 3.368190406 | D43: =D41*D48+(1-D41)*D49 -> 8.145203323 | E43: 12.92221624 | F43: 17.69922916 | G43: 22.47624207 | H43: 3.662184275 | I43: 7.730150158 | J43: 11.79811604 | K43: 15.86608192 | L43: 19.93404781 | M43: 3.972578265 | N43: 7.520766016 | O43: 11.06895377 | P43: 14.61714152 | Q43: 18.16532927 | R43: 4.287153869 | S43: 7.201838126 | T43: 10.11652238 | U43: 13.03120664 | V43: 15.9458909 | W43: 4.477474922 | X43: 7.02033334 | Y43: 9.563191757 | Z43: 12.10605017 | AA43: 14.64890859 | AB43: 4.668492911 | AC43: 6.893497348 | AD43: 9.118501784 | AE43: 11.34350622 | AF43: 13.56851066 | AG43: 4.8595109 | AH43: 6.814977789 | AI43: 8.770444677 | AJ43: 10.72591156 | AK43: 12.68137845 | AL43: 5.05052889 | AM43: 6.821431537 | AN43: 8.592334185 | AO43: 10.36323683 | AP43: 12.13413948
B44: Scenario: Pessimistic | C44: =C41*C50+(1-C41)*C51 -> 3.368190406 | D44: =D41*D50+(1-D41)*D51 -> 8.411636294 | E44: 13.45508218 | F44: 18.49852807 | G44: 23.54197396 | H44: 3.886753043 | I44: 8.252168536 | J44: 12.61758403 | K44: 16.98299952 | L44: 21.34841502 | M44: 4.372620273 | N44: 8.269155637 | O44: 12.165691 | P44: 16.06222636 | Q44: 19.95876173 | R44: 4.858487504 | S44: 8.165259083 | T44: 11.47203066 | U44: 14.77880224 | V44: 18.08557382 | W44: 5.101421119 | X44: 8.119367371 | Y44: 11.13731362 | Z44: 14.15525988 | AA44: 17.17320613 | AB44: 5.344354734 | AC44: 8.093858292 | AD44: 10.84336185 | AE44: 13.59286541 | AF44: 16.34236897 | AG44: 5.587288349 | AH44: 8.096103326 | AI44: 10.6049183 | AJ44: 13.11373328 | AK44: 15.62254826 | AL44: 5.830221965 | AM44: 8.094872195 | AN44: 10.35952243 | AO44: 12.62417266 | AP44: 14.88882289
B46: Optimistic - Synthetic | C46: =INDEX('Cost of methane'!$D$86:$K$86,MATCH(C$39,'Cost of methane'!$D$71:$K$71,0)) -> 21.86873245 | D46: =INDEX('Cost of methane'!$D$86:$K$86,MATCH(D$39,'Cost of methane'!$D$71:$K$71,0)) -> 21.86873245 | E46: =INDEX('Cost of methane'!$D$86:$K$86,MATCH(E$39,'Cost of methane'!$D$71:$K$71,0)) -> 21.86873245 | F46: =INDEX('Cost of methane'!$D$86:$K$86,MATCH(F$39,'Cost of methane'!$D$71:$K$71,0)) -> 21.86873245 | G46: =INDEX('Cost of methane'!$D$86:$K$86,MATCH(G$39,'Cost of methane'!$D$71:$K$71,0)) -> 21.86873245 | H46: =INDEX('Cost of methane'!$D$86:$K$86,MATCH(H$39,'Cost of methane'!$D$71:$K$71,0)) -> 18.58639576 | I46: =INDEX('Cost of methane'!$D$86:$K$86,MATCH(I$39,'Cost of methane'!$D$71:$K$71,0)) -> 18.58639576 | J46: =INDEX('Cost of methane'!$D$86:$K$86,MATCH(J$39,'Cost of methane'!$D$71:$K$71,0)) -> 18.58639576 | K46: =INDEX('Cost of methane'!$D$86:$K$86,MATCH(K$39,'Cost of methane'!$D$71:$K$71,0)) -> 18.58639576 | L46: =INDEX('Cost of methane'!$D$86:$K$86,MATCH(L$39,'Cost of methane'!$D$71:$K$71,0)) -> 18.58639576 | M46: =INDEX('Cost of methane'!$D$86:$K$86,MATCH(M$39,'Cost of methane'!$D$71:$K$71,0)) -> 16.23884823 | N46: =INDEX('Cost of methane'!$D$86:$K$86,MATCH(N$39,'Cost of methane'!$D$71:$K$71,0)) -> 16.23884823 | O46: =INDEX('Cost of methane'!$D$86:$K$86,MATCH(O$39,'Cost of methane'!$D$71:$K$71,0)) -> 16.23884823 | P46: =INDEX('Cost of methane'!$D$86:$K$86,MATCH(P$39,'Cost of methane'!$D$71:$K$71,0)) -> 16.23884823 | Q46: =INDEX('Cost of methane'!$D$86:$K$86,MATCH(Q$39,'Cost of methane'!$D$71:$K$71,0)) -> 16.23884823 | R46: =INDEX('Cost of methane'!$D$86:$K$86,MATCH(R$39,'Cost of methane'!$D$71:$K$71,0)) -> 13.59392784 | S46: =INDEX('Cost of methane'!$D$86:$K$86,MATCH(S$39,'Cost of methane'!$D$71:$K$71,0)) -> 13.59392784 | T46: =INDEX('Cost of methane'!$D$86:$K$86,MATCH(T$39,'Cost of methane'!$D$71:$K$71,0)) -> 13.59392784 | U46: =INDEX('Cost of methane'!$D$86:$K$86,MATCH(U$39,'Cost of methane'!$D$71:$K$71,0)) -> 13.59392784 | V46: =INDEX('Cost of methane'!$D$86:$K$86,MATCH(V$39,'Cost of methane'!$D$71:$K$71,0)) -> 13.59392784 | W46: =INDEX('Cost of methane'!$D$86:$K$86,MATCH(W$39,'Cost of methane'!$D$71:$K$71,0)) -> 11.92474925 | X46: =INDEX('Cost of methane'!$D$86:$K$86,MATCH(X$39,'Cost of methane'!$D$71:$K$71,0)) -> 11.92474925 | Y46: =INDEX('Cost of methane'!$D$86:$K$86,MATCH(Y$39,'Cost of methane'!$D$71:$K$71,0)) -> 11.92474925 | Z46: =INDEX('Cost of methane'!$D$86:$K$86,MATCH(Z$39,'Cost of methane'!$D$71:$K$71,0)) -> 11.92474925 | AA46: =INDEX('Cost of methane'!$D$86:$K$86,MATCH(AA$39,'Cost of methane'!$D$71:$K$71,0)) -> 11.92474925 | AB46: =INDEX('Cost of methane'!$D$86:$K$86,MATCH(AB$39,'Cost of methane'!$D$71:$K$71,0)) -> 10.64945719 | AC46: =INDEX('Cost of methane'!$D$86:$K$86,MATCH(AC$39,'Cost of methane'!$D$71:$K$71,0)) -> 10.64945719 | AD46: =INDEX('Cost of methane'!$D$86:$K$86,MATCH(AD$39,'Cost of methane'!$D$71:$K$71,0)) -> 10.64945719 | AE46: =INDEX('Cost of methane'!$D$86:$K$86,MATCH(AE$39,'Cost of methane'!$D$71:$K$71,0)) -> 10.64945719 | AF46: =INDEX('Cost of methane'!$D$86:$K$86,MATCH(AF$39,'Cost of methane'!$D$71:$K$71,0)) -> 10.64945719 | AG46: =INDEX('Cost of methane'!$D$86:$K$86,MATCH(AG$39,'Cost of methane'!$D$71:$K$71,0)) -> 9.678532264 | AH46: =INDEX('Cost of methane'!$D$86:$K$86,MATCH(AH$39,'Cost of methane'!$D$71:$K$71,0)) -> 9.678532264 | AI46: =INDEX('Cost of methane'!$D$86:$K$86,MATCH(AI$39,'Cost of methane'!$D$71:$K$71,0)) -> 9.678532264 | AJ46: =INDEX('Cost of methane'!$D$86:$K$86,MATCH(AJ$39,'Cost of methane'!$D$71:$K$71,0)) -> 9.678532264 | AK46: =INDEX('Cost of methane'!$D$86:$K$86,MATCH(AK$39,'Cost of methane'!$D$71:$K$71,0)) -> 9.678532264 | AL46: =INDEX('Cost of methane'!$D$86:$K$86,MATCH(AL$39,'Cost of methane'!$D$71:$K$71,0)) -> 8.852982081 | AM46: =INDEX('Cost of methane'!$D$86:$K$86,MATCH(AM$39,'Cost of methane'!$D$71:$K$71,0)) -> 8.852982081 | AN46: =INDEX('Cost of methane'!$D$86:$K$86,MATCH(AN$39,'Cost of methane'!$D$71:$K$71,0)) -> 8.852982081 | AO46: =INDEX('Cost of methane'!$D$86:$K$86,MATCH(AO$39,'Cost of methane'!$D$71:$K$71,0)) -> 8.852982081 | AP46: =INDEX('Cost of methane'!$D$86:$K$86,MATCH(AP$39,'Cost of methane'!$D$71:$K$71,0)) -> 8.852982081
B47: Optimistic - Conventionel | C47: =INDEX('Cost of methane'!$D$87:$K$87,MATCH(C$39,'Cost of methane'!$D$71:$K$71,0)) -> 3.368190406 | D47: =INDEX('Cost of methane'!$D$87:$K$87,MATCH(D$39,'Cost of methane'!$D$71:$K$71,0)) -> 3.368190406 | E47: =INDEX('Cost of methane'!$D$87:$K$87,MATCH(E$39,'Cost of methane'!$D$71:$K$71,0)) -> 3.368190406 | F47: =INDEX('Cost of methane'!$D$87:$K$87,MATCH(F$39,'Cost of methane'!$D$71:$K$71,0)) -> 3.368190406 | G47: =INDEX('Cost of methane'!$D$87:$K$87,MATCH(G$39,'Cost of methane'!$D$71:$K$71,0)) -> 3.368190406 | H47: =INDEX('Cost of methane'!$D$87:$K$87,MATCH(H$39,'Cost of methane'!$D$71:$K$71,0)) -> 3.437615507 | I47: =INDEX('Cost of methane'!$D$87:$K$87,MATCH(I$39,'Cost of methane'!$D$71:$K$71,0)) -> 3.437615507 | J47: =INDEX('Cost of methane'!$D$87:$K$87,MATCH(J$39,'Cost of methane'!$D$71:$K$71,0)) -> 3.437615507 | K47: =INDEX('Cost of methane'!$D$87:$K$87,MATCH(K$39,'Cost of methane'!$D$71:$K$71,0)) -> 3.437615507 | L47: =INDEX('Cost of methane'!$D$87:$K$87,MATCH(L$39,'Cost of methane'!$D$71:$K$71,0)) -> 3.437615507 | M47: =INDEX('Cost of methane'!$D$87:$K$87,MATCH(M$39,'Cost of methane'!$D$71:$K$71,0)) -> 3.572536257 | N47: =INDEX('Cost of methane'!$D$87:$K$87,MATCH(N$39,'Cost of methane'!$D$71:$K$71,0)) -> 3.572536257 | O47: =INDEX('Cost of methane'!$D$87:$K$87,MATCH(O$39,'Cost of methane'!$D$71:$K$71,0)) -> 3.572536257 | P47: =INDEX('Cost of methane'!$D$87:$K$87,MATCH(P$39,'Cost of methane'!$D$71:$K$71,0)) -> 3.572536257 | Q47: =INDEX('Cost of methane'!$D$87:$K$87,MATCH(Q$39,'Cost of methane'!$D$71:$K$71,0)) -> 3.572536257 | R47: =INDEX('Cost of methane'!$D$87:$K$87,MATCH(R$39,'Cost of methane'!$D$71:$K$71,0)) -> 3.715820233 | S47: =INDEX('Cost of methane'!$D$87:$K$87,MATCH(S$39,'Cost of methane'!$D$71:$K$71,0)) -> 3.715820233 | T47: =INDEX('Cost of methane'!$D$87:$K$87,MATCH(T$39,'Cost of methane'!$D$71:$K$71,0)) -> 3.715820233 | U47: =INDEX('Cost of methane'!$D$87:$K$87,MATCH(U$39,'Cost of methane'!$D$71:$K$71,0)) -> 3.715820233 | V47: =INDEX('Cost of methane'!$D$87:$K$87,MATCH(V$39,'Cost of methane'!$D$71:$K$71,0)) -> 3.715820233 | W47: =INDEX('Cost of methane'!$D$87:$K$87,MATCH(W$39,'Cost of methane'!$D$71:$K$71,0)) -> 3.853528725 | X47: =INDEX('Cost of methane'!$D$87:$K$87,MATCH(X$39,'Cost of methane'!$D$71:$K$71,0)) -> 3.853528725 | Y47: =INDEX('Cost of methane'!$D$87:$K$87,MATCH(Y$39,'Cost of methane'!$D$71:$K$71,0)) -> 3.853528725 | Z47: =INDEX('Cost of methane'!$D$87:$K$87,MATCH(Z$39,'Cost of methane'!$D$71:$K$71,0)) -> 3.853528725 | AA47: =INDEX('Cost of methane'!$D$87:$K$87,MATCH(AA$39,'Cost of methane'!$D$71:$K$71,0)) -> 3.853528725 | AB47: =INDEX('Cost of methane'!$D$87:$K$87,MATCH(AB$39,'Cost of methane'!$D$71:$K$71,0)) -> 3.992631088 | AC47: =INDEX('Cost of methane'!$D$87:$K$87,MATCH(AC$39,'Cost of methane'!$D$71:$K$71,0)) -> 3.992631088 | AD47: =INDEX('Cost of methane'!$D$87:$K$87,MATCH(AD$39,'Cost of methane'!$D$71:$K$71,0)) -> 3.992631088 | AE47: =INDEX('Cost of methane'!$D$87:$K$87,MATCH(AE$39,'Cost of methane'!$D$71:$K$71,0)) -> 3.992631088 | AF47: =INDEX('Cost of methane'!$D$87:$K$87,MATCH(AF$39,'Cost of methane'!$D$71:$K$71,0)) -> 3.992631088 | AG47: =INDEX('Cost of methane'!$D$87:$K$87,MATCH(AG$39,'Cost of methane'!$D$71:$K$71,0)) -> 4.131733451 | AH47: =INDEX('Cost of methane'!$D$87:$K$87,MATCH(AH$39,'Cost of methane'!$D$71:$K$71,0)) -> 4.131733451 | AI47: =INDEX('Cost of methane'!$D$87:$K$87,MATCH(AI$39,'Cost of methane'!$D$71:$K$71,0)) -> 4.131733451 | AJ47: =INDEX('Cost of methane'!$D$87:$K$87,MATCH(AJ$39,'Cost of methane'!$D$71:$K$71,0)) -> 4.131733451 | AK47: =INDEX('Cost of methane'!$D$87:$K$87,MATCH(AK$39,'Cost of methane'!$D$71:$K$71,0)) -> 4.131733451 | AL47: =INDEX('Cost of methane'!$D$87:$K$87,MATCH(AL$39,'Cost of methane'!$D$71:$K$71,0)) -> 4.270835814 | AM47: =INDEX('Cost of methane'!$D$87:$K$87,MATCH(AM$39,'Cost of methane'!$D$71:$K$71,0)) -> 4.270835814 | AN47: =INDEX('Cost of methane'!$D$87:$K$87,MATCH(AN$39,'Cost of methane'!$D$71:$K$71,0)) -> 4.270835814 | AO47: =INDEX('Cost of methane'!$D$87:$K$87,MATCH(AO$39,'Cost of methane'!$D$71:$K$71,0)) -> 4.270835814 | AP47: =INDEX('Cost of methane'!$D$87:$K$87,MATCH(AP$39,'Cost of methane'!$D$71:$K$71,0)) -> 4.270835814
B48: Reference - Synthetic | C48: =INDEX('Cost of methane'!$D$104:$K$104,MATCH(C$39,'Cost of methane'!$D$71:$K$71,0)) -> 22.47624207 | D48: =INDEX('Cost of methane'!$D$104:$K$104,MATCH(D$39,'Cost of methane'!$D$71:$K$71,0)) -> 22.47624207 | E48: =INDEX('Cost of methane'!$D$104:$K$104,MATCH(E$39,'Cost of methane'!$D$71:$K$71,0)) -> 22.47624207 | F48: =INDEX('Cost of methane'!$D$104:$K$104,MATCH(F$39,'Cost of methane'!$D$71:$K$71,0)) -> 22.47624207 | G48: =INDEX('Cost of methane'!$D$104:$K$104,MATCH(G$39,'Cost of methane'!$D$71:$K$71,0)) -> 22.47624207 | H48: =INDEX('Cost of methane'!$D$104:$K$104,MATCH(H$39,'Cost of methane'!$D$71:$K$71,0)) -> 19.93404781 | I48: =INDEX('Cost of methane'!$D$104:$K$104,MATCH(I$39,'Cost of methane'!$D$71:$K$71,0)) -> 19.93404781 | J48: =INDEX('Cost of methane'!$D$104:$K$104,MATCH(J$39,'Cost of methane'!$D$71:$K$71,0)) -> 19.93404781 | K48: =INDEX('Cost of methane'!$D$104:$K$104,MATCH(K$39,'Cost of methane'!$D$71:$K$71,0)) -> 19.93404781 | L48: =INDEX('Cost of methane'!$D$104:$K$104,MATCH(L$39,'Cost of methane'!$D$71:$K$71,0)) -> 19.93404781 | M48: =INDEX('Cost of methane'!$D$104:$K$104,MATCH(M$39,'Cost of methane'!$D$71:$K$71,0)) -> 18.16532927 | N48: =INDEX('Cost of methane'!$D$104:$K$104,MATCH(N$39,'Cost of methane'!$D$71:$K$71,0)) -> 18.16532927 | O48: =INDEX('Cost of methane'!$D$104:$K$104,MATCH(O$39,'Cost of methane'!$D$71:$K$71,0)) -> 18.16532927 | P48: =INDEX('Cost of methane'!$D$104:$K$104,MATCH(P$39,'Cost of methane'!$D$71:$K$71,0)) -> 18.16532927 | Q48: =INDEX('Cost of methane'!$D$104:$K$104,MATCH(Q$39,'Cost of methane'!$D$71:$K$71,0)) -> 18.16532927 | R48: =INDEX('Cost of methane'!$D$104:$K$104,MATCH(R$39,'Cost of methane'!$D$71:$K$71,0)) -> 15.9458909 | S48: =INDEX('Cost of methane'!$D$104:$K$104,MATCH(S$39,'Cost of methane'!$D$71:$K$71,0)) -> 15.9458909 | T48: =INDEX('Cost of methane'!$D$104:$K$104,MATCH(T$39,'Cost of methane'!$D$71:$K$71,0)) -> 15.9458909 | U48: =INDEX('Cost of methane'!$D$104:$K$104,MATCH(U$39,'Cost of methane'!$D$71:$K$71,0)) -> 15.9458909 | V48: =INDEX('Cost of methane'!$D$104:$K$104,MATCH(V$39,'Cost of methane'!$D$71:$K$71,0)) -> 15.9458909 | W48: =INDEX('Cost of methane'!$D$104:$K$104,MATCH(W$39,'Cost of methane'!$D$71:$K$71,0)) -> 14.64890859 | X48: =INDEX('Cost of methane'!$D$104:$K$104,MATCH(X$39,'Cost of methane'!$D$71:$K$71,0)) -> 14.64890859 | Y48: =INDEX('Cost of methane'!$D$104:$K$104,MATCH(Y$39,'Cost of methane'!$D$71:$K$71,0)) -> 14.64890859 | Z48: =INDEX('Cost of methane'!$D$104:$K$104,MATCH(Z$39,'Cost of methane'!$D$71:$K$71,0)) -> 14.64890859 | AA48: =INDEX('Cost of methane'!$D$104:$K$104,MATCH(AA$39,'Cost of methane'!$D$71:$K$71,0)) -> 14.64890859 | AB48: =INDEX('Cost of methane'!$D$104:$K$104,MATCH(AB$39,'Cost of methane'!$D$71:$K$71,0)) -> 13.56851066 | AC48: =INDEX('Cost of methane'!$D$104:$K$104,MATCH(AC$39,'Cost of methane'!$D$71:$K$71,0)) -> 13.56851066 | AD48: =INDEX('Cost of methane'!$D$104:$K$104,MATCH(AD$39,'Cost of methane'!$D$71:$K$71,0)) -> 13.56851066 | AE48: =INDEX('Cost of methane'!$D$104:$K$104,MATCH(AE$39,'Cost of methane'!$D$71:$K$71,0)) -> 13.56851066 | AF48: =INDEX('Cost of methane'!$D$104:$K$104,MATCH(AF$39,'Cost of methane'!$D$71:$K$71,0)) -> 13.56851066 | AG48: =INDEX('Cost of methane'!$D$104:$K$104,MATCH(AG$39,'Cost of methane'!$D$71:$K$71,0)) -> 12.68137845 | AH48: =INDEX('Cost of methane'!$D$104:$K$104,MATCH(AH$39,'Cost of methane'!$D$71:$K$71,0)) -> 12.68137845 | AI48: =INDEX('Cost of methane'!$D$104:$K$104,MATCH(AI$39,'Cost of methane'!$D$71:$K$71,0)) -> 12.68137845 | AJ48: =INDEX('Cost of methane'!$D$104:$K$104,MATCH(AJ$39,'Cost of methane'!$D$71:$K$71,0)) -> 12.68137845 | AK48: =INDEX('Cost of methane'!$D$104:$K$104,MATCH(AK$39,'Cost of methane'!$D$71:$K$71,0)) -> 12.68137845 | AL48: =INDEX('Cost of methane'!$D$104:$K$104,MATCH(AL$39,'Cost of methane'!$D$71:$K$71,0)) -> 12.13413948 | AM48: =INDEX('Cost of methane'!$D$104:$K$104,MATCH(AM$39,'Cost of methane'!$D$71:$K$71,0)) -> 12.13413948 | AN48: =INDEX('Cost of methane'!$D$104:$K$104,MATCH(AN$39,'Cost of methane'!$D$71:$K$71,0)) -> 12.13413948 | AO48: =INDEX('Cost of methane'!$D$104:$K$104,MATCH(AO$39,'Cost of methane'!$D$71:$K$71,0)) -> 12.13413948 | AP48: =INDEX('Cost of methane'!$D$104:$K$104,MATCH(AP$39,'Cost of methane'!$D$71:$K$71,0)) -> 12.13413948
B49: Reference - Conventionel | C49: =INDEX('Cost of methane'!$D$105:$K$105,MATCH(C$39,'Cost of methane'!$D$71:$K$71,0)) -> 3.368190406 | D49: =INDEX('Cost of methane'!$D$105:$K$105,MATCH(D$39,'Cost of methane'!$D$71:$K$71,0)) -> 3.368190406 | E49: =INDEX('Cost of methane'!$D$105:$K$105,MATCH(E$39,'Cost of methane'!$D$71:$K$71,0)) -> 3.368190406 | F49: =INDEX('Cost of methane'!$D$105:$K$105,MATCH(F$39,'Cost of methane'!$D$71:$K$71,0)) -> 3.368190406 | G49: =INDEX('Cost of methane'!$D$105:$K$105,MATCH(G$39,'Cost of methane'!$D$71:$K$71,0)) -> 3.368190406 | H49: =INDEX('Cost of methane'!$D$105:$K$105,MATCH(H$39,'Cost of methane'!$D$71:$K$71,0)) -> 3.662184275 | I49: =INDEX('Cost of methane'!$D$105:$K$105,MATCH(I$39,'Cost of methane'!$D$71:$K$71,0)) -> 3.662184275 | J49: =INDEX('Cost of methane'!$D$105:$K$105,MATCH(J$39,'Cost of methane'!$D$71:$K$71,0)) -> 3.662184275 | K49: =INDEX('Cost of methane'!$D$105:$K$105,MATCH(K$39,'Cost of methane'!$D$71:$K$71,0)) -> 3.662184275 | L49: =INDEX('Cost of methane'!$D$105:$K$105,MATCH(L$39,'Cost of methane'!$D$71:$K$71,0)) -> 3.662184275 | M49: =INDEX('Cost of methane'!$D$105:$K$105,MATCH(M$39,'Cost of methane'!$D$71:$K$71,0)) -> 3.972578265 | N49: =INDEX('Cost of methane'!$D$105:$K$105,MATCH(N$39,'Cost of methane'!$D$71:$K$71,0)) -> 3.972578265 | O49: =INDEX('Cost of methane'!$D$105:$K$105,MATCH(O$39,'Cost of methane'!$D$71:$K$71,0)) -> 3.972578265 | P49: =INDEX('Cost of methane'!$D$105:$K$105,MATCH(P$39,'Cost of methane'!$D$71:$K$71,0)) -> 3.972578265 | Q49: =INDEX('Cost of methane'!$D$105:$K$105,MATCH(Q$39,'Cost of methane'!$D$71:$K$71,0)) -> 3.972578265 | R49: =INDEX('Cost of methane'!$D$105:$K$105,MATCH(R$39,'Cost of methane'!$D$71:$K$71,0)) -> 4.287153869 | S49: =INDEX('Cost of methane'!$D$105:$K$105,MATCH(S$39,'Cost of methane'!$D$71:$K$71,0)) -> 4.287153869 | T49: =INDEX('Cost of methane'!$D$105:$K$105,MATCH(T$39,'Cost of methane'!$D$71:$K$71,0)) -> 4.287153869 | U49: =INDEX('Cost of methane'!$D$105:$K$105,MATCH(U$39,'Cost of methane'!$D$71:$K$71,0)) -> 4.287153869 | V49: =INDEX('Cost of methane'!$D$105:$K$105,MATCH(V$39,'Cost of methane'!$D$71:$K$71,0)) -> 4.287153869 | W49: =INDEX('Cost of methane'!$D$105:$K$105,MATCH(W$39,'Cost of methane'!$D$71:$K$71,0)) -> 4.477474922 | X49: =INDEX('Cost of methane'!$D$105:$K$105,MATCH(X$39,'Cost of methane'!$D$71:$K$71,0)) -> 4.477474922 | Y49: =INDEX('Cost of methane'!$D$105:$K$105,MATCH(Y$39,'Cost of methane'!$D$71:$K$71,0)) -> 4.477474922 | Z49: =INDEX('Cost of methane'!$D$105:$K$105,MATCH(Z$39,'Cost of methane'!$D$71:$K$71,0)) -> 4.477474922 | AA49: =INDEX('Cost of methane'!$D$105:$K$105,MATCH(AA$39,'Cost of methane'!$D$71:$K$71,0)) -> 4.477474922 | AB49: =INDEX('Cost of methane'!$D$105:$K$105,MATCH(AB$39,'Cost of methane'!$D$71:$K$71,0)) -> 4.668492911 | AC49: =INDEX('Cost of methane'!$D$105:$K$105,MATCH(AC$39,'Cost of methane'!$D$71:$K$71,0)) -> 4.668492911 | AD49: =INDEX('Cost of methane'!$D$105:$K$105,MATCH(AD$39,'Cost of methane'!$D$71:$K$71,0)) -> 4.668492911 | AE49: =INDEX('Cost of methane'!$D$105:$K$105,MATCH(AE$39,'Cost of methane'!$D$71:$K$71,0)) -> 4.668492911 | AF49: =INDEX('Cost of methane'!$D$105:$K$105,MATCH(AF$39,'Cost of methane'!$D$71:$K$71,0)) -> 4.668492911 | AG49: =INDEX('Cost of methane'!$D$105:$K$105,MATCH(AG$39,'Cost of methane'!$D$71:$K$71,0)) -> 4.8595109 | AH49: =INDEX('Cost of methane'!$D$105:$K$105,MATCH(AH$39,'Cost of methane'!$D$71:$K$71,0)) -> 4.8595109 | AI49: =INDEX('Cost of methane'!$D$105:$K$105,MATCH(AI$39,'Cost of methane'!$D$71:$K$71,0)) -> 4.8595109 | AJ49: =INDEX('Cost of methane'!$D$105:$K$105,MATCH(AJ$39,'Cost of methane'!$D$71:$K$71,0)) -> 4.8595109 | AK49: =INDEX('Cost of methane'!$D$105:$K$105,MATCH(AK$39,'Cost of methane'!$D$71:$K$71,0)) -> 4.8595109 | AL49: =INDEX('Cost of methane'!$D$105:$K$105,MATCH(AL$39,'Cost of methane'!$D$71:$K$71,0)) -> 5.05052889 | AM49: =INDEX('Cost of methane'!$D$105:$K$105,MATCH(AM$39,'Cost of methane'!$D$71:$K$71,0)) -> 5.05052889 | AN49: =INDEX('Cost of methane'!$D$105:$K$105,MATCH(AN$39,'Cost of methane'!$D$71:$K$71,0)) -> 5.05052889 | AO49: =INDEX('Cost of methane'!$D$105:$K$105,MATCH(AO$39,'Cost of methane'!$D$71:$K$71,0)) -> 5.05052889 | AP49: =INDEX('Cost of methane'!$D$105:$K$105,MATCH(AP$39,'Cost of methane'!$D$71:$K$71,0)) -> 5.05052889
B50: Pessimistic - Synthetic | C50: =INDEX('Cost of methane'!$D$122:$K$122,MATCH(C$39,'Cost of methane'!$D$71:$K$71,0)) -> 23.54197396 | D50: =INDEX('Cost of methane'!$D$122:$K$122,MATCH(D$39,'Cost of methane'!$D$71:$K$71,0)) -> 23.54197396 | E50: =INDEX('Cost of methane'!$D$122:$K$122,MATCH(E$39,'Cost of methane'!$D$71:$K$71,0)) -> 23.54197396 | F50: =INDEX('Cost of methane'!$D$122:$K$122,MATCH(F$39,'Cost of methane'!$D$71:$K$71,0)) -> 23.54197396 | G50: =INDEX('Cost of methane'!$D$122:$K$122,MATCH(G$39,'Cost of methane'!$D$71:$K$71,0)) -> 23.54197396 | H50: =INDEX('Cost of methane'!$D$122:$K$122,MATCH(H$39,'Cost of methane'!$D$71:$K$71,0)) -> 21.34841502 | I50: =INDEX('Cost of methane'!$D$122:$K$122,MATCH(I$39,'Cost of methane'!$D$71:$K$71,0)) -> 21.34841502 | J50: =INDEX('Cost of methane'!$D$122:$K$122,MATCH(J$39,'Cost of methane'!$D$71:$K$71,0)) -> 21.34841502 | K50: =INDEX('Cost of methane'!$D$122:$K$122,MATCH(K$39,'Cost of methane'!$D$71:$K$71,0)) -> 21.34841502 | L50: =INDEX('Cost of methane'!$D$122:$K$122,MATCH(L$39,'Cost of methane'!$D$71:$K$71,0)) -> 21.34841502 | M50: =INDEX('Cost of methane'!$D$122:$K$122,MATCH(M$39,'Cost of methane'!$D$71:$K$71,0)) -> 19.95876173 | N50: =INDEX('Cost of methane'!$D$122:$K$122,MATCH(N$39,'Cost of methane'!$D$71:$K$71,0)) -> 19.95876173 | O50: =INDEX('Cost of methane'!$D$122:$K$122,MATCH(O$39,'Cost of methane'!$D$71:$K$71,0)) -> 19.95876173 | P50: =INDEX('Cost of methane'!$D$122:$K$122,MATCH(P$39,'Cost of methane'!$D$71:$K$71,0)) -> 19.95876173 | Q50: =INDEX('Cost of methane'!$D$122:$K$122,MATCH(Q$39,'Cost of methane'!$D$71:$K$71,0)) -> 19.95876173 | R50: =INDEX('Cost of methane'!$D$122:$K$122,MATCH(R$39,'Cost of methane'!$D$71:$K$71,0)) -> 18.08557382 | S50: =INDEX('Cost of methane'!$D$122:$K$122,MATCH(S$39,'Cost of methane'!$D$71:$K$71,0)) -> 18.08557382 | T50: =INDEX('Cost of methane'!$D$122:$K$122,MATCH(T$39,'Cost of methane'!$D$71:$K$71,0)) -> 18.08557382 | U50: =INDEX('Cost of methane'!$D$122:$K$122,MATCH(U$39,'Cost of methane'!$D$71:$K$71,0)) -> 18.08557382 | V50: =INDEX('Cost of methane'!$D$122:$K$122,MATCH(V$39,'Cost of methane'!$D$71:$K$71,0)) -> 18.08557382 | W50: =INDEX('Cost of methane'!$D$122:$K$122,MATCH(W$39,'Cost of methane'!$D$71:$K$71,0)) -> 17.17320613 | X50: =INDEX('Cost of methane'!$D$122:$K$122,MATCH(X$39,'Cost of methane'!$D$71:$K$71,0)) -> 17.17320613 | Y50: =INDEX('Cost of methane'!$D$122:$K$122,MATCH(Y$39,'Cost of methane'!$D$71:$K$71,0)) -> 17.17320613 | Z50: =INDEX('Cost of methane'!$D$122:$K$122,MATCH(Z$39,'Cost of methane'!$D$71:$K$71,0)) -> 17.17320613 | AA50: =INDEX('Cost of methane'!$D$122:$K$122,MATCH(AA$39,'Cost of methane'!$D$71:$K$71,0)) -> 17.17320613 | AB50: =INDEX('Cost of methane'!$D$122:$K$122,MATCH(AB$39,'Cost of methane'!$D$71:$K$71,0)) -> 16.34236897 | AC50: =INDEX('Cost of methane'!$D$122:$K$122,MATCH(AC$39,'Cost of methane'!$D$71:$K$71,0)) -> 16.34236897 | AD50: =INDEX('Cost of methane'!$D$122:$K$122,MATCH(AD$39,'Cost of methane'!$D$71:$K$71,0)) -> 16.34236897 | AE50: =INDEX('Cost of methane'!$D$122:$K$122,MATCH(AE$39,'Cost of methane'!$D$71:$K$71,0)) -> 16.34236897 | AF50: =INDEX('Cost of methane'!$D$122:$K$122,MATCH(AF$39,'Cost of methane'!$D$71:$K$71,0)) -> 16.34236897 | AG50: =INDEX('Cost of methane'!$D$122:$K$122,MATCH(AG$39,'Cost of methane'!$D$71:$K$71,0)) -> 15.62254826 | AH50: =INDEX('Cost of methane'!$D$122:$K$122,MATCH(AH$39,'Cost of methane'!$D$71:$K$71,0)) -> 15.62254826 | AI50: =INDEX('Cost of methane'!$D$122:$K$122,MATCH(AI$39,'Cost of methane'!$D$71:$K$71,0)) -> 15.62254826 | AJ50: =INDEX('Cost of methane'!$D$122:$K$122,MATCH(AJ$39,'Cost of methane'!$D$71:$K$71,0)) -> 15.62254826 | AK50: =INDEX('Cost of methane'!$D$122:$K$122,MATCH(AK$39,'Cost of methane'!$D$71:$K$71,0)) -> 15.62254826 | AL50: =INDEX('Cost of methane'!$D$122:$K$122,MATCH(AL$39,'Cost of methane'!$D$71:$K$71,0)) -> 14.88882289 | AM50: =INDEX('Cost of methane'!$D$122:$K$122,MATCH(AM$39,'Cost of methane'!$D$71:$K$71,0)) -> 14.88882289 | AN50: =INDEX('Cost of methane'!$D$122:$K$122,MATCH(AN$39,'Cost of methane'!$D$71:$K$71,0)) -> 14.88882289 | AO50: =INDEX('Cost of methane'!$D$122:$K$122,MATCH(AO$39,'Cost of methane'!$D$71:$K$71,0)) -> 14.88882289 | AP50: =INDEX('Cost of methane'!$D$122:$K$122,MATCH(AP$39,'Cost of methane'!$D$71:$K$71,0)) -> 14.88882289
B51: Pessimistic - Conventionel | C51: =INDEX('Cost of methane'!$D$123:$K$123,MATCH(C$39,'Cost of methane'!$D$71:$K$71,0)) -> 3.368190406 | D51: =INDEX('Cost of methane'!$D$123:$K$123,MATCH(D$39,'Cost of methane'!$D$71:$K$71,0)) -> 3.368190406 | E51: =INDEX('Cost of methane'!$D$123:$K$123,MATCH(E$39,'Cost of methane'!$D$71:$K$71,0)) -> 3.368190406 | F51: =INDEX('Cost of methane'!$D$123:$K$123,MATCH(F$39,'Cost of methane'!$D$71:$K$71,0)) -> 3.368190406 | G51: =INDEX('Cost of methane'!$D$123:$K$123,MATCH(G$39,'Cost of methane'!$D$71:$K$71,0)) -> 3.368190406 | H51: =INDEX('Cost of methane'!$D$123:$K$123,MATCH(H$39,'Cost of methane'!$D$71:$K$71,0)) -> 3.886753043 | I51: =INDEX('Cost of methane'!$D$123:$K$123,MATCH(I$39,'Cost of methane'!$D$71:$K$71,0)) -> 3.886753043 | J51: =INDEX('Cost of methane'!$D$123:$K$123,MATCH(J$39,'Cost of methane'!$D$71:$K$71,0)) -> 3.886753043 | K51: =INDEX('Cost of methane'!$D$123:$K$123,MATCH(K$39,'Cost of methane'!$D$71:$K$71,0)) -> 3.886753043 | L51: =INDEX('Cost of methane'!$D$123:$K$123,MATCH(L$39,'Cost of methane'!$D$71:$K$71,0)) -> 3.886753043 | M51: =INDEX('Cost of methane'!$D$123:$K$123,MATCH(M$39,'Cost of methane'!$D$71:$K$71,0)) -> 4.372620273 | N51: =INDEX('Cost of methane'!$D$123:$K$123,MATCH(N$39,'Cost of methane'!$D$71:$K$71,0)) -> 4.372620273 | O51: =INDEX('Cost of methane'!$D$123:$K$123,MATCH(O$39,'Cost of methane'!$D$71:$K$71,0)) -> 4.372620273 | P51: =INDEX('Cost of methane'!$D$123:$K$123,MATCH(P$39,'Cost of methane'!$D$71:$K$71,0)) -> 4.372620273 | Q51: =INDEX('Cost of methane'!$D$123:$K$123,MATCH(Q$39,'Cost of methane'!$D$71:$K$71,0)) -> 4.372620273 | R51: =INDEX('Cost of methane'!$D$123:$K$123,MATCH(R$39,'Cost of methane'!$D$71:$K$71,0)) -> 4.858487504 | S51: =INDEX('Cost of methane'!$D$123:$K$123,MATCH(S$39,'Cost of methane'!$D$71:$K$71,0)) -> 4.858487504 | T51: =INDEX('Cost of methane'!$D$123:$K$123,MATCH(T$39,'Cost of methane'!$D$71:$K$71,0)) -> 4.858487504 | U51: =INDEX('Cost of methane'!$D$123:$K$123,MATCH(U$39,'Cost of methane'!$D$71:$K$71,0)) -> 4.858487504 | V51: =INDEX('Cost of methane'!$D$123:$K$123,MATCH(V$39,'Cost of methane'!$D$71:$K$71,0)) -> 4.858487504 | W51: =INDEX('Cost of methane'!$D$123:$K$123,MATCH(W$39,'Cost of methane'!$D$71:$K$71,0)) -> 5.101421119 | X51: =INDEX('Cost of methane'!$D$123:$K$123,MATCH(X$39,'Cost of methane'!$D$71:$K$71,0)) -> 5.101421119 | Y51: =INDEX('Cost of methane'!$D$123:$K$123,MATCH(Y$39,'Cost of methane'!$D$71:$K$71,0)) -> 5.101421119 | Z51: =INDEX('Cost of methane'!$D$123:$K$123,MATCH(Z$39,'Cost of methane'!$D$71:$K$71,0)) -> 5.101421119 | AA51: =INDEX('Cost of methane'!$D$123:$K$123,MATCH(AA$39,'Cost of methane'!$D$71:$K$71,0)) -> 5.101421119 | AB51: =INDEX('Cost of methane'!$D$123:$K$123,MATCH(AB$39,'Cost of methane'!$D$71:$K$71,0)) -> 5.344354734 | AC51: =INDEX('Cost of methane'!$D$123:$K$123,MATCH(AC$39,'Cost of methane'!$D$71:$K$71,0)) -> 5.344354734 | AD51: =INDEX('Cost of methane'!$D$123:$K$123,MATCH(AD$39,'Cost of methane'!$D$71:$K$71,0)) -> 5.344354734 | AE51: =INDEX('Cost of methane'!$D$123:$K$123,MATCH(AE$39,'Cost of methane'!$D$71:$K$71,0)) -> 5.344354734 | AF51: =INDEX('Cost of methane'!$D$123:$K$123,MATCH(AF$39,'Cost of methane'!$D$71:$K$71,0)) -> 5.344354734 | AG51: =INDEX('Cost of methane'!$D$123:$K$123,MATCH(AG$39,'Cost of methane'!$D$71:$K$71,0)) -> 5.587288349 | AH51: =INDEX('Cost of methane'!$D$123:$K$123,MATCH(AH$39,'Cost of methane'!$D$71:$K$71,0)) -> 5.587288349 | AI51: =INDEX('Cost of methane'!$D$123:$K$123,MATCH(AI$39,'Cost of methane'!$D$71:$K$71,0)) -> 5.587288349 | AJ51: =INDEX('Cost of methane'!$D$123:$K$123,MATCH(AJ$39,'Cost of methane'!$D$71:$K$71,0)) -> 5.587288349 | AK51: =INDEX('Cost of methane'!$D$123:$K$123,MATCH(AK$39,'Cost of methane'!$D$71:$K$71,0)) -> 5.587288349 | AL51: =INDEX('Cost of methane'!$D$123:$K$123,MATCH(AL$39,'Cost of methane'!$D$71:$K$71,0)) -> 5.830221965 | AM51: =INDEX('Cost of methane'!$D$123:$K$123,MATCH(AM$39,'Cost of methane'!$D$71:$K$71,0)) -> 5.830221965 | AN51: =INDEX('Cost of methane'!$D$123:$K$123,MATCH(AN$39,'Cost of methane'!$D$71:$K$71,0)) -> 5.830221965 | AO51: =INDEX('Cost of methane'!$D$123:$K$123,MATCH(AO$39,'Cost of methane'!$D$71:$K$71,0)) -> 5.830221965 | AP51: =INDEX('Cost of methane'!$D$123:$K$123,MATCH(AP$39,'Cost of methane'!$D$71:$K$71,0)) -> 5.830221965
B53: Table for Figure 3 - Cost of synthetic methane (including transport, excluding taxes/levies and grid tariffs) - all countries and renewable energy sources
B55: Total cost methane | C55: 2016/17 | D55: 2020 | E55: 2025 | F55: 2030 | G55: 2035 | H55: 2040 | I55: 2045 | J55: 2050
C56: =C$55&$C$5&"-"&$C$6 -> 2016/17North Africa-PV | D56: 2020North Africa-PV | E56: 2025North Africa-PV | F56: 2030North Africa-PV | G56: 2035North Africa-PV | H56: 2040North Africa-PV | I56: 2045North Africa-PV | J56: 2050North Africa-PV | K56: k
B57: Optimistic | C57: =INDEX($D$83:$K$83,MATCH(C$55,$D$71:$K$71,0)) -> 19.84873245 | D57: 16.56639576 | E57: 14.21884823 | F57: 11.57392784 | G57: 9.904749253 | H57: 8.62945719 | I57: 7.658532264 | J57: 6.832982081
B58: Reference | C58: =INDEX($D$101:$K$101,MATCH(C$55,$D$71:$K$71,0)) -> 20.45624207 | D58: 17.91404781 | E58: 16.14532927 | F58: 13.9258909 | G58: 12.62890859 | H58: 11.54851066 | I58: 10.66137845 | J58: 10.11413948
B59: Pessimistic | C59: =INDEX($D$119:$K$119,MATCH(C$55,$D$71:$K$71,0)) -> 21.52197396 | D59: 19.32841502 | E59: 17.93876173 | F59: 16.06557382 | G59: 15.15320613 | H59: 14.32236897 | I59: 13.60254826 | J59: 12.86882289
C61: 2016/17 | D61: 2016/17 | E61: 2016/17 | F61: 2016/17 | G61: 2016/17 | H61: 2016/17 | I61: 2020 | J61: 2020 | K61: 2020 | L61: 2020 | M61: 2020 | N61: 2020 | O61: 2030 | P61: 2030 | Q61: 2030 | R61: 2030 | S61: 2030 | T61: 2030 | U61: 2040 | V61: 2040 | W61: 2040 | X61: 2040 | Y61: 2040 | Z61: 2040 | AA61: 2050 | AB61: 2050 | AC61: 2050 | AD61: 2050 | AE61: 2050 | AF61: 2050
C62: 2016/17 | I62: 2020 | O62: 2030 | U62: 2040 | AA62: 2050
C63: North Africa-PV | D63: Middle East-PV | E63: North Africa-PV/wind combination | F63: Middle East-PV/wind combination | G63: Iceland-geothermal/hydropower | H63: North and Baltic Seas-offshore wind | I63: North Africa-PV | J63: Middle East-PV | K63: North Africa-PV/wind combination | L63: Middle East-PV/wind combination | M63: Iceland-geothermal/hydropower | N63: North and Baltic Seas-offshore wind | O63: North Africa-PV | P63: Middle East-PV | Q63: North Africa-PV/wind combination | R63: Middle East-PV/wind combination | S63: Iceland-geothermal/hydropower | T63: North and Baltic Seas-offshore wind | U63: North Africa-PV | V63: Middle East-PV | W63: North Africa-PV/wind combination | X63: Middle East-PV/wind combination | Y63: Iceland-geothermal/hydropower | Z63: North and Baltic Seas-offshore wind | AA63: North Africa-PV | AB63: Middle East-PV | AC63: North Africa-PV/wind combination | AD63: Middle East-PV/wind combination | AE63: Iceland-geothermal/hydropower | AF63: North and Baltic Seas-offshore wind
B64: Optimistic | C64: =INDEX('Auxiliary data'!$C$33:$AX$35,MATCH($B64,'Auxiliary data'!$B$33:$B$35,0),MATCH(C$61&C$63,'Auxiliary data'!$C$32:$AX$32,0)) -> 19.84873245 | D64: =INDEX('Auxiliary data'!$C$33:$AX$35,MATCH($B64,'Auxiliary data'!$B$33:$B$35,0),MATCH(D$61&D$63,'Auxiliary data'!$C$32:$AX$32,0)) -> 19.5057935 | E64: =INDEX('Auxiliary data'!$C$33:$AX$35,MATCH($B64,'Auxiliary data'!$B$33:$B$35,0),MATCH(E$61&E$63,'Auxiliary data'!$C$32:$AX$32,0)) -> 19.67371688 | F64: =INDEX('Auxiliary data'!$C$33:$AX$35,MATCH($B64,'Auxiliary data'!$B$33:$B$35,0),MATCH(F$61&F$63,'Auxiliary data'!$C$32:$AX$32,0)) -> 21.73842086 | G64: =INDEX('Auxiliary data'!$C$33:$AX$35,MATCH($B64,'Auxiliary data'!$B$33:$B$35,0),MATCH(G$61&G$63,'Auxiliary data'!$C$32:$AX$32,0)) -> 12.16860493 | H64: =INDEX('Auxiliary data'!$C$33:$AX$35,MATCH($B64,'Auxiliary data'!$B$33:$B$35,0),MATCH(H$61&H$63,'Auxiliary data'!$C$32:$AX$32,0)) -> 29.61921477 | I64: =INDEX('Auxiliary data'!$C$33:$AX$35,MATCH($B64,'Auxiliary data'!$B$33:$B$35,0),MATCH(I$61&I$63,'Auxiliary data'!$C$32:$AX$32,0)) -> 16.56639576 | J64: =INDEX('Auxiliary data'!$C$33:$AX$35,MATCH($B64,'Auxiliary data'!$B$33:$B$35,0),MATCH(J$61&J$63,'Auxiliary data'!$C$32:$AX$32,0)) -> 16.34366664 | K64: =INDEX('Auxiliary data'!$C$33:$AX$35,MATCH($B64,'Auxiliary data'!$B$33:$B$35,0),MATCH(K$61&K$63,'Auxiliary data'!$C$32:$AX$32,0)) -> 16.63960885 | L64: =INDEX('Auxiliary data'!$C$33:$AX$35,MATCH($B64,'Auxiliary data'!$B$33:$B$35,0),MATCH(L$61&L$63,'Auxiliary data'!$C$32:$AX$32,0)) -> 18.35838727 | M64: =INDEX('Auxiliary data'!$C$33:$AX$35,MATCH($B64,'Auxiliary data'!$B$33:$B$35,0),MATCH(M$61&M$63,'Auxiliary data'!$C$32:$AX$32,0)) -> 11.28359841 | N64: =INDEX('Auxiliary data'!$C$33:$AX$35,MATCH($B64,'Auxiliary data'!$B$33:$B$35,0),MATCH(N$61&N$63,'Auxiliary data'!$C$32:$AX$32,0)) -> 20.87045042 | O64: =INDEX('Auxiliary data'!$C$33:$AX$35,MATCH($B64,'Auxiliary data'!$B$33:$B$35,0),MATCH(O$61&O$63,'Auxiliary data'!$C$32:$AX$32,0)) -> 11.57392784 | P64: =INDEX('Auxiliary data'!$C$33:$AX$35,MATCH($B64,'Auxiliary data'!$B$33:$B$35,0),MATCH(P$61&P$63,'Auxiliary data'!$C$32:$AX$32,0)) -> 11.50396522 | Q64: =INDEX('Auxiliary data'!$C$33:$AX$35,MATCH($B64,'Auxiliary data'!$B$33:$B$35,0),MATCH(Q$61&Q$63,'Auxiliary data'!$C$32:$AX$32,0)) -> 11.3219828 | R64: =INDEX('Auxiliary data'!$C$33:$AX$35,MATCH($B64,'Auxiliary data'!$B$33:$B$35,0),MATCH(R$61&R$63,'Auxiliary data'!$C$32:$AX$32,0)) -> 12.5161651 | S64: =INDEX('Auxiliary data'!$C$33:$AX$35,MATCH($B64,'Auxiliary data'!$B$33:$B$35,0),MATCH(S$61&S$63,'Auxiliary data'!$C$32:$AX$32,0)) -> 9.168118585 | T64: =INDEX('Auxiliary data'!$C$33:$AX$35,MATCH($B64,'Auxiliary data'!$B$33:$B$35,0),MATCH(T$61&T$63,'Auxiliary data'!$C$32:$AX$32,0)) -> 14.81342518 | U64: =INDEX('Auxiliary data'!$C$33:$AX$35,MATCH($B64,'Auxiliary data'!$B$33:$B$35,0),MATCH(U$61&U$63,'Auxiliary data'!$C$32:$AX$32,0)) -> 8.62945719 | V64: =INDEX('Auxiliary data'!$C$33:$AX$35,MATCH($B64,'Auxiliary data'!$B$33:$B$35,0),MATCH(V$61&V$63,'Auxiliary data'!$C$32:$AX$32,0)) -> 8.665540479 | W64: =INDEX('Auxiliary data'!$C$33:$AX$35,MATCH($B64,'Auxiliary data'!$B$33:$B$35,0),MATCH(W$61&W$63,'Auxiliary data'!$C$32:$AX$32,0)) -> 9.168674258 | X64: =INDEX('Auxiliary data'!$C$33:$AX$35,MATCH($B64,'Auxiliary data'!$B$33:$B$35,0),MATCH(X$61&X$63,'Auxiliary data'!$C$32:$AX$32,0)) -> 10.1484507 | Y64: =INDEX('Auxiliary data'!$C$33:$AX$35,MATCH($B64,'Auxiliary data'!$B$33:$B$35,0),MATCH(Y$61&Y$63,'Auxiliary data'!$C$32:$AX$32,0)) -> 8.17824908 | Z64: =INDEX('Auxiliary data'!$C$33:$AX$35,MATCH($B64,'Auxiliary data'!$B$33:$B$35,0),MATCH(Z$61&Z$63,'Auxiliary data'!$C$32:$AX$32,0)) -> 12.19660079 | AA64: =INDEX('Auxiliary data'!$C$33:$AX$35,MATCH($B64,'Auxiliary data'!$B$33:$B$35,0),MATCH(AA$61&AA$63,'Auxiliary data'!$C$32:$AX$32,0)) -> 6.832982081 | AB64: =INDEX('Auxiliary data'!$C$33:$AX$35,MATCH($B64,'Auxiliary data'!$B$33:$B$35,0),MATCH(AB$61&AB$63,'Auxiliary data'!$C$32:$AX$32,0)) -> 6.932950769 | AC64: =INDEX('Auxiliary data'!$C$33:$AX$35,MATCH($B64,'Auxiliary data'!$B$33:$B$35,0),MATCH(AC$61&AC$63,'Auxiliary data'!$C$32:$AX$32,0)) -> 7.718108672 | AD64: =INDEX('Auxiliary data'!$C$33:$AX$35,MATCH($B64,'Auxiliary data'!$B$33:$B$35,0),MATCH(AD$61&AD$63,'Auxiliary data'!$C$32:$AX$32,0)) -> 8.550954378 | AE64: =INDEX('Auxiliary data'!$C$33:$AX$35,MATCH($B64,'Auxiliary data'!$B$33:$B$35,0),MATCH(AE$61&AE$63,'Auxiliary data'!$C$32:$AX$32,0)) -> 7.433541436 | AF64: =INDEX('Auxiliary data'!$C$33:$AX$35,MATCH($B64,'Auxiliary data'!$B$33:$B$35,0),MATCH(AF$61&AF$63,'Auxiliary data'!$C$32:$AX$32,0)) -> 10.19288538
B65: Reference | C65: =INDEX('Auxiliary data'!$C$33:$AX$35,MATCH($B65,'Auxiliary data'!$B$33:$B$35,0),MATCH(C$61&C$63,'Auxiliary data'!$C$32:$AX$32,0)) -> 20.45624207 | D65: =INDEX('Auxiliary data'!$C$33:$AX$35,MATCH($B65,'Auxiliary data'!$B$33:$B$35,0),MATCH(D$61&D$63,'Auxiliary data'!$C$32:$AX$32,0)) -> 20.08272484 | E65: =INDEX('Auxiliary data'!$C$33:$AX$35,MATCH($B65,'Auxiliary data'!$B$33:$B$35,0),MATCH(E$61&E$63,'Auxiliary data'!$C$32:$AX$32,0)) -> 21.56805789 | F65: =INDEX('Auxiliary data'!$C$33:$AX$35,MATCH($B65,'Auxiliary data'!$B$33:$B$35,0),MATCH(F$61&F$63,'Auxiliary data'!$C$32:$AX$32,0)) -> 22.33901933 | G65: =INDEX('Auxiliary data'!$C$33:$AX$35,MATCH($B65,'Auxiliary data'!$B$33:$B$35,0),MATCH(G$61&G$63,'Auxiliary data'!$C$32:$AX$32,0)) -> 12.16865549 | H65: =INDEX('Auxiliary data'!$C$33:$AX$35,MATCH($B65,'Auxiliary data'!$B$33:$B$35,0),MATCH(H$61&H$63,'Auxiliary data'!$C$32:$AX$32,0)) -> 31.4575429 | I65: =INDEX('Auxiliary data'!$C$33:$AX$35,MATCH($B65,'Auxiliary data'!$B$33:$B$35,0),MATCH(I$61&I$63,'Auxiliary data'!$C$32:$AX$32,0)) -> 17.91404781 | J65: =INDEX('Auxiliary data'!$C$33:$AX$35,MATCH($B65,'Auxiliary data'!$B$33:$B$35,0),MATCH(J$61&J$63,'Auxiliary data'!$C$32:$AX$32,0)) -> 17.63448194 | K65: =INDEX('Auxiliary data'!$C$33:$AX$35,MATCH($B65,'Auxiliary data'!$B$33:$B$35,0),MATCH(K$61&K$63,'Auxiliary data'!$C$32:$AX$32,0)) -> 19.17707347 | L65: =INDEX('Auxiliary data'!$C$33:$AX$35,MATCH($B65,'Auxiliary data'!$B$33:$B$35,0),MATCH(L$61&L$63,'Auxiliary data'!$C$32:$AX$32,0)) -> 19.87759422 | M65: =INDEX('Auxiliary data'!$C$33:$AX$35,MATCH($B65,'Auxiliary data'!$B$33:$B$35,0),MATCH(M$61&M$63,'Auxiliary data'!$C$32:$AX$32,0)) -> 11.52229231 | N65: =INDEX('Auxiliary data'!$C$33:$AX$35,MATCH($B65,'Auxiliary data'!$B$33:$B$35,0),MATCH(N$61&N$63,'Auxiliary data'!$C$32:$AX$32,0)) -> 25.28555577 | O65: =INDEX('Auxiliary data'!$C$33:$AX$35,MATCH($B65,'Auxiliary data'!$B$33:$B$35,0),MATCH(O$61&O$63,'Auxiliary data'!$C$32:$AX$32,0)) -> 13.9258909 | P65: =INDEX('Auxiliary data'!$C$33:$AX$35,MATCH($B65,'Auxiliary data'!$B$33:$B$35,0),MATCH(P$61&P$63,'Auxiliary data'!$C$32:$AX$32,0)) -> 13.76306088 | Q65: =INDEX('Auxiliary data'!$C$33:$AX$35,MATCH($B65,'Auxiliary data'!$B$33:$B$35,0),MATCH(Q$61&Q$63,'Auxiliary data'!$C$32:$AX$32,0)) -> 14.9021473 | R65: =INDEX('Auxiliary data'!$C$33:$AX$35,MATCH($B65,'Auxiliary data'!$B$33:$B$35,0),MATCH(R$61&R$63,'Auxiliary data'!$C$32:$AX$32,0)) -> 15.50019645 | S65: =INDEX('Auxiliary data'!$C$33:$AX$35,MATCH($B65,'Auxiliary data'!$B$33:$B$35,0),MATCH(S$61&S$63,'Auxiliary data'!$C$32:$AX$32,0)) -> 9.729818143 | T65: =INDEX('Auxiliary data'!$C$33:$AX$35,MATCH($B65,'Auxiliary data'!$B$33:$B$35,0),MATCH(T$61&T$63,'Auxiliary data'!$C$32:$AX$32,0)) -> 18.9190865 | U65: =INDEX('Auxiliary data'!$C$33:$AX$35,MATCH($B65,'Auxiliary data'!$B$33:$B$35,0),MATCH(U$61&U$63,'Auxiliary data'!$C$32:$AX$32,0)) -> 11.54851066 | V65: =INDEX('Auxiliary data'!$C$33:$AX$35,MATCH($B65,'Auxiliary data'!$B$33:$B$35,0),MATCH(V$61&V$63,'Auxiliary data'!$C$32:$AX$32,0)) -> 11.47160543 | W65: =INDEX('Auxiliary data'!$C$33:$AX$35,MATCH($B65,'Auxiliary data'!$B$33:$B$35,0),MATCH(W$61&W$63,'Auxiliary data'!$C$32:$AX$32,0)) -> 12.78628783 | X65: =INDEX('Auxiliary data'!$C$33:$AX$35,MATCH($B65,'Auxiliary data'!$B$33:$B$35,0),MATCH(X$61&X$63,'Auxiliary data'!$C$32:$AX$32,0)) -> 13.32379512 | Y65: =INDEX('Auxiliary data'!$C$33:$AX$35,MATCH($B65,'Auxiliary data'!$B$33:$B$35,0),MATCH(Y$61&Y$63,'Auxiliary data'!$C$32:$AX$32,0)) -> 8.889947961 | Z65: =INDEX('Auxiliary data'!$C$33:$AX$35,MATCH($B65,'Auxiliary data'!$B$33:$B$35,0),MATCH(Z$61&Z$63,'Auxiliary data'!$C$32:$AX$32,0)) -> 15.60039835 | AA65: =INDEX('Auxiliary data'!$C$33:$AX$35,MATCH($B65,'Auxiliary data'!$B$33:$B$35,0),MATCH(AA$61&AA$63,'Auxiliary data'!$C$32:$AX$32,0)) -> 10.11413948 | AB65: =INDEX('Auxiliary data'!$C$33:$AX$35,MATCH($B65,'Auxiliary data'!$B$33:$B$35,0),MATCH(AB$61&AB$63,'Auxiliary data'!$C$32:$AX$32,0)) -> 10.0990183 | AC65: =INDEX('Auxiliary data'!$C$33:$AX$35,MATCH($B65,'Auxiliary data'!$B$33:$B$35,0),MATCH(AC$61&AC$63,'Auxiliary data'!$C$32:$AX$32,0)) -> 11.42661832 | AD65: =INDEX('Auxiliary data'!$C$33:$AX$35,MATCH($B65,'Auxiliary data'!$B$33:$B$35,0),MATCH(AD$61&AD$63,'Auxiliary data'!$C$32:$AX$32,0)) -> 11.91702357 | AE65: =INDEX('Auxiliary data'!$C$33:$AX$35,MATCH($B65,'Auxiliary data'!$B$33:$B$35,0),MATCH(AE$61&AE$63,'Auxiliary data'!$C$32:$AX$32,0)) -> 8.479051854 | AF65: =INDEX('Auxiliary data'!$C$33:$AX$35,MATCH($B65,'Auxiliary data'!$B$33:$B$35,0),MATCH(AF$61&AF$63,'Auxiliary data'!$C$32:$AX$32,0)) -> 13.09825158
B66: Pessimistic | C66: =INDEX('Auxiliary data'!$C$33:$AX$35,MATCH($B66,'Auxiliary data'!$B$33:$B$35,0),MATCH(C$61&C$63,'Auxiliary data'!$C$32:$AX$32,0)) -> 21.52197396 | D66: =INDEX('Auxiliary data'!$C$33:$AX$35,MATCH($B66,'Auxiliary data'!$B$33:$B$35,0),MATCH(D$61&D$63,'Auxiliary data'!$C$32:$AX$32,0)) -> 21.05007879 | E66: =INDEX('Auxiliary data'!$C$33:$AX$35,MATCH($B66,'Auxiliary data'!$B$33:$B$35,0),MATCH(E$61&E$63,'Auxiliary data'!$C$32:$AX$32,0)) -> 24.56642857 | F66: =INDEX('Auxiliary data'!$C$33:$AX$35,MATCH($B66,'Auxiliary data'!$B$33:$B$35,0),MATCH(F$61&F$63,'Auxiliary data'!$C$32:$AX$32,0)) -> 23.23256159 | G66: =INDEX('Auxiliary data'!$C$33:$AX$35,MATCH($B66,'Auxiliary data'!$B$33:$B$35,0),MATCH(G$61&G$63,'Auxiliary data'!$C$32:$AX$32,0)) -> 12.16873518 | H66: =INDEX('Auxiliary data'!$C$33:$AX$35,MATCH($B66,'Auxiliary data'!$B$33:$B$35,0),MATCH(H$61&H$63,'Auxiliary data'!$C$32:$AX$32,0)) -> 34.3463445 | I66: =INDEX('Auxiliary data'!$C$33:$AX$35,MATCH($B66,'Auxiliary data'!$B$33:$B$35,0),MATCH(I$61&I$63,'Auxiliary data'!$C$32:$AX$32,0)) -> 19.32841502 | J66: =INDEX('Auxiliary data'!$C$33:$AX$35,MATCH($B66,'Auxiliary data'!$B$33:$B$35,0),MATCH(J$61&J$63,'Auxiliary data'!$C$32:$AX$32,0)) -> 18.95227133 | K66: =INDEX('Auxiliary data'!$C$33:$AX$35,MATCH($B66,'Auxiliary data'!$B$33:$B$35,0),MATCH(K$61&K$63,'Auxiliary data'!$C$32:$AX$32,0)) -> 22.56759148 | L66: =INDEX('Auxiliary data'!$C$33:$AX$35,MATCH($B66,'Auxiliary data'!$B$33:$B$35,0),MATCH(L$61&L$63,'Auxiliary data'!$C$32:$AX$32,0)) -> 21.41027629 | M66: =INDEX('Auxiliary data'!$C$33:$AX$35,MATCH($B66,'Auxiliary data'!$B$33:$B$35,0),MATCH(M$61&M$63,'Auxiliary data'!$C$32:$AX$32,0)) -> 11.79141559 | N66: =INDEX('Auxiliary data'!$C$33:$AX$35,MATCH($B66,'Auxiliary data'!$B$33:$B$35,0),MATCH(N$61&N$63,'Auxiliary data'!$C$32:$AX$32,0)) -> 31.9105182 | O66: =INDEX('Auxiliary data'!$C$33:$AX$35,MATCH($B66,'Auxiliary data'!$B$33:$B$35,0),MATCH(O$61&O$63,'Auxiliary data'!$C$32:$AX$32,0)) -> 16.06557382 | P66: =INDEX('Auxiliary data'!$C$33:$AX$35,MATCH($B66,'Auxiliary data'!$B$33:$B$35,0),MATCH(P$61&P$63,'Auxiliary data'!$C$32:$AX$32,0)) -> 15.79486497 | Q66: =INDEX('Auxiliary data'!$C$33:$AX$35,MATCH($B66,'Auxiliary data'!$B$33:$B$35,0),MATCH(Q$61&Q$63,'Auxiliary data'!$C$32:$AX$32,0)) -> 19.42344419 | R66: =INDEX('Auxiliary data'!$C$33:$AX$35,MATCH($B66,'Auxiliary data'!$B$33:$B$35,0),MATCH(R$61&R$63,'Auxiliary data'!$C$32:$AX$32,0)) -> 18.45039988 | S66: =INDEX('Auxiliary data'!$C$33:$AX$35,MATCH($B66,'Auxiliary data'!$B$33:$B$35,0),MATCH(S$61&S$63,'Auxiliary data'!$C$32:$AX$32,0)) -> 10.32454884 | T66: =INDEX('Auxiliary data'!$C$33:$AX$35,MATCH($B66,'Auxiliary data'!$B$33:$B$35,0),MATCH(T$61&T$63,'Auxiliary data'!$C$32:$AX$32,0)) -> 26.11185054 | U66: =INDEX('Auxiliary data'!$C$33:$AX$35,MATCH($B66,'Auxiliary data'!$B$33:$B$35,0),MATCH(U$61&U$63,'Auxiliary data'!$C$32:$AX$32,0)) -> 14.32236897 | V66: =INDEX('Auxiliary data'!$C$33:$AX$35,MATCH($B66,'Auxiliary data'!$B$33:$B$35,0),MATCH(V$61&V$63,'Auxiliary data'!$C$32:$AX$32,0)) -> 14.12329204 | W66: =INDEX('Auxiliary data'!$C$33:$AX$35,MATCH($B66,'Auxiliary data'!$B$33:$B$35,0),MATCH(W$61&W$63,'Auxiliary data'!$C$32:$AX$32,0)) -> 17.70517168 | X66: =INDEX('Auxiliary data'!$C$33:$AX$35,MATCH($B66,'Auxiliary data'!$B$33:$B$35,0),MATCH(X$61&X$63,'Auxiliary data'!$C$32:$AX$32,0)) -> 16.8542423 | Y66: =INDEX('Auxiliary data'!$C$33:$AX$35,MATCH($B66,'Auxiliary data'!$B$33:$B$35,0),MATCH(Y$61&Y$63,'Auxiliary data'!$C$32:$AX$32,0)) -> 9.698484866 | Z66: =INDEX('Auxiliary data'!$C$33:$AX$35,MATCH($B66,'Auxiliary data'!$B$33:$B$35,0),MATCH(Z$61&Z$63,'Auxiliary data'!$C$32:$AX$32,0)) -> 21.79031704 | AA66: =INDEX('Auxiliary data'!$C$33:$AX$35,MATCH($B66,'Auxiliary data'!$B$33:$B$35,0),MATCH(AA$61&AA$63,'Auxiliary data'!$C$32:$AX$32,0)) -> 12.86882289 | AB66: =INDEX('Auxiliary data'!$C$33:$AX$35,MATCH($B66,'Auxiliary data'!$B$33:$B$35,0),MATCH(AB$61&AB$63,'Auxiliary data'!$C$32:$AX$32,0)) -> 12.72895758 | AC66: =INDEX('Auxiliary data'!$C$33:$AX$35,MATCH($B66,'Auxiliary data'!$B$33:$B$35,0),MATCH(AC$61&AC$63,'Auxiliary data'!$C$32:$AX$32,0)) -> 16.23304766 | AD66: =INDEX('Auxiliary data'!$C$33:$AX$35,MATCH($B66,'Auxiliary data'!$B$33:$B$35,0),MATCH(AD$61&AD$63,'Auxiliary data'!$C$32:$AX$32,0)) -> 15.48621441 | AE66: =INDEX('Auxiliary data'!$C$33:$AX$35,MATCH($B66,'Auxiliary data'!$B$33:$B$35,0),MATCH(AE$61&AE$63,'Auxiliary data'!$C$32:$AX$32,0)) -> 9.142811081 | AF66: =INDEX('Auxiliary data'!$C$33:$AX$35,MATCH($B66,'Auxiliary data'!$B$33:$B$35,0),MATCH(AF$61&AF$63,'Auxiliary data'!$C$32:$AX$32,0)) -> 18.03318506
B67: Referencepreis Erdgas | I67: ='4. Taxes & levies'!$F$23 -> 1.642184275 | J67: ='4. Taxes & levies'!$F$23 -> 1.642184275 | K67: ='4. Taxes & levies'!$F$23 -> 1.642184275 | L67: ='4. Taxes & levies'!$F$23 -> 1.642184275 | M67: ='4. Taxes & levies'!$F$23 -> 1.642184275 | N67: ='4. Taxes & levies'!$F$23 -> 1.642184275 | O67: ='4. Taxes & levies'!$H$23 -> 2.267153869 | P67: ='4. Taxes & levies'!$H$23 -> 2.267153869 | Q67: ='4. Taxes & levies'!$H$23 -> 2.267153869 | R67: ='4. Taxes & levies'!$H$23 -> 2.267153869 | S67: ='4. Taxes & levies'!$H$23 -> 2.267153869 | T67: ='4. Taxes & levies'!$H$23 -> 2.267153869 | U67: ='4. Taxes & levies'!$J$23 -> 2.648492911 | V67: ='4. Taxes & levies'!$J$23 -> 2.648492911 | W67: ='4. Taxes & levies'!$J$23 -> 2.648492911 | X67: ='4. Taxes & levies'!$J$23 -> 2.648492911 | Y67: ='4. Taxes & levies'!$J$23 -> 2.648492911 | Z67: ='4. Taxes & levies'!$J$23 -> 2.648492911 | AA67: ='4. Taxes & levies'!$L$23 -> 3.03052889 | AB67: ='4. Taxes & levies'!$L$23 -> 3.03052889 | AC67: ='4. Taxes & levies'!$L$23 -> 3.03052889 | AD67: ='4. Taxes & levies'!$L$23 -> 3.03052889 | AE67: ='4. Taxes & levies'!$L$23 -> 3.03052889 | AF67: ='4. Taxes & levies'!$L$23 -> 3.03052889
B69: Overview of final results for PtG
B71: Optimistic | D71: 2016/17 | E71: 2020 | F71: 2025 | G71: 2030 | H71: 2035 | I71: 2040 | J71: 2045 | K71: 2050
B72: Operating cost | C72: €/kW(methane) | D72: ='PtG-Methane'!$D$43*D$73 -> 24 | E72: ='PtG-Methane'!$D$43*E$73 -> 19.548 | F72: ='PtG-Methane'!$D$43*F$73 -> 15.921846 | G72: ='PtG-Methane'!$D$43*G$73 -> 12.96834357 | H72: ='PtG-Methane'!$D$43*H$73 -> 10.56271584 | I72: ='PtG-Methane'!$D$43*I$73 -> 8.603332048 | J72: ='PtG-Methane'!$D$43*J$73 -> 7.007413953 | K72: ='PtG-Methane'!$D$43*K$73 -> 5.707538665
B73: Total investment cost | C73: €/kW(methane) | D73: ='PtG-Methane'!$D$37 -> 800 | E73: =D73*(1-'PtG-Methane'!$C$46) -> 651.6 | F73: =E73*(1-'PtG-Methane'!$C$46) -> 530.7282 | G73: =F73*(1-'PtG-Methane'!$C$46) -> 432.2781189 | H73: =G73*(1-'PtG-Methane'!$C$46) -> 352.0905278 | I73: =H73*(1-'PtG-Methane'!$C$46) -> 286.7777349 | J73: =I73*(1-'PtG-Methane'!$C$46) -> 233.5804651 | K73: =J73*(1-'PtG-Methane'!$C$46) -> 190.2512888
B74: Lifetime | C74: year | D74: ='PtG-Methane'!$D$40 -> 30 | E74: ='PtG-Methane'!$D$40 -> 30 | F74: ='PtG-Methane'!$D$40 -> 30 | G74: ='PtG-Methane'!$D$40 -> 30 | H74: ='PtG-Methane'!$D$40 -> 30 | I74: ='PtG-Methane'!$D$40 -> 30 | J74: ='PtG-Methane'!$D$40 -> 30 | K74: ='PtG-Methane'!$D$40 -> 30
B75: Investment cost per year | C75: €/kW(methane) | D75: =(((1+'Cost of methane'!$C$7)^D$74)*'Cost of methane'!$C$7)/(((1+'Cost of methane'!$C$7)^D$74)-1)*D$73 -> 58.11912919 | E75: =(((1+'Cost of methane'!$C$7)^E$74)*'Cost of methane'!$C$7)/(((1+'Cost of methane'!$C$7)^E$74)-1)*E$73 -> 47.33803073 | F75: =(((1+'Cost of methane'!$C$7)^F$74)*'Cost of methane'!$C$7)/(((1+'Cost of methane'!$C$7)^F$74)-1)*F$73 -> 38.55682603 | G75: =(((1+'Cost of methane'!$C$7)^G$74)*'Cost of methane'!$C$7)/(((1+'Cost of methane'!$C$7)^G$74)-1)*G$73 -> 31.4045348 | H75: =(((1+'Cost of methane'!$C$7)^H$74)*'Cost of methane'!$C$7)/(((1+'Cost of methane'!$C$7)^H$74)-1)*H$73 -> 25.57899359 | I75: =(((1+'Cost of methane'!$C$7)^I$74)*'Cost of methane'!$C$7)/(((1+'Cost of methane'!$C$7)^I$74)-1)*I$73 -> 20.83409028 | J75: =(((1+'Cost of methane'!$C$7)^J$74)*'Cost of methane'!$C$7)/(((1+'Cost of methane'!$C$7)^J$74)-1)*J$73 -> 16.96936653 | K75: =(((1+'Cost of methane'!$C$7)^K$74)*'Cost of methane'!$C$7)/(((1+'Cost of methane'!$C$7)^K$74)-1)*K$73 -> 13.82154904
B76: Electricity cost of hydrogen electrolysis | C76: ct/kWh(methane) | D76: ='PtG-Methane'!E$62 -> 7.375667668 | E76: ='PtG-Methane'!F$62 -> 5.780949125 | F76: ='PtG-Methane'!G$62 -> 4.773304082 | G76: ='PtG-Methane'!H$62 -> 3.969686888 | H76: ='PtG-Methane'!I$62 -> 3.150157962 | I76: ='PtG-Methane'!J$62 -> 2.580181351 | J76: ='PtG-Methane'!K$62 -> 2.14695145 | K76: ='PtG-Methane'!L$62 -> 1.781795652
B77: Cost of conversion of hydrogen electrolysis | C77: ct/kWh(methane) | D77: ='PtG-Methane'!E$65 -> 7.103485343 | E77: ='PtG-Methane'!F$65 -> 5.642423438 | F77: ='PtG-Methane'!G$65 -> 4.48645135 | G77: ='PtG-Methane'!H$65 -> 3.570725919 | H77: ='PtG-Methane'!I$65 -> 2.844473693 | I77: ='PtG-Methane'!J$65 -> 2.26786356 | J77: ='PtG-Methane'!K$65 -> 1.809594187 | K77: ='PtG-Methane'!L$65 -> 1.445027593
B78: Storage cost for hydrogen | C78: ct/kWh(methane) | D78: =INDEX('PtG-Methane'!$D$73:$I$73,MATCH($C$5&" "&$C$6,'PtG-Methane'!$D$71:$I$71,0)) -> 0.5383092372 | E78: =INDEX('PtG-Methane'!$D$73:$I$73,MATCH($C$5&" "&$C$6,'PtG-Methane'!$D$71:$I$71,0)) -> 0.5383092372 | F78: =INDEX('PtG-Methane'!$D$73:$I$73,MATCH($C$5&" "&$C$6,'PtG-Methane'!$D$71:$I$71,0)) -> 0.5383092372 | G78: =INDEX('PtG-Methane'!$D$73:$I$73,MATCH($C$5&" "&$C$6,'PtG-Methane'!$D$71:$I$71,0)) -> 0.5383092372 | H78: =INDEX('PtG-Methane'!$D$73:$I$73,MATCH($C$5&" "&$C$6,'PtG-Methane'!$D$71:$I$71,0)) -> 0.5383092372 | I78: =INDEX('PtG-Methane'!$D$73:$I$73,MATCH($C$5&" "&$C$6,'PtG-Methane'!$D$71:$I$71,0)) -> 0.5383092372 | J78: =INDEX('PtG-Methane'!$D$73:$I$73,MATCH($C$5&" "&$C$6,'PtG-Methane'!$D$71:$I$71,0)) -> 0.5383092372 | K78: =INDEX('PtG-Methane'!$D$73:$I$73,MATCH($C$5&" "&$C$6,'PtG-Methane'!$D$71:$I$71,0)) -> 0.5383092372
B79: CO2 cost | C79: ct/kWh(methane) | D79: =IF($C$8='Auxiliary data'!$F$6,'PtG-Methane'!E$96,IF($C$5='Auxiliary data'!$C$8,'PtG-Methane'!$D$93,'PtG-Methane'!$D$92)) -> 2.849950846 | E79: =IF($C$8='Auxiliary data'!$F$6,'PtG-Methane'!F$96,IF($C$5='Auxiliary data'!$C$8,'PtG-Methane'!$D$93,'PtG-Methane'!$D$92)) -> 2.813808339 | F79: =IF($C$8='Auxiliary data'!$F$6,'PtG-Methane'!G$96,IF($C$5='Auxiliary data'!$C$8,'PtG-Methane'!$D$93,'PtG-Methane'!$D$92)) -> 2.791066986 | G79: =IF($C$8='Auxiliary data'!$F$6,'PtG-Methane'!H$96,IF($C$5='Auxiliary data'!$C$8,'PtG-Methane'!$D$93,'PtG-Methane'!$D$92)) -> 2.000957253 | H79: =IF($C$8='Auxiliary data'!$F$6,'PtG-Methane'!I$96,IF($C$5='Auxiliary data'!$C$8,'PtG-Methane'!$D$93,'PtG-Methane'!$D$92)) -> 1.980449426 | I79: =IF($C$8='Auxiliary data'!$F$6,'PtG-Methane'!J$96,IF($C$5='Auxiliary data'!$C$8,'PtG-Methane'!$D$93,'PtG-Methane'!$D$92)) -> 1.966033032 | J79: =IF($C$8='Auxiliary data'!$F$6,'PtG-Methane'!K$96,IF($C$5='Auxiliary data'!$C$8,'PtG-Methane'!$D$93,'PtG-Methane'!$D$92)) -> 1.954865404 | K79: =IF($C$8='Auxiliary data'!$F$6,'PtG-Methane'!L$96,IF($C$5='Auxiliary data'!$C$8,'PtG-Methane'!$D$93,'PtG-Methane'!$D$92)) -> 1.94511911
B80: Investment cost | C80: ct/kWh(methane) | D80: =D$75/'PtG-Methane'!$C$4*100 -> 0.7264891149 | E80: =E$75/'PtG-Methane'!$C$4*100 -> 0.5917253841 | F80: =F$75/'PtG-Methane'!$C$4*100 -> 0.4819603253 | G80: =G$75/'PtG-Methane'!$C$4*100 -> 0.392556685 | H80: =H$75/'PtG-Methane'!$C$4*100 -> 0.3197374199 | I80: =I$75/'PtG-Methane'!$C$4*100 -> 0.2604261285 | J80: =J$75/'PtG-Methane'!$C$4*100 -> 0.2121170817 | K80: =K$75/'PtG-Methane'!$C$4*100 -> 0.172769363
B81: Operating cost | C81: ct/kWh(methane) | D81: =D$72/'PtG-Methane'!$C$4*100 -> 0.3 | E81: =E$72/'PtG-Methane'!$C$4*100 -> 0.24435 | F81: =F$72/'PtG-Methane'!$C$4*100 -> 0.199023075 | G81: =G$72/'PtG-Methane'!$C$4*100 -> 0.1621042946 | H81: =H$72/'PtG-Methane'!$C$4*100 -> 0.1320339479 | I81: =I$72/'PtG-Methane'!$C$4*100 -> 0.1075416506 | J81: =J$72/'PtG-Methane'!$C$4*100 -> 0.08759267441 | K81: =K$72/'PtG-Methane'!$C$4*100 -> 0.07134423331
B82: Transport cost | C82: ct/kWh(methane) | D82: =INDEX('3. Transport cost'!$C$16:$J$19,MATCH($C$5,'3. Transport cost'!$B$16:$B$19,0),MATCH(D$71,'3. Transport cost'!$C$15:$J$15,0)) -> 0.9548302368 | E82: =INDEX('3. Transport cost'!$C$16:$J$19,MATCH($C$5,'3. Transport cost'!$B$16:$B$19,0),MATCH(E$71,'3. Transport cost'!$C$15:$J$15,0)) -> 0.9548302368 | F82: =INDEX('3. Transport cost'!$C$16:$J$19,MATCH($C$5,'3. Transport cost'!$B$16:$B$19,0),MATCH(F$71,'3. Transport cost'!$C$15:$J$15,0)) -> 0.9487331693 | G82: =INDEX('3. Transport cost'!$C$16:$J$19,MATCH($C$5,'3. Transport cost'!$B$16:$B$19,0),MATCH(G$71,'3. Transport cost'!$C$15:$J$15,0)) -> 0.939587568 | H82: =INDEX('3. Transport cost'!$C$16:$J$19,MATCH($C$5,'3. Transport cost'!$B$16:$B$19,0),MATCH(H$71,'3. Transport cost'!$C$15:$J$15,0)) -> 0.939587568 | I82: =INDEX('3. Transport cost'!$C$16:$J$19,MATCH($C$5,'3. Transport cost'!$B$16:$B$19,0),MATCH(I$71,'3. Transport cost'!$C$15:$J$15,0)) -> 0.9091022304 | J82: =INDEX('3. Transport cost'!$C$16:$J$19,MATCH($C$5,'3. Transport cost'!$B$16:$B$19,0),MATCH(J$71,'3. Transport cost'!$C$15:$J$15,0)) -> 0.9091022304 | K82: =INDEX('3. Transport cost'!$C$16:$J$19,MATCH($C$5,'3. Transport cost'!$B$16:$B$19,0),MATCH(K$71,'3. Transport cost'!$C$15:$J$15,0)) -> 0.8786168928
B83: Cost of methane (including transport) | C83: ct/kWh(methane) | D83: =SUM(D76:D82) -> 19.84873245 | E83: 16.56639576 | F83: 14.21884823 | G83: 11.57392784 | H83: 9.904749253 | I83: 8.62945719 | J83: 7.658532264 | K83: 6.832982081
B84: Taxes and levies (synthetic methane) | C84: ct/kWh(methane) | D84: ='4. Taxes & levies'!Q25 -> 0 | E84: ='4. Taxes & levies'!R25 -> 0 | F84: ='4. Taxes & levies'!S25 -> 0 | G84: ='4. Taxes & levies'!T25 -> 0 | H84: ='4. Taxes & levies'!U25 -> 0 | I84: ='4. Taxes & levies'!V25 -> 0 | J84: ='4. Taxes & levies'!W25 -> 0 | K84: ='4. Taxes & levies'!X25 -> 0
B85: Grid tariffs/distribution cost | C85: ct/kWh(methane) | D85: =SUM('4. Taxes & levies'!$D$17:$D$18) -> 2.02 | E85: =SUM('4. Taxes & levies'!$D$17:$D$18) -> 2.02 | F85: =SUM('4. Taxes & levies'!$D$17:$D$18) -> 2.02 | G85: =SUM('4. Taxes & levies'!$D$17:$D$18) -> 2.02 | H85: =SUM('4. Taxes & levies'!$D$17:$D$18) -> 2.02 | I85: =SUM('4. Taxes & levies'!$D$17:$D$18) -> 2.02 | J85: =SUM('4. Taxes & levies'!$D$17:$D$18) -> 2.02 | K85: =SUM('4. Taxes & levies'!$D$17:$D$18) -> 2.02
B86: Total cost of methane (including taxes, levies and grid tariffs) | C86: ct/kWh(methane) | D86: =SUM(D83:D85) -> 21.86873245 | E86: =SUM(E83:E85) -> 18.58639576 | F86: 16.23884823 | G86: 13.59392784 | H86: 11.92474925 | I86: 10.64945719 | J86: 9.678532264 | K86: 8.852982081
B87: Cost of fossil fuel (inkluding taxes, levies and grid tariffs) | C87: ct/kWh | D87: ='4. Taxes & levies'!E28 -> 3.368190406 | E87: ='4. Taxes & levies'!F28 -> 3.437615507 | F87: ='4. Taxes & levies'!G28 -> 3.572536257 | G87: ='4. Taxes & levies'!H28 -> 3.715820233 | H87: ='4. Taxes & levies'!I28 -> 3.853528725 | I87: ='4. Taxes & levies'!J28 -> 3.992631088 | J87: ='4. Taxes & levies'!K28 -> 4.131733451 | K87: ='4. Taxes & levies'!L28 -> 4.270835814
B89: Reference
B90: Operating cost | C90: €/kW(methane) | D90: ='PtG-Methane'!$D$43*D$91 -> 24 | E90: ='PtG-Methane'!$D$43*E$91 -> 22.44 | F90: ='PtG-Methane'!$D$43*F$91 -> 20.9814 | G90: ='PtG-Methane'!$D$43*G$91 -> 19.617609 | H90: ='PtG-Methane'!$D$43*H$91 -> 18.34246442 | I90: ='PtG-Methane'!$D$43*I$91 -> 17.15020423 | J90: ='PtG-Methane'!$D$43*J$91 -> 16.03544095 | K90: ='PtG-Methane'!$D$43*K$91 -> 14.99313729
B91: Total investment cost | C91: €/kW(methane) | D91: ='PtG-Methane'!$D$37 -> 800 | E91: =D91*(1-'PtG-Methane'!$D$46) -> 748 | F91: =E91*(1-'PtG-Methane'!$D$46) -> 699.38 | G91: =F91*(1-'PtG-Methane'!$D$46) -> 653.9203 | H91: =G91*(1-'PtG-Methane'!$D$46) -> 611.4154805 | I91: =H91*(1-'PtG-Methane'!$D$46) -> 571.6734743 | J91: =I91*(1-'PtG-Methane'!$D$46) -> 534.5146984 | K91: =J91*(1-'PtG-Methane'!$D$46) -> 499.771243
B92: Lifetime | C92: year | D92: ='PtG-Methane'!$D$40 -> 30 | E92: ='PtG-Methane'!$D$40 -> 30 | F92: ='PtG-Methane'!$D$40 -> 30 | G92: ='PtG-Methane'!$D$40 -> 30 | H92: ='PtG-Methane'!$D$40 -> 30 | I92: ='PtG-Methane'!$D$40 -> 30 | J92: ='PtG-Methane'!$D$40 -> 30 | K92: ='PtG-Methane'!$D$40 -> 30
B93: Investment cost per year | C93: €/kW(methane) | D93: =(((1+'Cost of methane'!$C$7)^D$92)*'Cost of methane'!$C$7)/(((1+'Cost of methane'!$C$7)^D$92)-1)*D$91 -> 58.11912919 | E93: =(((1+'Cost of methane'!$C$7)^E$92)*'Cost of methane'!$C$7)/(((1+'Cost of methane'!$C$7)^E$92)-1)*E$91 -> 54.34138579 | F93: =(((1+'Cost of methane'!$C$7)^F$92)*'Cost of methane'!$C$7)/(((1+'Cost of methane'!$C$7)^F$92)-1)*F$91 -> 50.80919572 | G93: =(((1+'Cost of methane'!$C$7)^G$92)*'Cost of methane'!$C$7)/(((1+'Cost of methane'!$C$7)^G$92)-1)*G$91 -> 47.506598 | H93: =(((1+'Cost of methane'!$C$7)^H$92)*'Cost of methane'!$C$7)/(((1+'Cost of methane'!$C$7)^H$92)-1)*H$91 -> 44.41866913 | I93: =(((1+'Cost of methane'!$C$7)^I$92)*'Cost of methane'!$C$7)/(((1+'Cost of methane'!$C$7)^I$92)-1)*I$91 -> 41.53145563 | J93: =(((1+'Cost of methane'!$C$7)^J$92)*'Cost of methane'!$C$7)/(((1+'Cost of methane'!$C$7)^J$92)-1)*J$91 -> 38.83191102 | K93: =(((1+'Cost of methane'!$C$7)^K$92)*'Cost of methane'!$C$7)/(((1+'Cost of methane'!$C$7)^K$92)-1)*K$91 -> 36.3078368
B94: Electricity cost of hydrogen electrolysis | C94: ct/kWh(methane) | D94: ='PtG-Methane'!E$63 -> 7.967883114 | E94: ='PtG-Methane'!F$63 -> 6.385230093 | F94: ='PtG-Methane'!G$63 -> 5.451547647 | G94: ='PtG-Methane'!H$63 -> 4.737450515 | H94: ='PtG-Methane'!I$63 -> 4.078804071 | I94: ='PtG-Methane'!J$63 -> 3.588763763 | J94: ='PtG-Methane'!K$63 -> 3.194661461 | K94: ='PtG-Methane'!L$63 -> 2.833168518
B95: Cost of conversion of hydrogen electrolysis | C95: ct/kWh(methane) | D95: ='PtG-Methane'!E$66 -> 7.1035359 | E95: ='PtG-Methane'!F$66 -> 6.333577549 | F95: ='PtG-Methane'!G$66 -> 5.652835338 | G95: ='PtG-Methane'!H$66 -> 5.050092785 | H95: ='PtG-Methane'!I$66 -> 4.515684624 | I95: ='PtG-Methane'!J$66 -> 4.04125853 | J95: ='PtG-Methane'!K$66 -> 3.619577631 | K95: ='PtG-Methane'!L$66 -> 3.244356054
B96: Storage cost for hydrogen | C96: ct/kWh(methane) | D96: =INDEX('PtG-Methane'!$D$73:$I$73,MATCH($C$5&" "&$C$6,'PtG-Methane'!$D$71:$I$71,0)) -> 0.5383092372 | E96: =INDEX('PtG-Methane'!$D$73:$I$73,MATCH($C$5&" "&$C$6,'PtG-Methane'!$D$71:$I$71,0)) -> 0.5383092372 | F96: =INDEX('PtG-Methane'!$D$73:$I$73,MATCH($C$5&" "&$C$6,'PtG-Methane'!$D$71:$I$71,0)) -> 0.5383092372 | G96: =INDEX('PtG-Methane'!$D$73:$I$73,MATCH($C$5&" "&$C$6,'PtG-Methane'!$D$71:$I$71,0)) -> 0.5383092372 | H96: =INDEX('PtG-Methane'!$D$73:$I$73,MATCH($C$5&" "&$C$6,'PtG-Methane'!$D$71:$I$71,0)) -> 0.5383092372 | I96: =INDEX('PtG-Methane'!$D$73:$I$73,MATCH($C$5&" "&$C$6,'PtG-Methane'!$D$71:$I$71,0)) -> 0.5383092372 | J96: =INDEX('PtG-Methane'!$D$73:$I$73,MATCH($C$5&" "&$C$6,'PtG-Methane'!$D$71:$I$71,0)) -> 0.5383092372 | K96: =INDEX('PtG-Methane'!$D$73:$I$73,MATCH($C$5&" "&$C$6,'PtG-Methane'!$D$71:$I$71,0)) -> 0.5383092372
B97: CO2 cost | C97: ct/kWh(methane) | D97: =IF($C$8='Auxiliary data'!$F$6,'PtG-Methane'!E$97,IF($C$5='Auxiliary data'!$C$8,'PtG-Methane'!$D$93,'PtG-Methane'!$D$92)) -> 2.865194471 | E97: =IF($C$8='Auxiliary data'!$F$6,'PtG-Methane'!F$97,IF($C$5='Auxiliary data'!$C$8,'PtG-Methane'!$D$93,'PtG-Methane'!$D$92)) -> 2.829875306 | F97: =IF($C$8='Auxiliary data'!$F$6,'PtG-Methane'!G$97,IF($C$5='Auxiliary data'!$C$8,'PtG-Methane'!$D$93,'PtG-Methane'!$D$92)) -> 2.809676051 | G97: =IF($C$8='Auxiliary data'!$F$6,'PtG-Methane'!H$97,IF($C$5='Auxiliary data'!$C$8,'PtG-Methane'!$D$93,'PtG-Methane'!$D$92)) -> 2.022673995 | H97: =IF($C$8='Auxiliary data'!$F$6,'PtG-Methane'!I$97,IF($C$5='Auxiliary data'!$C$8,'PtG-Methane'!$D$93,'PtG-Methane'!$D$92)) -> 2.007504867 | I97: =IF($C$8='Auxiliary data'!$F$6,'PtG-Methane'!J$97,IF($C$5='Auxiliary data'!$C$8,'PtG-Methane'!$D$93,'PtG-Methane'!$D$92)) -> 1.996273215 | J97: =IF($C$8='Auxiliary data'!$F$6,'PtG-Methane'!K$97,IF($C$5='Auxiliary data'!$C$8,'PtG-Methane'!$D$93,'PtG-Methane'!$D$92)) -> 1.9871678 | K97: =IF($C$8='Auxiliary data'!$F$6,'PtG-Methane'!L$97,IF($C$5='Auxiliary data'!$C$8,'PtG-Methane'!$D$93,'PtG-Methane'!$D$92)) -> 1.978426602
B98: Investment cost | C98: ct/kWh(methane) | D98: =D$93/'PtG-Methane'!$C$4*100 -> 0.7264891149 | E98: =E$75/'PtG-Methane'!$C$4*100 -> 0.5917253841 | F98: =F$75/'PtG-Methane'!$C$4*100 -> 0.4819603253 | G98: =G$75/'PtG-Methane'!$C$4*100 -> 0.392556685 | H98: =H$75/'PtG-Methane'!$C$4*100 -> 0.3197374199 | I98: =I$75/'PtG-Methane'!$C$4*100 -> 0.2604261285 | J98: =J$75/'PtG-Methane'!$C$4*100 -> 0.2121170817 | K98: =K$93/'PtG-Methane'!$C$4*100 -> 0.45384796
B99: Operating cost | C99: ct/kWh(methane) | D99: =D$90/'PtG-Methane'!$C$4*100 -> 0.3 | E99: =E$90/'PtG-Methane'!$C$4*100 -> 0.2805 | F99: =F$90/'PtG-Methane'!$C$4*100 -> 0.2622675 | G99: =G$90/'PtG-Methane'!$C$4*100 -> 0.2452201125 | H99: =H$90/'PtG-Methane'!$C$4*100 -> 0.2292808052 | I99: =I$90/'PtG-Methane'!$C$4*100 -> 0.2143775529 | J99: =J$90/'PtG-Methane'!$C$4*100 -> 0.2004430119 | K99: =K$90/'PtG-Methane'!$C$4*100 -> 0.1874142161
B100: Transport cost | C100: ct/kWh(methane) | D100: =INDEX('3. Transport cost'!$C$16:$J$19,MATCH($C$5,'3. Transport cost'!$B$16:$B$19,0),MATCH(D$71,'3. Transport cost'!$C$15:$J$15,0)) -> 0.9548302368 | E100: =INDEX('3. Transport cost'!$C$16:$J$19,MATCH($C$5,'3. Transport cost'!$B$16:$B$19,0),MATCH(E$71,'3. Transport cost'!$C$15:$J$15,0)) -> 0.9548302368 | F100: =INDEX('3. Transport cost'!$C$16:$J$19,MATCH($C$5,'3. Transport cost'!$B$16:$B$19,0),MATCH(F$71,'3. Transport cost'!$C$15:$J$15,0)) -> 0.9487331693 | G100: =INDEX('3. Transport cost'!$C$16:$J$19,MATCH($C$5,'3. Transport cost'!$B$16:$B$19,0),MATCH(G$71,'3. Transport cost'!$C$15:$J$15,0)) -> 0.939587568 | H100: =INDEX('3. Transport cost'!$C$16:$J$19,MATCH($C$5,'3. Transport cost'!$B$16:$B$19,0),MATCH(H$71,'3. Transport cost'!$C$15:$J$15,0)) -> 0.939587568 | I100: =INDEX('3. Transport cost'!$C$16:$J$19,MATCH($C$5,'3. Transport cost'!$B$16:$B$19,0),MATCH(I$71,'3. Transport cost'!$C$15:$J$15,0)) -> 0.9091022304 | J100: =INDEX('3. Transport cost'!$C$16:$J$19,MATCH($C$5,'3. Transport cost'!$B$16:$B$19,0),MATCH(J$71,'3. Transport cost'!$C$15:$J$15,0)) -> 0.9091022304 | K100: =INDEX('3. Transport cost'!$C$16:$J$19,MATCH($C$5,'3. Transport cost'!$B$16:$B$19,0),MATCH(K$71,'3. Transport cost'!$C$15:$J$15,0)) -> 0.8786168928
B101: Cost of methane (including transport) | C101: ct/kWh(methane) | D101: =SUM(D94:D100) -> 20.45624207 | E101: 17.91404781 | F101: 16.14532927 | G101: 13.9258909 | H101: 12.62890859 | I101: 11.54851066 | J101: 10.66137845 | K101: 10.11413948
B102: Taxes and levies (synthetic methane) | C102: ct/kWh(methane) | D102: ='4. Taxes & levies'!Q26 -> 0 | E102: ='4. Taxes & levies'!R26 -> 0 | F102: ='4. Taxes & levies'!S26 -> 0 | G102: ='4. Taxes & levies'!T26 -> 0 | H102: ='4. Taxes & levies'!U26 -> 0 | I102: ='4. Taxes & levies'!V26 -> 0 | J102: ='4. Taxes & levies'!W26 -> 0 | K102: ='4. Taxes & levies'!X26 -> 0
B103: Grid tariffs/distribution cost | C103: ct/kWh(methane) | D103: =SUM('4. Taxes & levies'!$D$17:$D$18) -> 2.02 | E103: =SUM('4. Taxes & levies'!$D$17:$D$18) -> 2.02 | F103: =SUM('4. Taxes & levies'!$D$17:$D$18) -> 2.02 | G103: =SUM('4. Taxes & levies'!$D$17:$D$18) -> 2.02 | H103: =SUM('4. Taxes & levies'!$D$17:$D$18) -> 2.02 | I103: =SUM('4. Taxes & levies'!$D$17:$D$18) -> 2.02 | J103: =SUM('4. Taxes & levies'!$D$17:$D$18) -> 2.02 | K103: =SUM('4. Taxes & levies'!$D$17:$D$18) -> 2.02
B104: Total cost of methane (including taxes, levies and grid tariffs) | C104: ct/kWh(methane) | D104: =SUM(D101:D103) -> 22.47624207 | E104: 19.93404781 | F104: 18.16532927 | G104: 15.9458909 | H104: 14.64890859 | I104: 13.56851066 | J104: 12.68137845 | K104: 12.13413948
B105: Cost of fossil fuel (inkluding taxes, levies and grid tariffs) | C105: ct/kWh | D105: ='4. Taxes & levies'!E29 -> 3.368190406 | E105: ='4. Taxes & levies'!F29 -> 3.662184275 | F105: ='4. Taxes & levies'!G29 -> 3.972578265 | G105: ='4. Taxes & levies'!H29 -> 4.287153869 | H105: ='4. Taxes & levies'!I29 -> 4.477474922 | I105: ='4. Taxes & levies'!J29 -> 4.668492911 | J105: ='4. Taxes & levies'!K29 -> 4.8595109 | K105: ='4. Taxes & levies'!L29 -> 5.05052889
B107: Pessimistic | D107: 2016/17 | E107: 2020 | F107: 2025 | G107: 2030 | H107: 2035 | I107: 2040 | J107: 2045 | K107: 2050
B108: Operating cost | C108: €/kW(methane) | D108: ='PtG-Methane'!$D$43*D$109 -> 24 | E108: ='PtG-Methane'!$D$43*E$109 -> 23.5488 | F108: ='PtG-Methane'!$D$43*F$109 -> 23.10608256 | G108: ='PtG-Methane'!$D$43*G$109 -> 22.67168821 | H108: ='PtG-Methane'!$D$43*H$109 -> 22.24546047 | I108: ='PtG-Methane'!$D$43*I$109 -> 21.82724581 | J108: ='PtG-Methane'!$D$43*J$109 -> 21.41689359 | K108: ='PtG-Methane'!$D$43*K$109 -> 21.01425599
B109: Total investment cost | C109: €/kW(methane) | D109: ='PtG-Methane'!$D$37 -> 800 | E109: =D109*(1-'PtG-Methane'!$E$46) -> 784.96 | F109: =E109*(1-'PtG-Methane'!$E$46) -> 770.202752 | G109: =F109*(1-'PtG-Methane'!$E$46) -> 755.7229403 | H109: =G109*(1-'PtG-Methane'!$E$46) -> 741.515349 | I109: =H109*(1-'PtG-Methane'!$E$46) -> 727.5748604 | J109: =I109*(1-'PtG-Methane'!$E$46) -> 713.896453 | K109: =J109*(1-'PtG-Methane'!$E$46) -> 700.4751997
B110: Lifetime | C110: year | D110: ='PtG-Methane'!$D$40 -> 30 | E110: ='PtG-Methane'!$D$40 -> 30 | F110: ='PtG-Methane'!$D$40 -> 30 | G110: ='PtG-Methane'!$D$40 -> 30 | H110: ='PtG-Methane'!$D$40 -> 30 | I110: ='PtG-Methane'!$D$40 -> 30 | J110: ='PtG-Methane'!$D$40 -> 30 | K110: ='PtG-Methane'!$D$40 -> 30
B111: Investment cost per year | C111: €/kW(methane) | D111: =(((1+'Cost of methane'!$C$7)^D$110)*'Cost of methane'!$C$7)/(((1+'Cost of methane'!$C$7)^$D$110)-1)*D$109 -> 58.11912919 | E111: =(((1+'Cost of methane'!$C$7)^E$110)*'Cost of methane'!$C$7)/(((1+'Cost of methane'!$C$7)^$D$110)-1)*E$109 -> 57.02648956 | F111: =(((1+'Cost of methane'!$C$7)^F$110)*'Cost of methane'!$C$7)/(((1+'Cost of methane'!$C$7)^$D$110)-1)*F$109 -> 55.95439156 | G111: =(((1+'Cost of methane'!$C$7)^G$110)*'Cost of methane'!$C$7)/(((1+'Cost of methane'!$C$7)^$D$110)-1)*G$109 -> 54.902449 | H111: =(((1+'Cost of methane'!$C$7)^H$110)*'Cost of methane'!$C$7)/(((1+'Cost of methane'!$C$7)^$D$110)-1)*H$109 -> 53.87028296 | I111: =(((1+'Cost of methane'!$C$7)^I$110)*'Cost of methane'!$C$7)/(((1+'Cost of methane'!$C$7)^$D$110)-1)*I$109 -> 52.85752164 | J111: =(((1+'Cost of methane'!$C$7)^J$110)*'Cost of methane'!$C$7)/(((1+'Cost of methane'!$C$7)^$D$110)-1)*J$109 -> 51.86380023 | K111: =(((1+'Cost of methane'!$C$7)^K$110)*'Cost of methane'!$C$7)/(((1+'Cost of methane'!$C$7)^$D$110)-1)*K$109 -> 50.88876079
B112: Electricity cost of hydrogen electrolysis | C112: ct/kWh(methane) | D112: ='PtG-Methane'!E$64 -> 9.006793747 | E112: ='PtG-Methane'!F$64 -> 7.372183745 | F112: ='PtG-Methane'!G$64 -> 6.487426267 | G112: ='PtG-Methane'!H$64 -> 5.849976568 | H112: ='PtG-Methane'!I$64 -> 5.355256467 | I112: ='PtG-Methane'!J$64 -> 4.939843402 | J112: ='PtG-Methane'!K$64 -> 4.575806811 | K112: ='PtG-Methane'!L$64 -> 4.203526134
B113: Cost of conversion of hydrogen electrolysis | C113: ct/kWh(methane) | D113: ='PtG-Methane'!E$67 -> 7.103615592 | E113: ='PtG-Methane'!F$67 -> 6.599783684 | F113: ='PtG-Methane'!G$67 -> 6.137939526 | G113: ='PtG-Methane'!H$67 -> 5.713881144 | H113: ='PtG-Methane'!I$67 -> 5.323912667 | I113: ='PtG-Methane'!J$67 -> 4.964772061 | J113: ='PtG-Methane'!K$67 -> 4.63357082 | K113: ='PtG-Methane'!L$67 -> 4.327743381
B114: Storage cost for hydrogen | C114: ct/kWh(methane) | D114: =INDEX('PtG-Methane'!$D$73:$I$73,MATCH($C$5&" "&$C$6,'PtG-Methane'!$D$71:$I$71,0)) -> 0.5383092372 | E114: =INDEX('PtG-Methane'!$D$73:$I$73,MATCH($C$5&" "&$C$6,'PtG-Methane'!$D$71:$I$71,0)) -> 0.5383092372 | F114: =INDEX('PtG-Methane'!$D$73:$I$73,MATCH($C$5&" "&$C$6,'PtG-Methane'!$D$71:$I$71,0)) -> 0.5383092372 | G114: =INDEX('PtG-Methane'!$D$73:$I$73,MATCH($C$5&" "&$C$6,'PtG-Methane'!$D$71:$I$71,0)) -> 0.5383092372 | H114: =INDEX('PtG-Methane'!$D$73:$I$73,MATCH($C$5&" "&$C$6,'PtG-Methane'!$D$71:$I$71,0)) -> 0.5383092372 | I114: =INDEX('PtG-Methane'!$D$73:$I$73,MATCH($C$5&" "&$C$6,'PtG-Methane'!$D$71:$I$71,0)) -> 0.5383092372 | J114: =INDEX('PtG-Methane'!$D$73:$I$73,MATCH($C$5&" "&$C$6,'PtG-Methane'!$D$71:$I$71,0)) -> 0.5383092372 | K114: =INDEX('PtG-Methane'!$D$73:$I$73,MATCH($C$5&" "&$C$6,'PtG-Methane'!$D$71:$I$71,0)) -> 0.5383092372
B115: CO2 cost | C115: ct/kWh(methane) | D115: =IF($C$8='Auxiliary data'!$F$6,'PtG-Methane'!E$98,IF($C$5='Auxiliary data'!$C$8,'PtG-Methane'!$D$93,'PtG-Methane'!$D$92)) -> 2.891936031 | E115: =IF($C$8='Auxiliary data'!$F$6,'PtG-Methane'!F$98,IF($C$5='Auxiliary data'!$C$8,'PtG-Methane'!$D$93,'PtG-Methane'!$D$92)) -> 2.856116994 | F115: =IF($C$8='Auxiliary data'!$F$6,'PtG-Methane'!G$98,IF($C$5='Auxiliary data'!$C$8,'PtG-Methane'!$D$93,'PtG-Methane'!$D$92)) -> 2.838097601 | G115: =IF($C$8='Auxiliary data'!$F$6,'PtG-Methane'!H$98,IF($C$5='Auxiliary data'!$C$8,'PtG-Methane'!$D$93,'PtG-Methane'!$D$92)) -> 2.054142589 | H115: =IF($C$8='Auxiliary data'!$F$6,'PtG-Methane'!I$98,IF($C$5='Auxiliary data'!$C$8,'PtG-Methane'!$D$93,'PtG-Methane'!$D$92)) -> 2.044693396 | I115: =IF($C$8='Auxiliary data'!$F$6,'PtG-Methane'!J$98,IF($C$5='Auxiliary data'!$C$8,'PtG-Methane'!$D$93,'PtG-Methane'!$D$92)) -> 2.036782443 | J115: =IF($C$8='Auxiliary data'!$F$6,'PtG-Methane'!K$98,IF($C$5='Auxiliary data'!$C$8,'PtG-Methane'!$D$93,'PtG-Methane'!$D$92)) -> 2.029750484 | K115: =IF($C$8='Auxiliary data'!$F$6,'PtG-Methane'!L$98,IF($C$5='Auxiliary data'!$C$8,'PtG-Methane'!$D$93,'PtG-Methane'!$D$92)) -> 2.021839531
B116: Investment cost | C116: ct/kWh(methane) | D116: =D$111/'PtG-Methane'!$C$4*100 -> 0.7264891149 | E116: =E$111/'PtG-Methane'!$C$4*100 -> 0.7128311195 | F116: =F$111/'PtG-Methane'!$C$4*100 -> 0.6994298945 | G116: =G$111/'PtG-Methane'!$C$4*100 -> 0.6862806125 | H116: =H$111/'PtG-Methane'!$C$4*100 -> 0.673378537 | I116: =I$111/'PtG-Methane'!$C$4*100 -> 0.6607190205 | J116: =J$111/'PtG-Methane'!$C$4*100 -> 0.6482975029 | K116: =K$111/'PtG-Methane'!$C$4*100 -> 0.6361095098
B117: Operating cost | C117: ct/kWh(methane) | D117: =D$108/'PtG-Methane'!$C$4*100 -> 0.3 | E117: =E$108/'PtG-Methane'!$C$4*100 -> 0.29436 | F117: =F$108/'PtG-Methane'!$C$4*100 -> 0.288826032 | G117: =G$108/'PtG-Methane'!$C$4*100 -> 0.2833961026 | H117: =H$108/'PtG-Methane'!$C$4*100 -> 0.2780682559 | I117: =I$108/'PtG-Methane'!$C$4*100 -> 0.2728405727 | J117: =J$108/'PtG-Methane'!$C$4*100 -> 0.2677111699 | K117: =K$108/'PtG-Methane'!$C$4*100 -> 0.2626781999
B118: Transport cost | C118: ct/kWh(methane) | D118: =INDEX('3. Transport cost'!$C$16:$J$19,MATCH($C$5,'3. Transport cost'!$B$16:$B$19,0),MATCH(D$71,'3. Transport cost'!$C$15:$J$15,0)) -> 0.9548302368 | E118: =INDEX('3. Transport cost'!$C$16:$J$19,MATCH($C$5,'3. Transport cost'!$B$16:$B$19,0),MATCH(E$71,'3. Transport cost'!$C$15:$J$15,0)) -> 0.9548302368 | F118: =INDEX('3. Transport cost'!$C$16:$J$19,MATCH($C$5,'3. Transport cost'!$B$16:$B$19,0),MATCH(F$71,'3. Transport cost'!$C$15:$J$15,0)) -> 0.9487331693 | G118: =INDEX('3. Transport cost'!$C$16:$J$19,MATCH($C$5,'3. Transport cost'!$B$16:$B$19,0),MATCH(G$71,'3. Transport cost'!$C$15:$J$15,0)) -> 0.939587568 | H118: =INDEX('3. Transport cost'!$C$16:$J$19,MATCH($C$5,'3. Transport cost'!$B$16:$B$19,0),MATCH(H$71,'3. Transport cost'!$C$15:$J$15,0)) -> 0.939587568 | I118: =INDEX('3. Transport cost'!$C$16:$J$19,MATCH($C$5,'3. Transport cost'!$B$16:$B$19,0),MATCH(I$71,'3. Transport cost'!$C$15:$J$15,0)) -> 0.9091022304 | J118: =INDEX('3. Transport cost'!$C$16:$J$19,MATCH($C$5,'3. Transport cost'!$B$16:$B$19,0),MATCH(J$71,'3. Transport cost'!$C$15:$J$15,0)) -> 0.9091022304 | K118: =INDEX('3. Transport cost'!$C$16:$J$19,MATCH($C$5,'3. Transport cost'!$B$16:$B$19,0),MATCH(K$71,'3. Transport cost'!$C$15:$J$15,0)) -> 0.8786168928
B119: Cost of methane (including transport) | C119: ct/kWh(methane) | D119: =SUM(D112:D118) -> 21.52197396 | E119: =SUM(E112:E118) -> 19.32841502 | F119: 17.93876173 | G119: 16.06557382 | H119: 15.15320613 | I119: 14.32236897 | J119: 13.60254826 | K119: 12.86882289
B120: Taxes and levies (synthetic methane) | C120: ct/kWh(methane) | D120: ='4. Taxes & levies'!Q27 -> 0 | E120: ='4. Taxes & levies'!R27 -> 0 | F120: ='4. Taxes & levies'!S27 -> 0 | G120: ='4. Taxes & levies'!T27 -> 0 | H120: ='4. Taxes & levies'!U27 -> 0 | I120: ='4. Taxes & levies'!V27 -> 0 | J120: ='4. Taxes & levies'!W27 -> 0 | K120: ='4. Taxes & levies'!X27 -> 0
B121: Grid tariffs/distribution cost | C121: ct/kWh(methane) | D121: =SUM('4. Taxes & levies'!$D$17:$D$18) -> 2.02 | E121: =SUM('4. Taxes & levies'!$D$17:$D$18) -> 2.02 | F121: =SUM('4. Taxes & levies'!$D$17:$D$18) -> 2.02 | G121: =SUM('4. Taxes & levies'!$D$17:$D$18) -> 2.02 | H121: =SUM('4. Taxes & levies'!$D$17:$D$18) -> 2.02 | I121: =SUM('4. Taxes & levies'!$D$17:$D$18) -> 2.02 | J121: =SUM('4. Taxes & levies'!$D$17:$D$18) -> 2.02 | K121: =SUM('4. Taxes & levies'!$D$17:$D$18) -> 2.02
B122: Total cost of methane (including taxes, levies and grid tariffs) | C122: ct/kWh(methane) | D122: =SUM(D119:D121) -> 23.54197396 | E122: =SUM(E119:E121) -> 21.34841502 | F122: 19.95876173 | G122: 18.08557382 | H122: 17.17320613 | I122: 16.34236897 | J122: 15.62254826 | K122: 14.88882289
B123: Cost of fossil fuel (including taxes, levies and grid tariffs) | C123: ct/kWh | D123: ='4. Taxes & levies'!E30 -> 3.368190406 | E123: ='4. Taxes & levies'!F30 -> 3.886753043 | F123: ='4. Taxes & levies'!G30 -> 4.372620273 | G123: ='4. Taxes & levies'!H30 -> 4.858487504 | H123: ='4. Taxes & levies'!I30 -> 5.101421119 | I123: ='4. Taxes & levies'!J30 -> 5.344354734 | J123: ='4. Taxes & levies'!K30 -> 5.587288349 | K123: ='4. Taxes & levies'!L30 -> 5.830221965

Sheet Cost of synthetic liquid fuel
B1: Cost elements of liquid synthetic fuels and total cost of fuels depending on the proportion of blended synthetic fuels
B2: ="Scenario: " & $C$4 & "; origin: " & $C$5 & "; source: " & $C$6 & "; WACC: " & $C$7 *100 &"%" -> Scenario: Reference; origin: North Africa; source: PV; WACC: 6%
B3: Underlying assumptions - to be adjusted in the 'Control Panel'
B4: Scenario | C4: ='Control Panel'!$C$4:$E$4 -> Reference
B5: Origin of the synthetic fuel (country/region) | C5: ='Control Panel'!$C$5:$E$5 -> North Africa
B6: Renewable energy source | C6: ='Control Panel'!$C$6:$E$6 -> PV
B7: Cost of capital (WACC) | C7: ='Control Panel'!$C$8:$E$8 -> 0.06
B8: Fossil fuel for blending | C8: ='Control Panel'!$C$9:$E$9 -> Premium petrol
B9: Method of CO2 extraction | C9: ='Control Panel'!$C$7:$E$7 -> Direct Air Capture - TSA
B10: Technology of hydrogen electrolysis | C10: ='H2 electrolysis'!$C$4 -> Low-temperature
B11: Taxes and levies | C11: Default: No taxes/levies. Can be adjusted in '4. Taxes&levies'
B12: Grid connection costs for offshore wind in North and Baltic Seas | C12: Default: included. Can be adjusted in 'LCOE renewables'
B14: Underlying assumptions - to be adjusted in 'H2 electrolysis'
B15: Technology of hydrogen electrolysis | C15: ='H2 electrolysis'!C4 -> Low-temperature
B16: Investment cost (2016/17) | C16: €/kWel
B17: - Low-temperature | C17: ='H2 electrolysis'!C6 -> 800
B18: - High-temperature | C18: ='H2 electrolysis'!C7 -> 1000
B19: Selection only in the reference scenario | C19: Low-temperature | D19: High-temperature
B20: Relative cost decline over 5 years | C20: ='H2 electrolysis'!C11 -> 0.079 | D20: ='H2 electrolysis'!D11 -> 0.0703
B22: Underlying assumptions - to be adjusted in 'PtL'
B23: Expected full-load hours per year | C23: =PtL!C4 -> 8000
B24: Investment cost (2016/17), €/kW | C24: =PtL!C5 -> 850
B25: Relative cost decline over 5 years | C25: =PtL!C8 -> 0.073
B27: Table for Figure 1 - Cost elements of synthetic liquid fuels - by country and renewable energy source
B29: =C4&": "&C5&"-"&C6 -> Reference: North Africa-PV | D29: 2016/17 | E29: 2020 | F29: 2025 | G29: 2030 | H29: 2035 | I29: 2040 | J29: 2045 | K29: 2050
B30: Electricity cost of hydrogen electrolysis | C30: ct/kWh(PtL) | D30: =IF($C$4="Optimistic",D$77,IF($C$4="Reference",D$95,D$113)) -> 7.977855433 | E30: 6.393221621 | F30: 5.45837061 | G30: 4.743379739 | H30: 4.083908957 | I30: 3.593255332 | J30: 3.198659786 | K30: 2.836714411
B31: Conversion via hydrogen electrolysis | C31: ct/kWh(PtL) | D31: =IF(D30>0,IF($C$4="Optimistic",D$78,IF($C$4="Reference",D$96,D$114)),NA()) -> 7.112426433 | E31: 6.341504429 | F31: 5.659910226 | G31: 5.056413302 | H31: 4.521336295 | I31: 4.046316425 | J31: 3.624107765 | K31: 3.248416575
B32: Conversion to liquid fuel (including H2 storage) | C32: ct/kWh(PtL) | D32: =IF(D30>0,IF($C$4="Optimistic",SUM(D$79:D$82),IF($C$4="Reference",SUM(D$97:D$100),SUM(D$115:D$118))),NA()) -> 5.302716653 | E32: 5.158341418 | F32: 5.047500791 | G32: 4.069741694 | H32: 3.978506098 | I32: 3.899119783 | J32: 3.827923837 | K32: 3.761374263
B33: Transport | C33: ct/kWh(PtL) | D33: =IF(D30>0,IF($C$4="Optimistic",D$83,IF($C$4="Reference",D$101,D$119)),NA()) -> 0.02192814627 | E33: 0.02192814627 | F33: 0.02192814627 | G33: 0.02192814627 | H33: 0.02192814627 | I33: 0.02192814627 | J33: 0.02192814627 | K33: 0.02192814627
B34: Taxes and levies | C34: ct/kWh(PtL) | D34: =IF(D30>0,IF($C$4="Optimistic",D$85,IF($C$4="Reference",D$103,D$121)),NA()) -> 0 | E34: 0 | F34: 0 | G34: 0 | H34: 0 | I34: 0 | J34: 0 | K34: 0
B35: Grid/distribution | C35: ct/kWh(PtL) | D35: =IF(D30>0,IF($C$4="Optimistic",D$86,IF($C$4="Reference",D$104,D$122)),NA()) -> 1 | E35: 1 | F35: 1 | G35: 1 | H35: 1 | I35: 1 | J35: 1 | K35: 1
B36: Total cost of synthetic liquid fuel | C36: ct/kWh(PtL) | D36: =SUM(D30:D35) -> 21.41492667 | E36: 18.91499561 | F36: 17.18770977 | G36: =SUM(G30:G35) -> 14.89146288 | H36: 13.6056795 | I36: 12.56061969 | J36: 11.67261953 | K36: 10.8684334
B38: Table for Figure 2 - Total cost of the final product (including transport, taxes and levies, distribution costs) depending on the proportion of blended synthetic liquid fuel
B40: =$C$5&"-"&$C$4&"-"&$C$6 -> North Africa-Reference-PV | C40: 2016/17 | D40: 2016/17 | E40: 2016/17 | F40: 2016/17 | G40: 2016/17 | H40: 2020 | I40: 2020 | J40: 2020 | K40: 2020 | L40: 2020 | M40: 2025 | N40: 2025 | O40: 2025 | P40: 2025 | Q40: 2025 | R40: 2030 | S40: 2030 | T40: 2030 | U40: 2030 | V40: 2030 | W40: 2035 | X40: 2035 | Y40: 2035 | Z40: 2035 | AA40: 2035 | AB40: 2040 | AC40: 2040 | AD40: 2040 | AE40: 2040 | AF40: 2040 | AG40: 2045 | AH40: 2045 | AI40: 2045 | AJ40: 2045 | AK40: 2045 | AL40: 2050 | AM40: 2050 | AN40: 2050 | AO40: 2050 | AP40: 2050
C41: 2016/17 | H41: 2020 | M41: 2025 | R41: 2030 | W41: 2035 | AB41: 2040 | AG41: 2045 | AL41: 2050
B42: Blending ratio | C42: 0 | D42: 0.25 | E42: 0.5 | F42: 0.75 | G42: 1 | H42: 0 | I42: 0.25 | J42: 0.5 | K42: 0.75 | L42: 1 | M42: 0 | N42: 0.25 | O42: 0.5 | P42: 0.75 | Q42: 1 | R42: 0 | S42: 0.25 | T42: 0.5 | U42: 0.75 | V42: 1 | W42: 0 | X42: 0.25 | Y42: 0.5 | Z42: 0.75 | AA42: 1 | AB42: 0 | AC42: 0.25 | AD42: 0.5 | AE42: 0.75 | AF42: 1 | AG42: 0 | AH42: 0.25 | AI42: 0.5 | AJ42: 0.75 | AK42: 1 | AL42: 0 | AM42: 0.25 | AN42: 0.5 | AO42: 0.75 | AP42: 1
B43: Scenario: Optimistic | C43: =C42*C47+(1-C42)*C48 -> 4.865 | D43: 8.847242502 | E43: 12.829485 | F43: 16.81172751 | G43: 20.79397001 | H43: 5.17314806 | I43: 8.259176323 | J43: 11.34520459 | K43: 14.43123285 | L43: 17.51726111 | M43: 5.300284718 | N43: 7.770029532 | O43: 10.23977435 | P43: 12.70951916 | Q43: 15.17926397 | R43: 5.419624713 | S43: 7.172400975 | T43: 8.925177237 | U43: 10.6779535 | V43: 12.43072976 | W43: 5.544162483 | X43: 6.845347428 | Y43: 8.146532373 | Z43: 9.447717318 | AA43: 10.74890226 | AB43: 5.66740081 | AC43: 6.623371832 | AD43: 7.579342853 | AE43: 8.535313875 | AF43: 9.491284896 | AG43: 5.790639136 | AH43: 6.469612439 | AI43: 7.148585742 | AJ43: 7.827559045 | AK43: 8.506532348 | AL43: 5.913877463 | AM43: 6.359477092 | AN43: 6.80507672 | AO43: 7.250676349 | AP43: 7.696275977
B44: Scenario: Reference | C44: =C42*C49+(1-C42)*C50 -> 4.865 | D44: 9.002481666 | E44: 13.13996333 | F44: 17.277445 | G44: 21.41492667 | H44: 5.656175123 | I44: =I42*I49+(1-I42)*I50 -> 8.970880246 | J44: 12.28558537 | K44: 15.60029049 | L44: 18.91499561 | M44: 6.424816923 | N44: 9.115540135 | O44: 11.80626335 | P44: 14.49698656 | Q44: 17.18770977 | R44: 7.189560391 | S44: 9.115036014 | T44: 11.04051164 | U44: 12.96598726 | V44: 14.89146288 | W44: 7.549526964 | X44: 9.063565097 | Y44: 10.57760323 | Z44: 12.09164136 | AA44: 13.6056795 | AB44: 7.908843815 | AC44: 9.071787783 | AD44: 10.23473175 | AE44: 11.39767572 | AF44: 12.56061969 | AG44: 8.268160666 | AH44: 9.119275383 | AI44: 9.9703901 | AJ44: 10.82150482 | AK44: 11.67261953 | AL44: =AL42*AL49+(1-AL42)*AL50 -> 8.627477517 | AM44: 9.187716486 | AN44: 9.747955456 | AO44: 10.30819443 | AP44: 10.8684334
B45: Scenario: Pessimistic | C45: =C42*C51+(1-C42)*C52 -> 4.865 | D45: 9.274812093 | E45: 13.68462419 | F45: 18.09443628 | G45: 22.50424837 | H45: 6.139202186 | I45: =I42*I51+(1-I42)*I52 -> 9.676393329 | J45: 13.21358447 | K45: 16.75077561 | L45: 20.28796676 | M45: 7.549349128 | N45: 10.38632057 | O45: 13.22329201 | P45: 16.06026346 | Q45: 18.8972349 | R45: 8.959496069 | S45: 10.9499518 | T45: 12.94040754 | U45: 14.93086327 | V45: 16.921319 | W45: 9.554891444 | X45: 11.1684073 | Y45: 12.78192315 | Z45: 14.395439 | AA45: 16.00895485 | AB45: 10.15028682 | AC45: 11.41515618 | AD45: 12.68002553 | AE45: 13.94489489 | AF45: 15.20976424 | AG45: 10.74568219 | AH45: 11.68218167 | AI45: 12.61868115 | AJ45: 13.55518063 | AK45: 14.49168011 | AL45: =AL42*AL51+(1-AL42)*AL52 -> 11.34107757 | AM45: 11.9531118 | AN45: 12.56514604 | AO45: 13.17718027 | AP45: 13.78921451
B47: Optimistic - Synthetic | C47: =INDEX($D$87:$K$87,MATCH(C$40,$D$72:$K$72,0)) -> 20.79397001 | D47: =INDEX($D$87:$K$87,MATCH(D$40,$D$72:$K$72,0)) -> 20.79397001 | E47: =INDEX($D$87:$K$87,MATCH(E$40,$D$72:$K$72,0)) -> 20.79397001 | F47: 20.79397001 | G47: 20.79397001 | H47: 17.51726111 | I47: 17.51726111 | J47: 17.51726111 | K47: 17.51726111 | L47: 17.51726111 | M47: 15.17926397 | N47: 15.17926397 | O47: 15.17926397 | P47: 15.17926397 | Q47: 15.17926397 | R47: 12.43072976 | S47: 12.43072976 | T47: 12.43072976 | U47: 12.43072976 | V47: 12.43072976 | W47: 10.74890226 | X47: 10.74890226 | Y47: 10.74890226 | Z47: 10.74890226 | AA47: 10.74890226 | AB47: 9.491284896 | AC47: 9.491284896 | AD47: 9.491284896 | AE47: 9.491284896 | AF47: 9.491284896 | AG47: 8.506532348 | AH47: 8.506532348 | AI47: 8.506532348 | AJ47: 8.506532348 | AK47: 8.506532348 | AL47: 7.696275977 | AM47: 7.696275977 | AN47: 7.696275977 | AO47: 7.696275977 | AP47: 7.696275977
B48: Optimistic - Conventionel | C48: =INDEX($D$88:$K$88,MATCH(C$40,$D$72:$K$72,0)) -> 4.865 | D48: 4.865 | E48: 4.865 | F48: 4.865 | G48: 4.865 | H48: 5.17314806 | I48: 5.17314806 | J48: 5.17314806 | K48: 5.17314806 | L48: 5.17314806 | M48: 5.300284718 | N48: 5.300284718 | O48: 5.300284718 | P48: 5.300284718 | Q48: 5.300284718 | R48: 5.419624713 | S48: 5.419624713 | T48: 5.419624713 | U48: 5.419624713 | V48: 5.419624713 | W48: 5.544162483 | X48: 5.544162483 | Y48: 5.544162483 | Z48: 5.544162483 | AA48: 5.544162483 | AB48: 5.66740081 | AC48: 5.66740081 | AD48: 5.66740081 | AE48: 5.66740081 | AF48: 5.66740081 | AG48: 5.790639136 | AH48: 5.790639136 | AI48: 5.790639136 | AJ48: 5.790639136 | AK48: 5.790639136 | AL48: 5.913877463 | AM48: 5.913877463 | AN48: 5.913877463 | AO48: 5.913877463 | AP48: 5.913877463
B49: Reference - Synthetic | C49: =INDEX($D$105:$K$105,MATCH(C$40,$D$72:$K$72,0)) -> 21.41492667 | D49: 21.41492667 | E49: 21.41492667 | F49: 21.41492667 | G49: 21.41492667 | H49: 18.91499561 | I49: 18.91499561 | J49: 18.91499561 | K49: 18.91499561 | L49: 18.91499561 | M49: 17.18770977 | N49: 17.18770977 | O49: 17.18770977 | P49: 17.18770977 | Q49: 17.18770977 | R49: 14.89146288 | S49: 14.89146288 | T49: 14.89146288 | U49: 14.89146288 | V49: 14.89146288 | W49: 13.6056795 | X49: 13.6056795 | Y49: 13.6056795 | Z49: 13.6056795 | AA49: 13.6056795 | AB49: 12.56061969 | AC49: 12.56061969 | AD49: 12.56061969 | AE49: 12.56061969 | AF49: 12.56061969 | AG49: 11.67261953 | AH49: 11.67261953 | AI49: 11.67261953 | AJ49: 11.67261953 | AK49: 11.67261953 | AL49: 10.8684334 | AM49: 10.8684334 | AN49: 10.8684334 | AO49: 10.8684334 | AP49: 10.8684334
B50: Reference - Conventionel | C50: =INDEX($D$106:$K$106,MATCH(C$40,$D$72:$K$72,0)) -> 4.865 | D50: =INDEX($D$106:$K$106,MATCH(D$40,$D$72:$K$72,0)) -> 4.865 | E50: 4.865 | F50: 4.865 | G50: 4.865 | H50: 5.656175123 | I50: 5.656175123 | J50: 5.656175123 | K50: 5.656175123 | L50: 5.656175123 | M50: 6.424816923 | N50: 6.424816923 | O50: 6.424816923 | P50: 6.424816923 | Q50: 6.424816923 | R50: 7.189560391 | S50: =INDEX($D$106:$K$106,MATCH(S$40,$D$72:$K$72,0)) -> 7.189560391 | T50: 7.189560391 | U50: 7.189560391 | V50: 7.189560391 | W50: 7.549526964 | X50: 7.549526964 | Y50: 7.549526964 | Z50: 7.549526964 | AA50: 7.549526964 | AB50: 7.908843815 | AC50: 7.908843815 | AD50: 7.908843815 | AE50: 7.908843815 | AF50: 7.908843815 | AG50: 8.268160666 | AH50: 8.268160666 | AI50: 8.268160666 | AJ50: 8.268160666 | AK50: 8.268160666 | AL50: 8.627477517 | AM50: 8.627477517 | AN50: 8.627477517 | AO50: 8.627477517 | AP50: 8.627477517
B51: Pessimistic - Synthetic | C51: =INDEX($D$123:$K$123,MATCH(C$40,$D$72:$K$72,0)) -> 22.50424837 | D51: 22.50424837 | E51: 22.50424837 | F51: 22.50424837 | G51: 22.50424837 | H51: 20.28796676 | I51: 20.28796676 | J51: 20.28796676 | K51: 20.28796676 | L51: 20.28796676 | M51: 18.8972349 | N51: 18.8972349 | O51: 18.8972349 | P51: 18.8972349 | Q51: 18.8972349 | R51: 16.921319 | S51: 16.921319 | T51: 16.921319 | U51: 16.921319 | V51: 16.921319 | W51: 16.00895485 | X51: 16.00895485 | Y51: 16.00895485 | Z51: 16.00895485 | AA51: 16.00895485 | AB51: 15.20976424 | AC51: 15.20976424 | AD51: 15.20976424 | AE51: 15.20976424 | AF51: 15.20976424 | AG51: 14.49168011 | AH51: 14.49168011 | AI51: 14.49168011 | AJ51: 14.49168011 | AK51: 14.49168011 | AL51: 13.78921451 | AM51: 13.78921451 | AN51: 13.78921451 | AO51: 13.78921451 | AP51: 13.78921451
B52: Pessimistic - Conventionel | C52: =INDEX($D$124:$K$124,MATCH(C$40,$D$72:$K$72,0)) -> 4.865 | D52: 4.865 | E52: 4.865 | F52: 4.865 | G52: 4.865 | H52: 6.139202186 | I52: 6.139202186 | J52: 6.139202186 | K52: 6.139202186 | L52: 6.139202186 | M52: 7.549349128 | N52: 7.549349128 | O52: 7.549349128 | P52: 7.549349128 | Q52: 7.549349128 | R52: 8.959496069 | S52: =INDEX($D$124:$K$124,MATCH(S$40,$D$72:$K$72,0)) -> 8.959496069 | T52: 8.959496069 | U52: 8.959496069 | V52: 8.959496069 | W52: 9.554891444 | X52: 9.554891444 | Y52: 9.554891444 | Z52: 9.554891444 | AA52: 9.554891444 | AB52: 10.15028682 | AC52: 10.15028682 | AD52: 10.15028682 | AE52: 10.15028682 | AF52: 10.15028682 | AG52: 10.74568219 | AH52: 10.74568219 | AI52: 10.74568219 | AJ52: 10.74568219 | AK52: 10.74568219 | AL52: 11.34107757 | AM52: 11.34107757 | AN52: 11.34107757 | AO52: 11.34107757 | AP52: 11.34107757
B54: Table for Figure 3 - Cost of synthetic liquid fuels (including transport, excluding taxes/levies) - all countries and renewable energy sources
C56: 2016/17 | D56: 2020 | E56: 2025 | F56: 2030 | G56: 2035 | H56: 2040 | I56: 2045 | J56: 2050
C57: =C$56&$C$5&"-"&$C$6 -> 2016/17North Africa-PV | D57: 2020North Africa-PV | E57: 2025North Africa-PV | F57: 2030North Africa-PV | G57: 2035North Africa-PV | H57: 2040North Africa-PV | I57: 2045North Africa-PV | J57: 2050North Africa-PV | K57: t
B58: Optimistic | C58: =INDEX($D$84:$K$84,MATCH(C$56,$D$72:$K$72,0)) -> 19.79397001 | D58: =INDEX($D$84:$K$84,MATCH(D$56,$D$72:$K$72,0)) -> 16.51726111 | E58: 14.17926397 | F58: 11.43072976 | G58: 9.748902263 | H58: 8.491284896 | I58: 7.506532348 | J58: 6.696275977
B59: Reference | C59: =INDEX($D$102:$K$102,MATCH(C$56,$D$72:$K$72,0)) -> 20.41492667 | D59: =INDEX($D$102:$K$102,MATCH(D$56,$D$72:$K$72,0)) -> 17.91499561 | E59: 16.18770977 | F59: 13.89146288 | G59: 12.6056795 | H59: 11.56061969 | I59: 10.67261953 | J59: 9.868433395
B60: Pessimistic | C60: =INDEX($D$120:$K$120,MATCH(C$56,$D$72:$K$72,0)) -> 21.50424837 | D60: =INDEX($D$120:$K$120,MATCH(D$56,$D$72:$K$72,0)) -> 19.28796676 | E60: 17.8972349 | F60: 15.921319 | G60: 15.00895485 | H60: 14.20976424 | I60: 13.49168011 | J60: 12.78921451
C62: 2016/17 | D62: 2016/17 | E62: 2016/17 | F62: 2016/17 | G62: 2016/17 | H62: 2016/17 | I62: 2020 | J62: 2020 | K62: 2020 | L62: 2020 | M62: 2020 | N62: 2020 | O62: 2030 | P62: 2030 | Q62: 2030 | R62: 2030 | S62: 2030 | T62: 2030 | U62: 2040 | V62: 2040 | W62: 2040 | X62: 2040 | Y62: 2040 | Z62: 2040 | AA62: 2050 | AB62: 2050 | AC62: 2050 | AD62: 2050 | AE62: 2050 | AF62: 2050
C63: 2016/17 | I63: 2020 | O63: 2030 | U63: 2040 | AA63: 2050
C64: North Africa-PV | D64: Middle East-PV | E64: North Africa-PV/wind combination | F64: Middle East-PV/wind combination | G64: Iceland-geothermal/hydropower | H64: North and Baltic Seas-offshore wind | I64: North Africa-PV | J64: Middle East-PV | K64: North Africa-PV/wind combination | L64: Middle East-PV/wind combination | M64: Iceland-geothermal/hydropower | N64: North and Baltic Seas-offshore wind | O64: North Africa-PV | P64: Middle East-PV | Q64: North Africa-PV/wind combination | R64: Middle East-PV/wind combination | S64: Iceland-geothermal/hydropower | T64: North and Baltic Seas-offshore wind | U64: North Africa-PV | V64: Middle East-PV | W64: North Africa-PV/wind combination | X64: Middle East-PV/wind combination | Y64: Iceland-geothermal/hydropower | Z64: North and Baltic Seas-offshore wind | AA64: North Africa-PV | AB64: Middle East-PV | AC64: North Africa-PV/wind combination | AD64: Middle East-PV/wind combination | AE64: Iceland-geothermal/hydropower | AF64: North and Baltic Seas-offshore wind
B65: Optimistic | C65: =INDEX('Auxiliary data'!$C$25:$AX$27,MATCH($B65,'Auxiliary data'!$B$25:$B$27,0),MATCH(C$62&C$64,'Auxiliary data'!$C$24:$AX$24,0)) -> 19.79397001 | D65: =INDEX('Auxiliary data'!$C$25:$AX$27,MATCH($B65,'Auxiliary data'!$B$25:$B$27,0),MATCH(D$62&D$64,'Auxiliary data'!$C$24:$AX$24,0)) -> 19.25243264 | E65: =INDEX('Auxiliary data'!$C$25:$AX$27,MATCH($B65,'Auxiliary data'!$B$25:$B$27,0),MATCH(E$62&E$64,'Auxiliary data'!$C$24:$AX$24,0)) -> 19.68618783 | F65: =INDEX('Auxiliary data'!$C$25:$AX$27,MATCH($B65,'Auxiliary data'!$B$25:$B$27,0),MATCH(F$62&F$64,'Auxiliary data'!$C$24:$AX$24,0)) -> 21.59674964 | G65: =INDEX('Auxiliary data'!$C$25:$AX$27,MATCH($B65,'Auxiliary data'!$B$25:$B$27,0),MATCH(G$62&G$64,'Auxiliary data'!$C$24:$AX$24,0)) -> 12.0942369 | H65: =INDEX('Auxiliary data'!$C$25:$AX$27,MATCH($B65,'Auxiliary data'!$B$25:$B$27,0),MATCH(H$62&H$64,'Auxiliary data'!$C$24:$AX$24,0)) -> 30.79849015 | I65: =INDEX('Auxiliary data'!$C$25:$AX$27,MATCH($B65,'Auxiliary data'!$B$25:$B$27,0),MATCH(I$62&I$64,'Auxiliary data'!$C$24:$AX$24,0)) -> 16.51726111 | J65: =INDEX('Auxiliary data'!$C$25:$AX$27,MATCH($B65,'Auxiliary data'!$B$25:$B$27,0),MATCH(J$62&J$64,'Auxiliary data'!$C$24:$AX$24,0)) -> 16.09724095 | K65: =INDEX('Auxiliary data'!$C$25:$AX$27,MATCH($B65,'Auxiliary data'!$B$25:$B$27,0),MATCH(K$62&K$64,'Auxiliary data'!$C$24:$AX$24,0)) -> 16.65125944 | L65: =INDEX('Auxiliary data'!$C$25:$AX$27,MATCH($B65,'Auxiliary data'!$B$25:$B$27,0),MATCH(L$62&L$64,'Auxiliary data'!$C$24:$AX$24,0)) -> 18.20968409 | M65: =INDEX('Auxiliary data'!$C$25:$AX$27,MATCH($B65,'Auxiliary data'!$B$25:$B$27,0),MATCH(M$62&M$64,'Auxiliary data'!$C$24:$AX$24,0)) -> 11.24587393 | N65: =INDEX('Auxiliary data'!$C$25:$AX$27,MATCH($B65,'Auxiliary data'!$B$25:$B$27,0),MATCH(N$62&N$64,'Auxiliary data'!$C$24:$AX$24,0)) -> 21.9268811 | O65: =INDEX('Auxiliary data'!$C$25:$AX$27,MATCH($B65,'Auxiliary data'!$B$25:$B$27,0),MATCH(O$62&O$64,'Auxiliary data'!$C$24:$AX$24,0)) -> 11.43072976 | P65: =INDEX('Auxiliary data'!$C$25:$AX$27,MATCH($B65,'Auxiliary data'!$B$25:$B$27,0),MATCH(P$62&P$64,'Auxiliary data'!$C$24:$AX$24,0)) -> 11.16499319 | Q65: =INDEX('Auxiliary data'!$C$25:$AX$27,MATCH($B65,'Auxiliary data'!$B$25:$B$27,0),MATCH(Q$62&Q$64,'Auxiliary data'!$C$24:$AX$24,0)) -> 11.21398798 | R65: =INDEX('Auxiliary data'!$C$25:$AX$27,MATCH($B65,'Auxiliary data'!$B$25:$B$27,0),MATCH(R$62&R$64,'Auxiliary data'!$C$24:$AX$24,0)) -> 12.23780327 | S65: =INDEX('Auxiliary data'!$C$25:$AX$27,MATCH($B65,'Auxiliary data'!$B$25:$B$27,0),MATCH(S$62&S$64,'Auxiliary data'!$C$24:$AX$24,0)) -> 9.071308097 | T65: =INDEX('Auxiliary data'!$C$25:$AX$27,MATCH($B65,'Auxiliary data'!$B$25:$B$27,0),MATCH(T$62&T$64,'Auxiliary data'!$C$24:$AX$24,0)) -> 15.72515176 | U65: =INDEX('Auxiliary data'!$C$25:$AX$27,MATCH($B65,'Auxiliary data'!$B$25:$B$27,0),MATCH(U$62&U$64,'Auxiliary data'!$C$24:$AX$24,0)) -> 8.491284896 | V65: =INDEX('Auxiliary data'!$C$25:$AX$27,MATCH($B65,'Auxiliary data'!$B$25:$B$27,0),MATCH(V$62&V$64,'Auxiliary data'!$C$24:$AX$24,0)) -> 8.332844899 | W65: =INDEX('Auxiliary data'!$C$25:$AX$27,MATCH($B65,'Auxiliary data'!$B$25:$B$27,0),MATCH(W$62&W$64,'Auxiliary data'!$C$24:$AX$24,0)) -> 9.073624426 | X65: =INDEX('Auxiliary data'!$C$25:$AX$27,MATCH($B65,'Auxiliary data'!$B$25:$B$27,0),MATCH(X$62&X$64,'Auxiliary data'!$C$24:$AX$24,0)) -> 9.879293041 | Y65: =INDEX('Auxiliary data'!$C$25:$AX$27,MATCH($B65,'Auxiliary data'!$B$25:$B$27,0),MATCH(Y$62&Y$64,'Auxiliary data'!$C$24:$AX$24,0)) -> 8.114879746 | Z65: =INDEX('Auxiliary data'!$C$25:$AX$27,MATCH($B65,'Auxiliary data'!$B$25:$B$27,0),MATCH(Z$62&Z$64,'Auxiliary data'!$C$24:$AX$24,0)) -> 13.0850628 | AA65: =INDEX('Auxiliary data'!$C$25:$AX$27,MATCH($B65,'Auxiliary data'!$B$25:$B$27,0),MATCH(AA$62&AA$64,'Auxiliary data'!$C$24:$AX$24,0)) -> 6.696275977 | AB65: =INDEX('Auxiliary data'!$C$25:$AX$27,MATCH($B65,'Auxiliary data'!$B$25:$B$27,0),MATCH(AB$62&AB$64,'Auxiliary data'!$C$24:$AX$24,0)) -> 6.602470791 | AC65: =INDEX('Auxiliary data'!$C$25:$AX$27,MATCH($B65,'Auxiliary data'!$B$25:$B$27,0),MATCH(AC$62&AC$64,'Auxiliary data'!$C$24:$AX$24,0)) -> 7.626595137 | AD65: =INDEX('Auxiliary data'!$C$25:$AX$27,MATCH($B65,'Auxiliary data'!$B$25:$B$27,0),MATCH(AD$62&AD$64,'Auxiliary data'!$C$24:$AX$24,0)) -> 8.282675598 | AE65: =INDEX('Auxiliary data'!$C$25:$AX$27,MATCH($B65,'Auxiliary data'!$B$25:$B$27,0),MATCH(AE$62&AE$64,'Auxiliary data'!$C$24:$AX$24,0)) -> 7.387268214 | AF65: =INDEX('Auxiliary data'!$C$25:$AX$27,MATCH($B65,'Auxiliary data'!$B$25:$B$27,0),MATCH(AF$62&AF$64,'Auxiliary data'!$C$24:$AX$24,0)) -> 11.0445936
B66: Reference | C66: =INDEX('Auxiliary data'!$C$25:$AX$27,MATCH($B66,'Auxiliary data'!$B$25:$B$27,0),MATCH(C$62&C$64,'Auxiliary data'!$C$24:$AX$24,0)) -> 20.41492667 | D66: =INDEX('Auxiliary data'!$C$25:$AX$27,MATCH($B66,'Auxiliary data'!$B$25:$B$27,0),MATCH(D$62&D$64,'Auxiliary data'!$C$24:$AX$24,0)) -> 19.84213411 | E66: =INDEX('Auxiliary data'!$C$25:$AX$27,MATCH($B66,'Auxiliary data'!$B$25:$B$27,0),MATCH(E$62&E$64,'Auxiliary data'!$C$24:$AX$24,0)) -> 21.62246171 | F66: =INDEX('Auxiliary data'!$C$25:$AX$27,MATCH($B66,'Auxiliary data'!$B$25:$B$27,0),MATCH(F$62&F$64,'Auxiliary data'!$C$24:$AX$24,0)) -> 22.21064215 | G66: =INDEX('Auxiliary data'!$C$25:$AX$27,MATCH($B66,'Auxiliary data'!$B$25:$B$27,0),MATCH(G$62&G$64,'Auxiliary data'!$C$24:$AX$24,0)) -> 12.09428752 | H66: =INDEX('Auxiliary data'!$C$25:$AX$27,MATCH($B66,'Auxiliary data'!$B$25:$B$27,0),MATCH(H$62&H$64,'Auxiliary data'!$C$24:$AX$24,0)) -> 32.67751122 | I66: =INDEX('Auxiliary data'!$C$25:$AX$27,MATCH($B66,'Auxiliary data'!$B$25:$B$27,0),MATCH(I$62&I$64,'Auxiliary data'!$C$24:$AX$24,0)) -> 17.91499561 | J66: =INDEX('Auxiliary data'!$C$25:$AX$27,MATCH($B66,'Auxiliary data'!$B$25:$B$27,0),MATCH(J$62&J$64,'Auxiliary data'!$C$24:$AX$24,0)) -> 17.43742853 | K66: =INDEX('Auxiliary data'!$C$25:$AX$27,MATCH($B66,'Auxiliary data'!$B$25:$B$27,0),MATCH(K$62&K$64,'Auxiliary data'!$C$24:$AX$24,0)) -> 19.27269527 | L66: =INDEX('Auxiliary data'!$C$25:$AX$27,MATCH($B66,'Auxiliary data'!$B$25:$B$27,0),MATCH(L$62&L$64,'Auxiliary data'!$C$24:$AX$24,0)) -> 19.78938226 | M66: =INDEX('Auxiliary data'!$C$25:$AX$27,MATCH($B66,'Auxiliary data'!$B$25:$B$27,0),MATCH(M$62&M$64,'Auxiliary data'!$C$24:$AX$24,0)) -> 11.51989042 | N66: =INDEX('Auxiliary data'!$C$25:$AX$27,MATCH($B66,'Auxiliary data'!$B$25:$B$27,0),MATCH(N$62&N$64,'Auxiliary data'!$C$24:$AX$24,0)) -> 26.46819601 | O66: =INDEX('Auxiliary data'!$C$25:$AX$27,MATCH($B66,'Auxiliary data'!$B$25:$B$27,0),MATCH(O$62&O$64,'Auxiliary data'!$C$24:$AX$24,0)) -> 13.89146288 | P66: =INDEX('Auxiliary data'!$C$25:$AX$27,MATCH($B66,'Auxiliary data'!$B$25:$B$27,0),MATCH(P$62&P$64,'Auxiliary data'!$C$24:$AX$24,0)) -> 13.5319491 | Q66: =INDEX('Auxiliary data'!$C$25:$AX$27,MATCH($B66,'Auxiliary data'!$B$25:$B$27,0),MATCH(Q$62&Q$64,'Auxiliary data'!$C$24:$AX$24,0)) -> 14.94792884 | R66: =INDEX('Auxiliary data'!$C$25:$AX$27,MATCH($B66,'Auxiliary data'!$B$25:$B$27,0),MATCH(R$62&R$64,'Auxiliary data'!$C$24:$AX$24,0)) -> 15.36063417 | S66: =INDEX('Auxiliary data'!$C$25:$AX$27,MATCH($B66,'Auxiliary data'!$B$25:$B$27,0),MATCH(S$62&S$64,'Auxiliary data'!$C$24:$AX$24,0)) -> 9.722495422 | T66: =INDEX('Auxiliary data'!$C$25:$AX$27,MATCH($B66,'Auxiliary data'!$B$25:$B$27,0),MATCH(T$62&T$64,'Auxiliary data'!$C$24:$AX$24,0)) -> 19.99594729 | U66: =INDEX('Auxiliary data'!$C$25:$AX$27,MATCH($B66,'Auxiliary data'!$B$25:$B$27,0),MATCH(U$62&U$64,'Auxiliary data'!$C$24:$AX$24,0)) -> 11.56061969 | V66: =INDEX('Auxiliary data'!$C$25:$AX$27,MATCH($B66,'Auxiliary data'!$B$25:$B$27,0),MATCH(V$62&V$64,'Auxiliary data'!$C$24:$AX$24,0)) -> 11.28800272 | W66: =INDEX('Auxiliary data'!$C$25:$AX$27,MATCH($B66,'Auxiliary data'!$B$25:$B$27,0),MATCH(W$62&W$64,'Auxiliary data'!$C$24:$AX$24,0)) -> 12.87879218 | X66: =INDEX('Auxiliary data'!$C$25:$AX$27,MATCH($B66,'Auxiliary data'!$B$25:$B$27,0),MATCH(X$62&X$64,'Auxiliary data'!$C$24:$AX$24,0)) -> 13.23018344 | Y66: =INDEX('Auxiliary data'!$C$25:$AX$27,MATCH($B66,'Auxiliary data'!$B$25:$B$27,0),MATCH(Y$62&Y$64,'Auxiliary data'!$C$24:$AX$24,0)) -> 8.950994248 | Z66: =INDEX('Auxiliary data'!$C$25:$AX$27,MATCH($B66,'Auxiliary data'!$B$25:$B$27,0),MATCH(Z$62&Z$64,'Auxiliary data'!$C$24:$AX$24,0)) -> 16.66927912 | AA66: =INDEX('Auxiliary data'!$C$25:$AX$27,MATCH($B66,'Auxiliary data'!$B$25:$B$27,0),MATCH(AA$62&AA$64,'Auxiliary data'!$C$24:$AX$24,0)) -> 9.868433395 | AB66: =INDEX('Auxiliary data'!$C$25:$AX$27,MATCH($B66,'Auxiliary data'!$B$25:$B$27,0),MATCH(AB$62&AB$64,'Auxiliary data'!$C$24:$AX$24,0)) -> 9.65826218 | AC66: =INDEX('Auxiliary data'!$C$25:$AX$27,MATCH($B66,'Auxiliary data'!$B$25:$B$27,0),MATCH(AC$62&AC$64,'Auxiliary data'!$C$24:$AX$24,0)) -> 11.25840457 | AD66: =INDEX('Auxiliary data'!$C$25:$AX$27,MATCH($B66,'Auxiliary data'!$B$25:$B$27,0),MATCH(AD$62&AD$64,'Auxiliary data'!$C$24:$AX$24,0)) -> 11.56207271 | AE66: =INDEX('Auxiliary data'!$C$25:$AX$27,MATCH($B66,'Auxiliary data'!$B$25:$B$27,0),MATCH(AE$62&AE$64,'Auxiliary data'!$C$24:$AX$24,0)) -> 8.296355498 | AF66: =INDEX('Auxiliary data'!$C$25:$AX$27,MATCH($B66,'Auxiliary data'!$B$25:$B$27,0),MATCH(AF$62&AF$64,'Auxiliary data'!$C$24:$AX$24,0)) -> 13.84992262
B67: Pessimistic | C67: =INDEX('Auxiliary data'!$C$25:$AX$27,MATCH($B67,'Auxiliary data'!$B$25:$B$27,0),MATCH(C$62&C$64,'Auxiliary data'!$C$24:$AX$24,0)) -> 21.50424837 | D67: =INDEX('Auxiliary data'!$C$25:$AX$27,MATCH($B67,'Auxiliary data'!$B$25:$B$27,0),MATCH(D$62&D$64,'Auxiliary data'!$C$24:$AX$24,0)) -> 20.83090015 | E67: =INDEX('Auxiliary data'!$C$25:$AX$27,MATCH($B67,'Auxiliary data'!$B$25:$B$27,0),MATCH(E$62&E$64,'Auxiliary data'!$C$24:$AX$24,0)) -> 24.68720391 | F67: =INDEX('Auxiliary data'!$C$25:$AX$27,MATCH($B67,'Auxiliary data'!$B$25:$B$27,0),MATCH(F$62&F$64,'Auxiliary data'!$C$24:$AX$24,0)) -> 23.12396257 | G67: =INDEX('Auxiliary data'!$C$25:$AX$27,MATCH($B67,'Auxiliary data'!$B$25:$B$27,0),MATCH(G$62&G$64,'Auxiliary data'!$C$24:$AX$24,0)) -> 12.09436731 | H67: =INDEX('Auxiliary data'!$C$25:$AX$27,MATCH($B67,'Auxiliary data'!$B$25:$B$27,0),MATCH(H$62&H$64,'Auxiliary data'!$C$24:$AX$24,0)) -> 35.63025886 | I67: =INDEX('Auxiliary data'!$C$25:$AX$27,MATCH($B67,'Auxiliary data'!$B$25:$B$27,0),MATCH(I$62&I$64,'Auxiliary data'!$C$24:$AX$24,0)) -> 19.28796676 | J67: =INDEX('Auxiliary data'!$C$25:$AX$27,MATCH($B67,'Auxiliary data'!$B$25:$B$27,0),MATCH(J$62&J$64,'Auxiliary data'!$C$24:$AX$24,0)) -> 18.7118449 | K67: =INDEX('Auxiliary data'!$C$25:$AX$27,MATCH($B67,'Auxiliary data'!$B$25:$B$27,0),MATCH(K$62&K$64,'Auxiliary data'!$C$24:$AX$24,0)) -> 22.66948773 | L67: =INDEX('Auxiliary data'!$C$25:$AX$27,MATCH($B67,'Auxiliary data'!$B$25:$B$27,0),MATCH(L$62&L$64,'Auxiliary data'!$C$24:$AX$24,0)) -> 21.28586816 | M67: =INDEX('Auxiliary data'!$C$25:$AX$27,MATCH($B67,'Auxiliary data'!$B$25:$B$27,0),MATCH(M$62&M$64,'Auxiliary data'!$C$24:$AX$24,0)) -> 11.72555365 | N67: =INDEX('Auxiliary data'!$C$25:$AX$27,MATCH($B67,'Auxiliary data'!$B$25:$B$27,0),MATCH(N$62&N$64,'Auxiliary data'!$C$24:$AX$24,0)) -> 33.17297582 | O67: =INDEX('Auxiliary data'!$C$25:$AX$27,MATCH($B67,'Auxiliary data'!$B$25:$B$27,0),MATCH(O$62&O$64,'Auxiliary data'!$C$24:$AX$24,0)) -> 15.921319 | P67: =INDEX('Auxiliary data'!$C$25:$AX$27,MATCH($B67,'Auxiliary data'!$B$25:$B$27,0),MATCH(P$62&P$64,'Auxiliary data'!$C$24:$AX$24,0)) -> 15.45191945 | Q67: =INDEX('Auxiliary data'!$C$25:$AX$27,MATCH($B67,'Auxiliary data'!$B$25:$B$27,0),MATCH(Q$62&Q$64,'Auxiliary data'!$C$24:$AX$24,0)) -> 19.42379077 | R67: =INDEX('Auxiliary data'!$C$25:$AX$27,MATCH($B67,'Auxiliary data'!$B$25:$B$27,0),MATCH(R$62&R$64,'Auxiliary data'!$C$24:$AX$24,0)) -> 18.22720676 | S67: =INDEX('Auxiliary data'!$C$25:$AX$27,MATCH($B67,'Auxiliary data'!$B$25:$B$27,0),MATCH(S$62&S$64,'Auxiliary data'!$C$24:$AX$24,0)) -> 10.18083886 | T67: =INDEX('Auxiliary data'!$C$25:$AX$27,MATCH($B67,'Auxiliary data'!$B$25:$B$27,0),MATCH(T$62&T$64,'Auxiliary data'!$C$24:$AX$24,0)) -> 27.20718243 | U67: =INDEX('Auxiliary data'!$C$25:$AX$27,MATCH($B67,'Auxiliary data'!$B$25:$B$27,0),MATCH(U$62&U$64,'Auxiliary data'!$C$24:$AX$24,0)) -> 14.20976424 | V67: =INDEX('Auxiliary data'!$C$25:$AX$27,MATCH($B67,'Auxiliary data'!$B$25:$B$27,0),MATCH(V$62&V$64,'Auxiliary data'!$C$24:$AX$24,0)) -> 13.81274301 | W67: =INDEX('Auxiliary data'!$C$25:$AX$27,MATCH($B67,'Auxiliary data'!$B$25:$B$27,0),MATCH(W$62&W$64,'Auxiliary data'!$C$24:$AX$24,0)) -> 17.73775578 | X67: =INDEX('Auxiliary data'!$C$25:$AX$27,MATCH($B67,'Auxiliary data'!$B$25:$B$27,0),MATCH(X$62&X$64,'Auxiliary data'!$C$24:$AX$24,0)) -> 16.66494953 | Y67: =INDEX('Auxiliary data'!$C$25:$AX$27,MATCH($B67,'Auxiliary data'!$B$25:$B$27,0),MATCH(Y$62&Y$64,'Auxiliary data'!$C$24:$AX$24,0)) -> 9.600560599 | Z67: =INDEX('Auxiliary data'!$C$25:$AX$27,MATCH($B67,'Auxiliary data'!$B$25:$B$27,0),MATCH(Z$62&Z$64,'Auxiliary data'!$C$24:$AX$24,0)) -> 22.83078314 | AA67: =INDEX('Auxiliary data'!$C$25:$AX$27,MATCH($B67,'Auxiliary data'!$B$25:$B$27,0),MATCH(AA$62&AA$64,'Auxiliary data'!$C$24:$AX$24,0)) -> 12.78921451 | AB67: =INDEX('Auxiliary data'!$C$25:$AX$27,MATCH($B67,'Auxiliary data'!$B$25:$B$27,0),MATCH(AB$62&AB$64,'Auxiliary data'!$C$24:$AX$24,0)) -> 12.45204429 | AC67: =INDEX('Auxiliary data'!$C$25:$AX$27,MATCH($B67,'Auxiliary data'!$B$25:$B$27,0),MATCH(AC$62&AC$64,'Auxiliary data'!$C$24:$AX$24,0)) -> 16.29848415 | AD67: =INDEX('Auxiliary data'!$C$25:$AX$27,MATCH($B67,'Auxiliary data'!$B$25:$B$27,0),MATCH(AD$62&AD$64,'Auxiliary data'!$C$24:$AX$24,0)) -> 15.33126921 | AE67: =INDEX('Auxiliary data'!$C$25:$AX$27,MATCH($B67,'Auxiliary data'!$B$25:$B$27,0),MATCH(AE$62&AE$64,'Auxiliary data'!$C$24:$AX$24,0)) -> 9.089732568 | AF67: =INDEX('Auxiliary data'!$C$25:$AX$27,MATCH($B67,'Auxiliary data'!$B$25:$B$27,0),MATCH(AF$62&AF$64,'Auxiliary data'!$C$24:$AX$24,0)) -> 19.02086374
B68: Reference premium petrol | I68: ='4. Taxes & levies'!$F$41 -> 4.656175123 | J68: ='4. Taxes & levies'!$F$41 -> 4.656175123 | K68: ='4. Taxes & levies'!$F$41 -> 4.656175123 | L68: ='4. Taxes & levies'!$F$41 -> 4.656175123 | M68: ='4. Taxes & levies'!$F$41 -> 4.656175123 | N68: ='4. Taxes & levies'!$F$41 -> 4.656175123 | O68: ='4. Taxes & levies'!$H$41 -> 6.189560391 | P68: ='4. Taxes & levies'!$H$41 -> 6.189560391 | Q68: ='4. Taxes & levies'!$H$41 -> 6.189560391 | R68: ='4. Taxes & levies'!$H$41 -> 6.189560391 | S68: ='4. Taxes & levies'!$H$41 -> 6.189560391 | T68: ='4. Taxes & levies'!$H$41 -> 6.189560391 | U68: ='4. Taxes & levies'!$J$41 -> 6.908843815 | V68: ='4. Taxes & levies'!$J$41 -> 6.908843815 | W68: ='4. Taxes & levies'!$J$41 -> 6.908843815 | X68: ='4. Taxes & levies'!$J$41 -> 6.908843815 | Y68: ='4. Taxes & levies'!$J$41 -> 6.908843815 | Z68: ='4. Taxes & levies'!$J$41 -> 6.908843815 | AA68: ='4. Taxes & levies'!$L$41 -> 7.627477517 | AB68: ='4. Taxes & levies'!$L$41 -> 7.627477517 | AC68: ='4. Taxes & levies'!$L$41 -> 7.627477517 | AD68: ='4. Taxes & levies'!$L$41 -> 7.627477517 | AE68: ='4. Taxes & levies'!$L$41 -> 7.627477517 | AF68: ='4. Taxes & levies'!$L$41 -> 7.627477517
B70: Overview of final results for PtL
B72: Optimistic | D72: 2016/17 | E72: 2020 | F72: 2025 | G72: 2030 | H72: 2035 | I72: 2040 | J72: 2045 | K72: 2050
B73: Operating cost | C73: €/kW(PtL) | D73: =PtL!$D$43*D74 -> 25.5 | E73: =PtL!$D$43*E74 -> 21.97335 | F73: =PtL!$D$43*F74 -> 18.9344357 | G73: =PtL!$D$43*G74 -> 16.31580324 | H73: =PtL!$D$43*H74 -> 14.05932765 | I73: =PtL!$D$43*I74 -> 12.11492264 | J73: =PtL!$D$43*J74 -> 10.43942884 | K73: =PtL!$D$43*K74 -> 8.995655828
B74: Total investment cost | C74: €/kW(PtL) | D74: =PtL!$C$5 -> 850 | E74: =D74*(1-PtL!$C$46) -> 732.445 | F74: =E74*(1-PtL!$C$46) -> 631.1478565 | G74: =F74*(1-PtL!$C$46) -> 543.8601079 | H74: =G74*(1-PtL!$C$46) -> 468.644255 | I74: =H74*(1-PtL!$C$46) -> 403.8307545 | J74: =I74*(1-PtL!$C$46) -> 347.9809612 | K74: =J74*(1-PtL!$C$46) -> 299.8551943
B75: Lifetime | C75: years | D75: =PtL!$D$40 -> 30 | E75: =PtL!$D$40 -> 30 | F75: =PtL!$D$40 -> 30 | G75: =PtL!$D$40 -> 30 | H75: =PtL!$D$40 -> 30 | I75: =PtL!$D$40 -> 30 | J75: =PtL!$D$40 -> 30 | K75: =PtL!$D$40 -> 30
B76: Investment cost per year | C76: €/kW(PtL) | D76: =(((1+'Cost of synthetic liquid fuel'!$C$7)^D$75)*'Cost of synthetic liquid fuel'!$C$7)/(((1+'Cost of synthetic liquid fuel'!$C$7)^D$75)-1)*D$74 -> 61.75157477 | E76: =(((1+'Cost of synthetic liquid fuel'!$C$7)^E$75)*'Cost of synthetic liquid fuel'!$C$7)/(((1+'Cost of synthetic liquid fuel'!$C$7)^E$75)-1)*E$74 -> 53.21133198 | F76: =(((1+'Cost of synthetic liquid fuel'!$C$7)^F$75)*'Cost of synthetic liquid fuel'!$C$7)/(((1+'Cost of synthetic liquid fuel'!$C$7)^F$75)-1)*F$74 -> 45.85220476 | G76: =(((1+'Cost of synthetic liquid fuel'!$C$7)^G$75)*'Cost of synthetic liquid fuel'!$C$7)/(((1+'Cost of synthetic liquid fuel'!$C$7)^G$75)-1)*G$74 -> 39.51084485 | H76: =(((1+'Cost of synthetic liquid fuel'!$C$7)^H$75)*'Cost of synthetic liquid fuel'!$C$7)/(((1+'Cost of synthetic liquid fuel'!$C$7)^H$75)-1)*H$74 -> 34.046495 | I76: =(((1+'Cost of synthetic liquid fuel'!$C$7)^I$75)*'Cost of synthetic liquid fuel'!$C$7)/(((1+'Cost of synthetic liquid fuel'!$C$7)^I$75)-1)*I$74 -> 29.33786474 | J76: =(((1+'Cost of synthetic liquid fuel'!$C$7)^J$75)*'Cost of synthetic liquid fuel'!$C$7)/(((1+'Cost of synthetic liquid fuel'!$C$7)^J$75)-1)*J$74 -> 25.28043805 | K76: =(((1+'Cost of synthetic liquid fuel'!$C$7)^K$75)*'Cost of synthetic liquid fuel'!$C$7)/(((1+'Cost of synthetic liquid fuel'!$C$7)^K$75)-1)*K$74 -> 21.78415347
B77: Electricity cost of hydrogen electrolysis | C77: ct/kWh(PtL) | D77: =PtL!E63 -> 7.384898791 | E77: =PtL!F63 -> 5.788184356 | F77: =PtL!G63 -> 4.77927818 | G77: =PtL!H63 -> 3.974655207 | H77: =PtL!I63 -> 3.154100588 | I77: =PtL!J63 -> 2.583410614 | J77: =PtL!K63 -> 2.149638498 | K77: =PtL!L63 -> 1.784025684
B78: Cost of conversion of hydrogen electrolysis | C78: ct/kWh(PtL) | D78: =PtL!E$66 -> 7.112375813 | E78: =PtL!F$66 -> 5.649485295 | F78: =PtL!G$66 -> 4.492066433 | G78: =PtL!H$66 -> 3.575194912 | H78: =PtL!I$66 -> 2.848033735 | I78: =PtL!J$66 -> 2.270701937 | J78: =PtL!K$66 -> 1.811859011 | K78: =PtL!L$66 -> 1.446836138
B79: Storage cost for hydrogen | C79: ct/kWh(PtL) | D79: =INDEX(PtL!$D$74:$I$74,MATCH(PtL!$C$12&" "&PtL!$C$13,PtL!$D$72:$I$72,0)) -> 0.5389829659 | E79: =INDEX(PtL!$D$74:$I$74,MATCH(PtL!$C$12&" "&PtL!$C$13,PtL!$D$72:$I$72,0)) -> 0.5389829659 | F79: =INDEX(PtL!$D$74:$I$74,MATCH(PtL!$C$12&" "&PtL!$C$13,PtL!$D$72:$I$72,0)) -> 0.5389829659 | G79: =INDEX(PtL!$D$74:$I$74,MATCH(PtL!$C$12&" "&PtL!$C$13,PtL!$D$72:$I$72,0)) -> 0.5389829659 | H79: =INDEX(PtL!$D$74:$I$74,MATCH(PtL!$C$12&" "&PtL!$C$13,PtL!$D$72:$I$72,0)) -> 0.5389829659 | I79: =INDEX(PtL!$D$74:$I$74,MATCH(PtL!$C$12&" "&PtL!$C$13,PtL!$D$72:$I$72,0)) -> 0.5389829659 | J79: =INDEX(PtL!$D$74:$I$74,MATCH(PtL!$C$12&" "&PtL!$C$13,PtL!$D$72:$I$72,0)) -> 0.5389829659 | K79: =INDEX(PtL!$D$74:$I$74,MATCH(PtL!$C$12&" "&PtL!$C$13,PtL!$D$72:$I$72,0)) -> 0.5389829659
B80: CO2 cost | C80: ct/kWh(PtL) | D80: =IF($C$9='Auxiliary data'!$F$6,PtL!E$97,IF($C$5='Auxiliary data'!$C$8,PtL!$D$94,PtL!$D$93)) -> 3.645139606 | E80: =IF($C$9='Auxiliary data'!$F$6,PtL!F$97,IF($C$5='Auxiliary data'!$C$8,PtL!$D$94,PtL!$D$93)) -> 3.578871824 | F80: =IF($C$9='Auxiliary data'!$F$6,PtL!G$97,IF($C$5='Auxiliary data'!$C$8,PtL!$D$94,PtL!$D$93)) -> 3.537175242 | G80: =IF($C$9='Auxiliary data'!$F$6,PtL!H$97,IF($C$5='Auxiliary data'!$C$8,PtL!$D$94,PtL!$D$93)) -> 2.622135427 | H80: =IF($C$9='Auxiliary data'!$F$6,PtL!I$97,IF($C$5='Auxiliary data'!$C$8,PtL!$D$94,PtL!$D$93)) -> 2.584534045 | I80: =IF($C$9='Auxiliary data'!$F$6,PtL!J$97,IF($C$5='Auxiliary data'!$C$8,PtL!$D$94,PtL!$D$93)) -> 2.558101391 | J80: =IF($C$9='Auxiliary data'!$F$6,PtL!K$97,IF($C$5='Auxiliary data'!$C$8,PtL!$D$94,PtL!$D$93)) -> 2.53762539 | K80: =IF($C$9='Auxiliary data'!$F$6,PtL!L$97,IF($C$5='Auxiliary data'!$C$8,PtL!$D$94,PtL!$D$93)) -> 2.519755427
B81: Investment cost | C81: ct/kWh(PtL) | D81: =D$76/PtL!$C$4*100 -> 0.7718946846 | E81: =E$76/PtL!$C$4*100 -> 0.6651416497 | F81: =F$76/PtL!$C$4*100 -> 0.5731525596 | G81: =G$76/PtL!$C$4*100 -> 0.4938855606 | H81: =H$76/PtL!$C$4*100 -> 0.4255811875 | I81: =I$76/PtL!$C$4*100 -> 0.3667233093 | J81: =J$76/PtL!$C$4*100 -> 0.3160054756 | K81: =K$76/PtL!$C$4*100 -> 0.2723019183
B82: Operating cost | C82: ct/kWh(PtL) | D82: =D73/PtL!$C$4*100 -> 0.31875 | E82: =E73/PtL!$C$4*100 -> 0.274666875 | F82: =F73/PtL!$C$4*100 -> 0.2366804462 | G82: =G73/PtL!$C$4*100 -> 0.2039475405 | H82: =H73/PtL!$C$4*100 -> 0.1757415956 | I82: =I73/PtL!$C$4*100 -> 0.151436533 | J82: =J73/PtL!$C$4*100 -> 0.1304928604 | K82: =K73/PtL!$C$4*100 -> 0.1124456978
B83: Transport cost | C83: ct/kWh(PtL) | D83: =INDEX('3. Transport cost'!$C$7:$C$10,MATCH($C$5,'3. Transport cost'!$B$7:$B$10,0)) -> 0.02192814627 | E83: =INDEX('3. Transport cost'!$C$7:$C$10,MATCH($C$5,'3. Transport cost'!$B$7:$B$10,0)) -> 0.02192814627 | F83: =INDEX('3. Transport cost'!$C$7:$C$10,MATCH($C$5,'3. Transport cost'!$B$7:$B$10,0)) -> 0.02192814627 | G83: =INDEX('3. Transport cost'!$C$7:$C$10,MATCH($C$5,'3. Transport cost'!$B$7:$B$10,0)) -> 0.02192814627 | H83: =INDEX('3. Transport cost'!$C$7:$C$10,MATCH($C$5,'3. Transport cost'!$B$7:$B$10,0)) -> 0.02192814627 | I83: =INDEX('3. Transport cost'!$C$7:$C$10,MATCH($C$5,'3. Transport cost'!$B$7:$B$10,0)) -> 0.02192814627 | J83: =INDEX('3. Transport cost'!$C$7:$C$10,MATCH($C$5,'3. Transport cost'!$B$7:$B$10,0)) -> 0.02192814627 | K83: =INDEX('3. Transport cost'!$C$7:$C$10,MATCH($C$5,'3. Transport cost'!$B$7:$B$10,0)) -> 0.02192814627
B84: Cost of liquid fuel (including transport) | C84: ct/kWh(PtL) | D84: =SUM(D77:D83) -> 19.79397001 | E84: =SUM(E77:E83) -> 16.51726111 | F84: 14.17926397 | G84: 11.43072976 | H84: 9.748902263 | I84: 8.491284896 | J84: 7.506532348 | K84: 6.696275977
B85: Taxes and levies (synthetic fuels) | C85: ct/kWh(PtL) | D85: ='4. Taxes & levies'!Q$43 -> 0 | E85: ='4. Taxes & levies'!R$43 -> 0 | F85: ='4. Taxes & levies'!S$43 -> 0 | G85: ='4. Taxes & levies'!T$43 -> 0 | H85: ='4. Taxes & levies'!U$43 -> 0 | I85: ='4. Taxes & levies'!V$43 -> 0 | J85: ='4. Taxes & levies'!W$43 -> 0 | K85: ='4. Taxes & levies'!X$43 -> 0
B86: Grid tariffs/distribution cost | C86: ct/kWh(PtL) | D86: ='4. Taxes & levies'!$D$36 -> 1 | E86: ='4. Taxes & levies'!$D$36 -> 1 | F86: ='4. Taxes & levies'!$D$36 -> 1 | G86: ='4. Taxes & levies'!$D$36 -> 1 | H86: ='4. Taxes & levies'!$D$36 -> 1 | I86: ='4. Taxes & levies'!$D$36 -> 1 | J86: ='4. Taxes & levies'!$D$36 -> 1 | K86: ='4. Taxes & levies'!$D$36 -> 1
B87: Total cost of synthetic liquid fuel (including taxes, levies, distribution cost ) | C87: ct/kWh(PtL) | D87: =SUM(D84:D86) -> 20.79397001 | E87: =SUM(E84:E86) -> 17.51726111 | F87: 15.17926397 | G87: 12.43072976 | H87: 10.74890226 | I87: 9.491284896 | J87: 8.506532348 | K87: 7.696275977
B88: Cost of fossil liquid fuel | C88: ct/kWh | D88: =IF($C$8='Auxiliary data'!$G$6,'4. Taxes & levies'!E$46,'4. Taxes & levies'!E$58) -> 4.865 | E88: =IF($C$8='Auxiliary data'!$G$6,'4. Taxes & levies'!F$46,'4. Taxes & levies'!F$58) -> 5.17314806 | F88: =IF($C$8='Auxiliary data'!$G$6,'4. Taxes & levies'!G$46,'4. Taxes & levies'!G$58) -> 5.300284718 | G88: =IF($C$8='Auxiliary data'!$G$6,'4. Taxes & levies'!H$46,'4. Taxes & levies'!H$58) -> 5.419624713 | H88: =IF($C$8='Auxiliary data'!$G$6,'4. Taxes & levies'!I$46,'4. Taxes & levies'!I$58) -> 5.544162483 | I88: =IF($C$8='Auxiliary data'!$G$6,'4. Taxes & levies'!J$46,'4. Taxes & levies'!J$58) -> 5.66740081 | J88: =IF($C$8='Auxiliary data'!$G$6,'4. Taxes & levies'!K$46,'4. Taxes & levies'!K$58) -> 5.790639136 | K88: =IF($C$8='Auxiliary data'!$G$6,'4. Taxes & levies'!L$46,'4. Taxes & levies'!L$58) -> 5.913877463
B90: Reference | D90: 2016/17 | E90: 2020 | F90: 2025 | G90: 2030 | H90: 2035 | I90: 2040 | J90: 2045 | K90: 2050
B91: Operating cost | C91: €/kW(PtL) | D91: =PtL!$D$43*D92 -> 25.5 | E91: =PtL!$D$43*E92 -> 23.6385 | F91: =PtL!$D$43*F92 -> 21.9128895 | G91: =PtL!$D$43*G92 -> 20.31324857 | H91: =PtL!$D$43*H92 -> 18.83038142 | I91: =PtL!$D$43*I92 -> 17.45576358 | J91: =PtL!$D$43*J92 -> 16.18149284 | K91: =PtL!$D$43*K92 -> 15.00024386
B92: Total investment cost | C92: €/kW(PtL) | D92: =PtL!$C$5 -> 850 | E92: =D92*(1-PtL!$D$46) -> 787.95 | F92: =E92*(1-PtL!$D$46) -> 730.42965 | G92: =F92*(1-PtL!$D$46) -> 677.1082856 | H92: =G92*(1-PtL!$D$46) -> 627.6793807 | I92: =H92*(1-PtL!$D$46) -> 581.8587859 | J92: =I92*(1-PtL!$D$46) -> 539.3830945 | K92: =J92*(1-PtL!$D$46) -> 500.0081286
B93: Lifetime | C93: years | D93: =PtL!$D$40 -> 30 | E93: =PtL!$D$40 -> 30 | F93: =PtL!$D$40 -> 30 | G93: =PtL!$D$40 -> 30 | H93: =PtL!$D$40 -> 30 | I93: =PtL!$D$40 -> 30 | J93: =PtL!$D$40 -> 30 | K93: =PtL!$D$40 -> 30
B94: Investment cost per year | C94: €/kW(PtL) | D94: =(((1+'Cost of synthetic liquid fuel'!$C$7)^D$93)*'Cost of synthetic liquid fuel'!$C$7)/(((1+'Cost of synthetic liquid fuel'!$C$7)^D$93)-1)*D$92 -> 61.75157477 | E94: =(((1+'Cost of synthetic liquid fuel'!$C$7)^E$93)*'Cost of synthetic liquid fuel'!$C$7)/(((1+'Cost of synthetic liquid fuel'!$C$7)^E$93)-1)*E$92 -> 57.24370981 | F94: =(((1+'Cost of synthetic liquid fuel'!$C$7)^F$93)*'Cost of synthetic liquid fuel'!$C$7)/(((1+'Cost of synthetic liquid fuel'!$C$7)^F$93)-1)*F$92 -> 53.06491899 | G94: =(((1+'Cost of synthetic liquid fuel'!$C$7)^G$93)*'Cost of synthetic liquid fuel'!$C$7)/(((1+'Cost of synthetic liquid fuel'!$C$7)^G$93)-1)*G$92 -> 49.19117991 | H94: =(((1+'Cost of synthetic liquid fuel'!$C$7)^H$93)*'Cost of synthetic liquid fuel'!$C$7)/(((1+'Cost of synthetic liquid fuel'!$C$7)^H$93)-1)*H$92 -> 45.60022377 | I94: =(((1+'Cost of synthetic liquid fuel'!$C$7)^I$93)*'Cost of synthetic liquid fuel'!$C$7)/(((1+'Cost of synthetic liquid fuel'!$C$7)^I$93)-1)*I$92 -> 42.27140744 | J94: =(((1+'Cost of synthetic liquid fuel'!$C$7)^J$93)*'Cost of synthetic liquid fuel'!$C$7)/(((1+'Cost of synthetic liquid fuel'!$C$7)^J$93)-1)*J$92 -> 39.18559469 | K94: =(((1+'Cost of synthetic liquid fuel'!$C$7)^K$93)*'Cost of synthetic liquid fuel'!$C$7)/(((1+'Cost of synthetic liquid fuel'!$C$7)^K$93)-1)*K$92 -> 36.32504628
B95: Electricity cost of hydrogen electrolysis | C95: ct/kWh(PtL) | D95: =PtL!E64 -> 7.977855433 | E95: =PtL!F64 -> 6.393221621 | F95: =PtL!G64 -> 5.45837061 | G95: =PtL!H64 -> 4.743379739 | H95: =PtL!I64 -> 4.083908957 | I95: =PtL!J64 -> 3.593255332 | J95: =PtL!K64 -> 3.198659786 | K95: =PtL!L64 -> 2.836714411
B96: Cost of conversion of hydrogen electrolysis | C96: ct/kWh(PtL) | D96: =PtL!E$67 -> 7.112426433 | E96: =PtL!F$67 -> 6.341504429 | F96: =PtL!G$67 -> 5.659910226 | G96: =PtL!H$67 -> 5.056413302 | H96: =PtL!I$67 -> 4.521336295 | I96: =PtL!J$67 -> 4.046316425 | J96: =PtL!K$67 -> 3.624107765 | K96: =PtL!L$67 -> 3.248416575
B97: Storage cost for hydrogen | C97: ct/kWh(PtL) | D97: =INDEX(PtL!$D$74:$I$74,MATCH(PtL!$C$12&" "&PtL!$C$13,PtL!$D$72:$I$72,0)) -> 0.5389829659 | E97: =INDEX(PtL!$D$74:$I$74,MATCH(PtL!$C$12&" "&PtL!$C$13,PtL!$D$72:$I$72,0)) -> 0.5389829659 | F97: =INDEX(PtL!$D$74:$I$74,MATCH(PtL!$C$12&" "&PtL!$C$13,PtL!$D$72:$I$72,0)) -> 0.5389829659 | G97: =INDEX(PtL!$D$74:$I$74,MATCH(PtL!$C$12&" "&PtL!$C$13,PtL!$D$72:$I$72,0)) -> 0.5389829659 | H97: =INDEX(PtL!$D$74:$I$74,MATCH(PtL!$C$12&" "&PtL!$C$13,PtL!$D$72:$I$72,0)) -> 0.5389829659 | I97: =INDEX(PtL!$D$74:$I$74,MATCH(PtL!$C$12&" "&PtL!$C$13,PtL!$D$72:$I$72,0)) -> 0.5389829659 | J97: =INDEX(PtL!$D$74:$I$74,MATCH(PtL!$C$12&" "&PtL!$C$13,PtL!$D$72:$I$72,0)) -> 0.5389829659 | K97: =INDEX(PtL!$D$74:$I$74,MATCH(PtL!$C$12&" "&PtL!$C$13,PtL!$D$72:$I$72,0)) -> 0.5389829659
B98: CO2 cost | C98: ct/kWh(PtL) | D98: =IF($C$9='Auxiliary data'!$F$6,PtL!E$98,IF($C$5='Auxiliary data'!$C$8,PtL!$D$94,PtL!$D$93)) -> 3.673089002 | E98: =IF($C$9='Auxiliary data'!$F$6,PtL!F$98,IF($C$5='Auxiliary data'!$C$8,PtL!$D$94,PtL!$D$93)) -> 3.608330829 | F98: =IF($C$9='Auxiliary data'!$F$6,PtL!G$98,IF($C$5='Auxiliary data'!$C$8,PtL!$D$94,PtL!$D$93)) -> 3.571295219 | G98: =IF($C$9='Auxiliary data'!$F$6,PtL!H$98,IF($C$5='Auxiliary data'!$C$8,PtL!$D$94,PtL!$D$93)) -> 2.661953372 | H98: =IF($C$9='Auxiliary data'!$F$6,PtL!I$98,IF($C$5='Auxiliary data'!$C$8,PtL!$D$94,PtL!$D$93)) -> 2.634140567 | I98: =IF($C$9='Auxiliary data'!$F$6,PtL!J$98,IF($C$5='Auxiliary data'!$C$8,PtL!$D$94,PtL!$D$93)) -> 2.61354718 | J98: =IF($C$9='Auxiliary data'!$F$6,PtL!K$98,IF($C$5='Auxiliary data'!$C$8,PtL!$D$94,PtL!$D$93)) -> 2.596852277 | K98: =IF($C$9='Auxiliary data'!$F$6,PtL!L$98,IF($C$5='Auxiliary data'!$C$8,PtL!$D$94,PtL!$D$93)) -> 2.580825171
B99: Investment cost | C99: ct/kWh(PtL) | D99: =D$94/PtL!$C$4*100 -> 0.7718946846 | E99: =E$94/PtL!$C$4*100 -> 0.7155463726 | F99: =F$94/PtL!$C$4*100 -> 0.6633114874 | G99: =G$94/PtL!$C$4*100 -> 0.6148897488 | H99: =H$94/PtL!$C$4*100 -> 0.5700027972 | I99: =I$94/PtL!$C$4*100 -> 0.528392593 | J99: =J$94/PtL!$C$4*100 -> 0.4898199337 | K99: =K$94/PtL!$C$4*100 -> 0.4540630785
B100: Operating cost | C100: ct/kWh(PtL) | D100: =D91/PtL!$C$4*100 -> 0.31875 | E100: =E91/PtL!$C$4*100 -> 0.29548125 | F100: =F91/PtL!$C$4*100 -> 0.2739111187 | G100: =G91/PtL!$C$4*100 -> 0.2539156071 | H100: =H91/PtL!$C$4*100 -> 0.2353797678 | I100: =I91/PtL!$C$4*100 -> 0.2181970447 | J100: =J91/PtL!$C$4*100 -> 0.2022686605 | K100: =K91/PtL!$C$4*100 -> 0.1875030482
B101: Transport cost | C101: ct/kWh(PtL) | D101: =INDEX('3. Transport cost'!$C$7:$C$10,MATCH($C$5,'3. Transport cost'!$B$7:$B$10,0)) -> 0.02192814627 | E101: =INDEX('3. Transport cost'!$C$7:$C$10,MATCH($C$5,'3. Transport cost'!$B$7:$B$10,0)) -> 0.02192814627 | F101: =INDEX('3. Transport cost'!$C$7:$C$10,MATCH($C$5,'3. Transport cost'!$B$7:$B$10,0)) -> 0.02192814627 | G101: =INDEX('3. Transport cost'!$C$7:$C$10,MATCH($C$5,'3. Transport cost'!$B$7:$B$10,0)) -> 0.02192814627 | H101: =INDEX('3. Transport cost'!$C$7:$C$10,MATCH($C$5,'3. Transport cost'!$B$7:$B$10,0)) -> 0.02192814627 | I101: =INDEX('3. Transport cost'!$C$7:$C$10,MATCH($C$5,'3. Transport cost'!$B$7:$B$10,0)) -> 0.02192814627 | J101: =INDEX('3. Transport cost'!$C$7:$C$10,MATCH($C$5,'3. Transport cost'!$B$7:$B$10,0)) -> 0.02192814627 | K101: =INDEX('3. Transport cost'!$C$7:$C$10,MATCH($C$5,'3. Transport cost'!$B$7:$B$10,0)) -> 0.02192814627
B102: Cost of liquid fuel (including transport) | C102: ct/kWh(PtL) | D102: =SUM(D95:D101) -> 20.41492667 | E102: =SUM(E95:E101) -> 17.91499561 | F102: 16.18770977 | G102: 13.89146288 | H102: 12.6056795 | I102: 11.56061969 | J102: 10.67261953 | K102: 9.868433395
B103: Taxes and levies (synthetic fuels) | C103: ct/kWh(PtL) | D103: ='4. Taxes & levies'!Q$44 -> 0 | E103: ='4. Taxes & levies'!R$44 -> 0 | F103: ='4. Taxes & levies'!S$44 -> 0 | G103: ='4. Taxes & levies'!T$44 -> 0 | H103: ='4. Taxes & levies'!U$44 -> 0 | I103: ='4. Taxes & levies'!V$44 -> 0 | J103: ='4. Taxes & levies'!W$44 -> 0 | K103: ='4. Taxes & levies'!X$44 -> 0
B104: Grid tariffs/distribution cost | C104: ct/kWh(PtL) | D104: ='4. Taxes & levies'!$D$36 -> 1 | E104: ='4. Taxes & levies'!$D$36 -> 1 | F104: ='4. Taxes & levies'!$D$36 -> 1 | G104: ='4. Taxes & levies'!$D$36 -> 1 | H104: ='4. Taxes & levies'!$D$36 -> 1 | I104: ='4. Taxes & levies'!$D$36 -> 1 | J104: ='4. Taxes & levies'!$D$36 -> 1 | K104: ='4. Taxes & levies'!$D$36 -> 1
B105: Total cost of synthetic liquid fuel (including taxes, levies, distribution cost ) | C105: ct/kWh(PtL) | D105: =SUM(D102:D104) -> 21.41492667 | E105: =SUM(E102:E104) -> 18.91499561 | F105: 17.18770977 | G105: 14.89146288 | H105: 13.6056795 | I105: 12.56061969 | J105: 11.67261953 | K105: 10.8684334
B106: Cost of fossil liquid fuel | C106: ct/kWh | D106: =IF($C$8='Auxiliary data'!$G$6,'4. Taxes & levies'!E$47,'4. Taxes & levies'!E$59) -> 4.865 | E106: =IF($C$8='Auxiliary data'!$G$6,'4. Taxes & levies'!F$47,'4. Taxes & levies'!F$59) -> 5.656175123 | F106: =IF($C$8='Auxiliary data'!$G$6,'4. Taxes & levies'!G$47,'4. Taxes & levies'!G$59) -> 6.424816923 | G106: =IF($C$8='Auxiliary data'!$G$6,'4. Taxes & levies'!H$47,'4. Taxes & levies'!H$59) -> 7.189560391 | H106: =IF($C$8='Auxiliary data'!$G$6,'4. Taxes & levies'!I$47,'4. Taxes & levies'!I$59) -> 7.549526964 | I106: =IF($C$8='Auxiliary data'!$G$6,'4. Taxes & levies'!J$47,'4. Taxes & levies'!J$59) -> 7.908843815 | J106: =IF($C$8='Auxiliary data'!$G$6,'4. Taxes & levies'!K$47,'4. Taxes & levies'!K$59) -> 8.268160666 | K106: =IF($C$8='Auxiliary data'!$G$6,'4. Taxes & levies'!L$47,'4. Taxes & levies'!L$59) -> 8.627477517
B108: Pessimistic | D108: 2016/17 | E108: 2020 | F108: 2025 | G108: 2030 | H108: 2035 | I108: 2040 | J108: 2045 | K108: 2050
B109: Operating cost | C109: €/kW(PtL) | D109: =PtL!$D$43*D110 -> 25.5 | E109: =PtL!$D$43*E110 -> 25.27815 | F109: =PtL!$D$43*F110 -> 25.05823009 | G109: =PtL!$D$43*G110 -> 24.84022349 | H109: =PtL!$D$43*H110 -> 24.62411355 | I109: =PtL!$D$43*I110 -> 24.40988376 | J109: =PtL!$D$43*J110 -> 24.19751777 | K109: =PtL!$D$43*K110 -> 23.98699937
B110: Total investment cost | C110: €/kW(PtL) | D110: =PtL!$C$5 -> 850 | E110: =D110*(1-PtL!$E$46) -> 842.605 | F110: =E110*(1-PtL!$E$46) -> 835.2743365 | G110: =F110*(1-PtL!$E$46) -> 828.0074498 | H110: =G110*(1-PtL!$E$46) -> 820.803785 | I110: =H110*(1-PtL!$E$46) -> 813.662792 | J110: =I110*(1-PtL!$E$46) -> 806.5839257 | K110: =J110*(1-PtL!$E$46) -> 799.5666456
B111: Lifetime | C111: years | D111: =PtL!$D$40 -> 30 | E111: =PtL!$D$40 -> 30 | F111: =PtL!$D$40 -> 30 | G111: =PtL!$D$40 -> 30 | H111: =PtL!$D$40 -> 30 | I111: =PtL!$D$40 -> 30 | J111: =PtL!$D$40 -> 30 | K111: =PtL!$D$40 -> 30
B112: Investment cost per year | C112: €/kW(PtL) | D112: =(((1+'Cost of synthetic liquid fuel'!$C$7)^D$111)*'Cost of synthetic liquid fuel'!$C$7)/(((1+'Cost of synthetic liquid fuel'!$C$7)^D$111)-1)*D$110 -> 61.75157477 | E112: =(((1+'Cost of synthetic liquid fuel'!$C$7)^E$111)*'Cost of synthetic liquid fuel'!$C$7)/(((1+'Cost of synthetic liquid fuel'!$C$7)^E$111)-1)*E$110 -> 61.21433607 | F112: =(((1+'Cost of synthetic liquid fuel'!$C$7)^F$111)*'Cost of synthetic liquid fuel'!$C$7)/(((1+'Cost of synthetic liquid fuel'!$C$7)^F$111)-1)*F$110 -> 60.68177134 | G112: =(((1+'Cost of synthetic liquid fuel'!$C$7)^G$111)*'Cost of synthetic liquid fuel'!$C$7)/(((1+'Cost of synthetic liquid fuel'!$C$7)^G$111)-1)*G$110 -> 60.15383993 | H112: =(((1+'Cost of synthetic liquid fuel'!$C$7)^H$111)*'Cost of synthetic liquid fuel'!$C$7)/(((1+'Cost of synthetic liquid fuel'!$C$7)^H$111)-1)*H$110 -> 59.63050152 | I112: =(((1+'Cost of synthetic liquid fuel'!$C$7)^I$111)*'Cost of synthetic liquid fuel'!$C$7)/(((1+'Cost of synthetic liquid fuel'!$C$7)^I$111)-1)*I$110 -> 59.11171616 | J112: =(((1+'Cost of synthetic liquid fuel'!$C$7)^J$111)*'Cost of synthetic liquid fuel'!$C$7)/(((1+'Cost of synthetic liquid fuel'!$C$7)^J$111)-1)*J$110 -> 58.59744423 | K112: =(((1+'Cost of synthetic liquid fuel'!$C$7)^K$111)*'Cost of synthetic liquid fuel'!$C$7)/(((1+'Cost of synthetic liquid fuel'!$C$7)^K$111)-1)*K$110 -> 58.08764647
B113: Electricity cost of hydrogen electrolysis | C113: ct/kWh(PtL) | D113: =PtL!E65 -> 9.01806633 | E113: =PtL!F65 -> 7.381410508 | F113: =PtL!G65 -> 6.495545699 | G113: =PtL!H65 -> 5.857298191 | H113: =PtL!I65 -> 5.361958916 | I113: =PtL!J65 -> 4.946025935 | J113: =PtL!K65 -> 4.581533728 | K113: =PtL!L65 -> 4.208787118
B114: Cost of conversion of hydrogen electrolysis | C114: ct/kWh(PtL) | D114: =PtL!E$68 -> 7.112506225 | E114: =PtL!F$68 -> 6.608043738 | F114: =PtL!G$68 -> 6.145621553 | G114: =PtL!H$68 -> 5.721032435 | H114: =PtL!I$68 -> 5.330575887 | I114: =PtL!J$68 -> 4.970985793 | J114: =PtL!K$68 -> 4.639370033 | K114: =PtL!L$68 -> 4.333159831
B115: Storage cost for hydrogen | C115: ct/kWh(PtL) | D115: =INDEX(PtL!$D$74:$I$74,MATCH(PtL!$C$12&" "&PtL!$C$13,PtL!$D$72:$I$72,0)) -> 0.5389829659 | E115: =INDEX(PtL!$D$74:$I$74,MATCH(PtL!$C$12&" "&PtL!$C$13,PtL!$D$72:$I$72,0)) -> 0.5389829659 | F115: =INDEX(PtL!$D$74:$I$74,MATCH(PtL!$C$12&" "&PtL!$C$13,PtL!$D$72:$I$72,0)) -> 0.5389829659 | G115: =INDEX(PtL!$D$74:$I$74,MATCH(PtL!$C$12&" "&PtL!$C$13,PtL!$D$72:$I$72,0)) -> 0.5389829659 | H115: =INDEX(PtL!$D$74:$I$74,MATCH(PtL!$C$12&" "&PtL!$C$13,PtL!$D$72:$I$72,0)) -> 0.5389829659 | I115: =INDEX(PtL!$D$74:$I$74,MATCH(PtL!$C$12&" "&PtL!$C$13,PtL!$D$72:$I$72,0)) -> 0.5389829659 | J115: =INDEX(PtL!$D$74:$I$74,MATCH(PtL!$C$12&" "&PtL!$C$13,PtL!$D$72:$I$72,0)) -> 0.5389829659 | K115: =INDEX(PtL!$D$74:$I$74,MATCH(PtL!$C$12&" "&PtL!$C$13,PtL!$D$72:$I$72,0)) -> 0.5389829659
B116: CO2 cost | C116: ct/kWh(PtL) | D116: =IF($C$9='Auxiliary data'!$F$6,PtL!E$99,IF($C$5='Auxiliary data'!$C$8,PtL!$D$94,PtL!$D$93)) -> 3.722120019 | E116: =IF($C$9='Auxiliary data'!$F$6,PtL!F$99,IF($C$5='Auxiliary data'!$C$8,PtL!$D$94,PtL!$D$93)) -> 3.656445323 | F116: =IF($C$9='Auxiliary data'!$F$6,PtL!G$99,IF($C$5='Auxiliary data'!$C$8,PtL!$D$94,PtL!$D$93)) -> 3.62340652 | G116: =IF($C$9='Auxiliary data'!$F$6,PtL!H$99,IF($C$5='Auxiliary data'!$C$8,PtL!$D$94,PtL!$D$93)) -> 2.719651471 | H116: =IF($C$9='Auxiliary data'!$F$6,PtL!I$99,IF($C$5='Auxiliary data'!$C$8,PtL!$D$94,PtL!$D$93)) -> 2.702326245 | I116: =IF($C$9='Auxiliary data'!$F$6,PtL!J$99,IF($C$5='Auxiliary data'!$C$8,PtL!$D$94,PtL!$D$93)) -> 2.687821404 | J116: =IF($C$9='Auxiliary data'!$F$6,PtL!K$99,IF($C$5='Auxiliary data'!$C$8,PtL!$D$94,PtL!$D$93)) -> 2.674928212 | K116: =IF($C$9='Auxiliary data'!$F$6,PtL!L$99,IF($C$5='Auxiliary data'!$C$8,PtL!$D$94,PtL!$D$93)) -> 2.660423372
B117: Investment cost | C117: ct/kWh(PtL) | D117: =D$112/PtL!$C$4*100 -> 0.7718946846 | E117: =E$112/PtL!$C$4*100 -> 0.7651792008 | F117: =F$112/PtL!$C$4*100 -> 0.7585221418 | G117: =G$112/PtL!$C$4*100 -> 0.7519229991 | H117: =H$112/PtL!$C$4*100 -> 0.7453812691 | I117: =I$112/PtL!$C$4*100 -> 0.738896452 | J117: =J$112/PtL!$C$4*100 -> 0.7324680529 | K117: =K$112/PtL!$C$4*100 -> 0.7260955808
B118: Operating cost | C118: ct/kWh(PtL) | D118: =D109/PtL!$C$4*100 -> 0.31875 | E118: =E109/PtL!$C$4*100 -> 0.315976875 | F118: =F109/PtL!$C$4*100 -> 0.3132278762 | G118: =G109/PtL!$C$4*100 -> 0.3105027937 | H118: =H109/PtL!$C$4*100 -> 0.3078014194 | I118: =I109/PtL!$C$4*100 -> 0.305123547 | J118: =J109/PtL!$C$4*100 -> 0.3024689722 | K118: =K109/PtL!$C$4*100 -> 0.2998374921
B119: Transport cost | C119: ct/kWh(PtL) | D119: =INDEX('3. Transport cost'!$C$7:$C$10,MATCH($C$5,'3. Transport cost'!$B$7:$B$10,0)) -> 0.02192814627 | E119: =INDEX('3. Transport cost'!$C$7:$C$10,MATCH($C$5,'3. Transport cost'!$B$7:$B$10,0)) -> 0.02192814627 | F119: =INDEX('3. Transport cost'!$C$7:$C$10,MATCH($C$5,'3. Transport cost'!$B$7:$B$10,0)) -> 0.02192814627 | G119: =INDEX('3. Transport cost'!$C$7:$C$10,MATCH($C$5,'3. Transport cost'!$B$7:$B$10,0)) -> 0.02192814627 | H119: =INDEX('3. Transport cost'!$C$7:$C$10,MATCH($C$5,'3. Transport cost'!$B$7:$B$10,0)) -> 0.02192814627 | I119: =INDEX('3. Transport cost'!$C$7:$C$10,MATCH($C$5,'3. Transport cost'!$B$7:$B$10,0)) -> 0.02192814627 | J119: =INDEX('3. Transport cost'!$C$7:$C$10,MATCH($C$5,'3. Transport cost'!$B$7:$B$10,0)) -> 0.02192814627 | K119: =INDEX('3. Transport cost'!$C$7:$C$10,MATCH($C$5,'3. Transport cost'!$B$7:$B$10,0)) -> 0.02192814627
B120: Cost of liquid fuel (including transport) | C120: ct/kWh(PtL) | D120: =SUM(D113:D119) -> 21.50424837 | E120: 19.28796676 | F120: 17.8972349 | G120: 15.921319 | H120: 15.00895485 | I120: 14.20976424 | J120: 13.49168011 | K120: 12.78921451
B121: Taxes and levies (synthetic fuels) | C121: ct/kWh(PtL) | D121: ='4. Taxes & levies'!Q$45 -> 0 | E121: ='4. Taxes & levies'!R$45 -> 0 | F121: ='4. Taxes & levies'!S$45 -> 0 | G121: ='4. Taxes & levies'!T$45 -> 0 | H121: ='4. Taxes & levies'!U$45 -> 0 | I121: ='4. Taxes & levies'!V$45 -> 0 | J121: ='4. Taxes & levies'!W$45 -> 0 | K121: ='4. Taxes & levies'!X$45 -> 0
B122: Grid tariffs/distribution cost | C122: ct/kWh(PtL) | D122: ='4. Taxes & levies'!$D$36 -> 1 | E122: ='4. Taxes & levies'!$D$36 -> 1 | F122: ='4. Taxes & levies'!$D$36 -> 1 | G122: ='4. Taxes & levies'!$D$36 -> 1 | H122: ='4. Taxes & levies'!$D$36 -> 1 | I122: ='4. Taxes & levies'!$D$36 -> 1 | J122: ='4. Taxes & levies'!$D$36 -> 1 | K122: ='4. Taxes & levies'!$D$36 -> 1
B123: Total cost of synthetic liquid fuel (including taxes, levies, distribution cost ) | C123: ct/kWh(PtL) | D123: =SUM(D120:D122) -> 22.50424837 | E123: =SUM(E120:E122) -> 20.28796676 | F123: 18.8972349 | G123: 16.921319 | H123: 16.00895485 | I123: 15.20976424 | J123: 14.49168011 | K123: 13.78921451
B124: Cost of fossil liquid fuel | C124: ct/kWh | D124: =IF($C$8='Auxiliary data'!$G$6,'4. Taxes & levies'!E$47,'4. Taxes & levies'!E$60) -> 4.865 | E124: =IF($C$8='Auxiliary data'!$G$6,'4. Taxes & levies'!F$48,'4. Taxes & levies'!F$60) -> 6.139202186 | F124: =IF($C$8='Auxiliary data'!$G$6,'4. Taxes & levies'!G$48,'4. Taxes & levies'!G$60) -> 7.549349128 | G124: =IF($C$8='Auxiliary data'!$G$6,'4. Taxes & levies'!H$48,'4. Taxes & levies'!H$60) -> 8.959496069 | H124: =IF($C$8='Auxiliary data'!$G$6,'4. Taxes & levies'!I$48,'4. Taxes & levies'!I$60) -> 9.554891444 | I124: =IF($C$8='Auxiliary data'!$G$6,'4. Taxes & levies'!J$48,'4. Taxes & levies'!J$60) -> 10.15028682 | J124: =IF($C$8='Auxiliary data'!$G$6,'4. Taxes & levies'!K$48,'4. Taxes & levies'!K$60) -> 10.74568219 | K124: =IF($C$8='Auxiliary data'!$G$6,'4. Taxes & levies'!L$48,'4. Taxes & levies'!L$60) -> 11.34107757

Sheet Cost calculation >>>

Sheet 1. LCOE renewables
B1: LCOE - Electricity generation costs
B3: Control Panel
B4: Grid connection costs for offshore wind in North and Baltic Seas | C4: Included
B6: Underlying assumptions
B7: RES origin | C7: ='Control Panel'!$C$5:$E$5 -> North Africa
B8: Renewable energy source | C8: ='Control Panel'!$C$6:$E$6 -> PV
B10: Results
B12: Scenario | C12: Unit | D12: 2017 | E12: 2020 | F12: 2025 | G12: 2030 | H12: 2035 | I12: 2040 | J12: 2045 | K12: 2050
D13: =$C$7&"-"&$C$8 -> North Africa-PV | E13: =$C$7&"-"&$C$8 -> North Africa-PV | F13: North Africa-PV | G13: North Africa-PV | H13: North Africa-PV | I13: North Africa-PV | J13: North Africa-PV | K13: North Africa-PV
B14: Optimistic | C14: ct/kWh(el) | D14: =IF($C$8='Auxiliary data'!$D$6,SUMIFS($D$30:$AA$30,$D$20:$AA$20,D$12,$D$21:$AA$21,$B14)+IF($C$4='Auxiliary data'!$H$6,0,INDEX($E$55:$L$55,MATCH(D$12,$E$54:$L$54,0))),SUMIFS($D$30:$AA$30,$D$20:$AA$20,D$12,$D$21:$AA$21,$B14)) -> 3.835347187 | E14: =IF($C$8='Auxiliary data'!$D$6,SUMIFS($D$30:$AA$30,$D$20:$AA$20,E$12,$D$21:$AA$21,$B14)+IF($C$4='Auxiliary data'!$H$6,0,INDEX($E$55:$L$55,MATCH(E$12,$E$54:$L$54,0))),SUMIFS($D$30:$AA$30,$D$20:$AA$20,E$12,$D$21:$AA$21,$B14)) -> 3.10519553 | F14: =IF($C$8='Auxiliary data'!$D$6,SUMIFS($D$30:$AA$30,$D$20:$AA$20,F$12,$D$21:$AA$21,$B14)+IF($C$4='Auxiliary data'!$H$6,0,INDEX($E$55:$L$55,MATCH(F$12,$E$54:$L$54,0))),SUMIFS($D$30:$AA$30,$D$20:$AA$20,F$12,$D$21:$AA$21,$B14)) -> 2.645774263 | G14: =IF($C$8='Auxiliary data'!$D$6,SUMIFS($D$30:$AA$30,$D$20:$AA$20,G$12,$D$21:$AA$21,$B14)+IF($C$4='Auxiliary data'!$H$6,0,INDEX($E$55:$L$55,MATCH(G$12,$E$54:$L$54,0))),SUMIFS($D$30:$AA$30,$D$20:$AA$20,G$12,$D$21:$AA$21,$B14)) -> 2.268392508 | H14: =IF($C$8='Auxiliary data'!$D$6,SUMIFS($D$30:$AA$30,$D$20:$AA$20,H$12,$D$21:$AA$21,$B14)+IF($C$4='Auxiliary data'!$H$6,0,INDEX($E$55:$L$55,MATCH(H$12,$E$54:$L$54,0))),SUMIFS($D$30:$AA$30,$D$20:$AA$20,H$12,$D$21:$AA$21,$B14)) -> 1.854092972 | I14: =IF($C$8='Auxiliary data'!$D$6,SUMIFS($D$30:$AA$30,$D$20:$AA$20,I$12,$D$21:$AA$21,$B14)+IF($C$4='Auxiliary data'!$H$6,0,INDEX($E$55:$L$55,MATCH(I$12,$E$54:$L$54,0))),SUMIFS($D$30:$AA$30,$D$20:$AA$20,I$12,$D$21:$AA$21,$B14)) -> 1.562852704 | J14: =IF($C$8='Auxiliary data'!$D$6,SUMIFS($D$30:$AA$30,$D$20:$AA$20,J$12,$D$21:$AA$21,$B14)+IF($C$4='Auxiliary data'!$H$6,0,INDEX($E$55:$L$55,MATCH(J$12,$E$54:$L$54,0))),SUMIFS($D$30:$AA$30,$D$20:$AA$20,J$12,$D$21:$AA$21,$B14)) -> 1.337244046 | K14: =IF($C$8='Auxiliary data'!$D$6,SUMIFS($D$30:$AA$30,$D$20:$AA$20,K$12,$D$21:$AA$21,$B14)+IF($C$4='Auxiliary data'!$H$6,0,INDEX($E$55:$L$55,MATCH(K$12,$E$54:$L$54,0))),SUMIFS($D$30:$AA$30,$D$20:$AA$20,K$12,$D$21:$AA$21,$B14)) -> 1.140349217
B15: Reference | C15: ct/kWh(el) | D15: =IF($C$8='Auxiliary data'!$D$6,SUMIFS($D$30:$AA$30,$D$20:$AA$20,D$12,$D$21:$AA$21,$B15)+IF($C$4='Auxiliary data'!$H$6,0,INDEX($E$55:$L$55,MATCH(D$12,$E$54:$L$54,0))),SUMIFS($D$30:$AA$30,$D$20:$AA$20,D$12,$D$21:$AA$21,$B15)) -> 4.143299219 | E15: =IF($C$8='Auxiliary data'!$D$6,SUMIFS($D$30:$AA$30,$D$20:$AA$20,E$12,$D$21:$AA$21,$B15)+IF($C$4='Auxiliary data'!$H$6,0,INDEX($E$55:$L$55,MATCH(E$12,$E$54:$L$54,0))),SUMIFS($D$30:$AA$30,$D$20:$AA$20,E$12,$D$21:$AA$21,$B15)) -> 3.429780736 | F15: =IF($C$8='Auxiliary data'!$D$6,SUMIFS($D$30:$AA$30,$D$20:$AA$20,F$12,$D$21:$AA$21,$B15)+IF($C$4='Auxiliary data'!$H$6,0,INDEX($E$55:$L$55,MATCH(F$12,$E$54:$L$54,0))),SUMIFS($D$30:$AA$30,$D$20:$AA$20,F$12,$D$21:$AA$21,$B15)) -> 3.021714981 | G15: =IF($C$8='Auxiliary data'!$D$6,SUMIFS($D$30:$AA$30,$D$20:$AA$20,G$12,$D$21:$AA$21,$B15)+IF($C$4='Auxiliary data'!$H$6,0,INDEX($E$55:$L$55,MATCH(G$12,$E$54:$L$54,0))),SUMIFS($D$30:$AA$30,$D$20:$AA$20,G$12,$D$21:$AA$21,$B15)) -> 2.70711458 | H15: =IF($C$8='Auxiliary data'!$D$6,SUMIFS($D$30:$AA$30,$D$20:$AA$20,H$12,$D$21:$AA$21,$B15)+IF($C$4='Auxiliary data'!$H$6,0,INDEX($E$55:$L$55,MATCH(H$12,$E$54:$L$54,0))),SUMIFS($D$30:$AA$30,$D$20:$AA$20,H$12,$D$21:$AA$21,$B15)) -> 2.400667539 | I15: =IF($C$8='Auxiliary data'!$D$6,SUMIFS($D$30:$AA$30,$D$20:$AA$20,I$12,$D$21:$AA$21,$B15)+IF($C$4='Auxiliary data'!$H$6,0,INDEX($E$55:$L$55,MATCH(I$12,$E$54:$L$54,0))),SUMIFS($D$30:$AA$30,$D$20:$AA$20,I$12,$D$21:$AA$21,$B15)) -> 2.173765479 | J15: =IF($C$8='Auxiliary data'!$D$6,SUMIFS($D$30:$AA$30,$D$20:$AA$20,J$12,$D$21:$AA$21,$B15)+IF($C$4='Auxiliary data'!$H$6,0,INDEX($E$55:$L$55,MATCH(J$12,$E$54:$L$54,0))),SUMIFS($D$30:$AA$30,$D$20:$AA$20,J$12,$D$21:$AA$21,$B15)) -> 1.98981771 | K15: =IF($C$8='Auxiliary data'!$D$6,SUMIFS($D$30:$AA$30,$D$20:$AA$20,K$12,$D$21:$AA$21,$B15)+IF($C$4='Auxiliary data'!$H$6,0,INDEX($E$55:$L$55,MATCH(K$12,$E$54:$L$54,0))),SUMIFS($D$30:$AA$30,$D$20:$AA$20,K$12,$D$21:$AA$21,$B15)) -> 1.813227851
B16: Pessimistic | C16: ct/kWh(el) | D16: =IF($C$8='Auxiliary data'!$D$6,SUMIFS($D$30:$AA$30,$D$20:$AA$20,D$12,$D$21:$AA$21,$B16)+IF($C$4='Auxiliary data'!$H$6,0,INDEX($E$55:$L$55,MATCH(D$12,$E$54:$L$54,0))),SUMIFS($D$30:$AA$30,$D$20:$AA$20,D$12,$D$21:$AA$21,$B16)) -> 4.683532748 | E16: =IF($C$8='Auxiliary data'!$D$6,SUMIFS($D$30:$AA$30,$D$20:$AA$20,E$12,$D$21:$AA$21,$B16)+IF($C$4='Auxiliary data'!$H$6,0,INDEX($E$55:$L$55,MATCH(E$12,$E$54:$L$54,0))),SUMIFS($D$30:$AA$30,$D$20:$AA$20,E$12,$D$21:$AA$21,$B16)) -> 3.95991584 | F16: =IF($C$8='Auxiliary data'!$D$6,SUMIFS($D$30:$AA$30,$D$20:$AA$20,F$12,$D$21:$AA$21,$B16)+IF($C$4='Auxiliary data'!$H$6,0,INDEX($E$55:$L$55,MATCH(F$12,$E$54:$L$54,0))),SUMIFS($D$30:$AA$30,$D$20:$AA$20,F$12,$D$21:$AA$21,$B16)) -> 3.595887702 | G16: =IF($C$8='Auxiliary data'!$D$6,SUMIFS($D$30:$AA$30,$D$20:$AA$20,G$12,$D$21:$AA$21,$B16)+IF($C$4='Auxiliary data'!$H$6,0,INDEX($E$55:$L$55,MATCH(G$12,$E$54:$L$54,0))),SUMIFS($D$30:$AA$30,$D$20:$AA$20,G$12,$D$21:$AA$21,$B16)) -> 3.342843753 | H16: =IF($C$8='Auxiliary data'!$D$6,SUMIFS($D$30:$AA$30,$D$20:$AA$20,H$12,$D$21:$AA$21,$B16)+IF($C$4='Auxiliary data'!$H$6,0,INDEX($E$55:$L$55,MATCH(H$12,$E$54:$L$54,0))),SUMIFS($D$30:$AA$30,$D$20:$AA$20,H$12,$D$21:$AA$21,$B16)) -> 3.151950949 | I16: =IF($C$8='Auxiliary data'!$D$6,SUMIFS($D$30:$AA$30,$D$20:$AA$20,I$12,$D$21:$AA$21,$B16)+IF($C$4='Auxiliary data'!$H$6,0,INDEX($E$55:$L$55,MATCH(I$12,$E$54:$L$54,0))),SUMIFS($D$30:$AA$30,$D$20:$AA$20,I$12,$D$21:$AA$21,$B16)) -> 2.992133718 | J16: =IF($C$8='Auxiliary data'!$D$6,SUMIFS($D$30:$AA$30,$D$20:$AA$20,J$12,$D$21:$AA$21,$B16)+IF($C$4='Auxiliary data'!$H$6,0,INDEX($E$55:$L$55,MATCH(J$12,$E$54:$L$54,0))),SUMIFS($D$30:$AA$30,$D$20:$AA$20,J$12,$D$21:$AA$21,$B16)) -> 2.850073957 | K16: =IF($C$8='Auxiliary data'!$D$6,SUMIFS($D$30:$AA$30,$D$20:$AA$20,K$12,$D$21:$AA$21,$B16)+IF($C$4='Auxiliary data'!$H$6,0,INDEX($E$55:$L$55,MATCH(K$12,$E$54:$L$54,0))),SUMIFS($D$30:$AA$30,$D$20:$AA$20,K$12,$D$21:$AA$21,$B16)) -> 2.690256726
B18: Calculation
B20: Year of investment | D20: 2017 | E20: 2017 | F20: 2017 | G20: 2020 | H20: 2020 | I20: 2020 | J20: 2025 | K20: 2025 | L20: 2025 | M20: 2030 | N20: 2030 | O20: 2030 | P20: 2035 | Q20: 2035 | R20: 2035 | S20: 2040 | T20: 2040 | U20: 2040 | V20: 2045 | W20: 2045 | X20: 2045 | Y20: 2050 | Z20: 2050 | AA20: 2050
B21: Scenario | D21: Optimistic | E21: Reference | F21: Pessimistic | G21: Optimistic | H21: Reference | I21: Pessimistic | J21: Optimistic | K21: Reference | L21: Pessimistic | M21: Optimistic | N21: Reference | O21: Pessimistic | P21: Optimistic | Q21: Reference | R21: Pessimistic | S21: Optimistic | T21: Reference | U21: Pessimistic | V21: Optimistic | W21: Reference | X21: Pessimistic | Y21: Optimistic | Z21: Reference | AA21: Pessimistic
B22: Full-load hours | C22: kWh/kW/year | D22: =INDEX($E$37:$G$42,MATCH($C$7&$C$8,$D$37:$D$42,0),MATCH(D$21,$E$36:$G$36,0)) -> 2500 | E22: 2344 | F22: 2100 | G22: 2500 | H22: 2344 | I22: 2100 | J22: 2500 | K22: 2344 | L22: 2100 | M22: 2500 | N22: 2344 | O22: 2100 | P22: 2500 | Q22: 2344 | R22: 2100 | S22: 2500 | T22: 2344 | U22: 2100 | V22: 2500 | W22: 2344 | X22: 2100 | Y22: 2500 | Z22: 2344 | AA22: 2100
B23: Investment cost | C23: EUR/kW | D23: =INDEX($E$60:$L$80,MATCH($C$8&D$21,$D$60:$D$80,0),MATCH(D$20,$E$59:$L$59,0)) -> 1028.5 | E23: 1041.75 | F23: 1055 | G23: 832.7 | H23: 862.35 | I23: 892 | J23: 709.5 | K23: 759.75 | L23: 810 | M23: 608.3 | N23: 680.65 | O23: 753 | P23: 497.2 | Q23: 603.6 | R23: 710 | S23: 419.1 | T23: 546.55 | U23: 674 | V23: 358.6 | W23: 500.3 | X23: 642 | Y23: 305.8 | Z23: 455.9 | AA23: 606
B24: Investment cost per year | C24: EUR/kW/year | D24: =((1+D$27)^D$26)*D$27/(((1+D$27)^D$26)-1)*D$23 -> 80.45617968 | E24: =((1+E$27)^E$26)*E$27/(((1+E$27)^E$26)-1)*E$23 -> 81.4926837 | F24: =((1+F$27)^F$26)*F$27/(((1+F$27)^F$26)-1)*F$23 -> 82.52918771 | G24: 65.13938826 | H24: 67.45881045 | I24: =((1+I$27)^I$26)*I$27/(((1+I$27)^I$26)-1)*I$23 -> 69.77823265 | J24: =((1+J$27)^J$26)*J$27/(((1+J$27)^J$26)-1)*J$23 -> 55.50185657 | K24: 59.43274916 | L24: 63.36364175 | M24: 47.58531269 | N24: 53.24501575 | O24: 58.90471881 | P24: 38.8943243 | Q24: 47.21764711 | R24: 55.54096993 | S24: 32.7848176 | T24: 42.75481284 | U24: 52.72480808 | V24: 28.05210115 | W24: 39.13682712 | X24: 50.22155309 | Y24: 23.92173043 | Z24: 35.66356083 | AA24: 47.40539124
B25: Operating cost per year | C25: EUR/kW/year | D25: =IFERROR(INDEX($C$84:$C$90,MATCH($C$8,$B$84:$B$90,0))*D23,"") -> 15.4275 | E25: 15.62625 | F25: 15.825 | G25: 12.4905 | H25: 12.93525 | I25: 13.38 | J25: 10.6425 | K25: 11.39625 | L25: 12.15 | M25: 9.1245 | N25: 10.20975 | O25: 11.295 | P25: 7.458 | Q25: 9.054 | R25: 10.65 | S25: 6.2865 | T25: 8.19825 | U25: 10.11 | V25: 5.379 | W25: 7.5045 | X25: 9.63 | Y25: 4.587 | Z25: 6.8385 | AA25: 9.09
B26: Lifetime | C26: y | D26: =INDEX($C$46:$C$49,MATCH($C$8,$B$46:$B$49,0)) -> 25 | E26: 25 | F26: 25 | G26: 25 | H26: 25 | I26: 25 | J26: 25 | K26: 25 | L26: 25 | M26: 25 | N26: 25 | O26: 25 | P26: 25 | Q26: 25 | R26: 25 | S26: 25 | T26: 25 | U26: 25 | V26: 25 | W26: 25 | X26: 25 | Y26: 25 | Z26: 25 | AA26: 25
B27: WACC (WACC) | C27: %, real | D27: ='Cost of synthetic liquid fuel'!$C$7 -> 0.06 | E27: ='Cost of synthetic liquid fuel'!$C$7 -> 0.06 | F27: ='Cost of synthetic liquid fuel'!$C$7 -> 0.06 | G27: ='Cost of synthetic liquid fuel'!$C$7 -> 0.06 | H27: ='Cost of synthetic liquid fuel'!$C$7 -> 0.06 | I27: ='Cost of synthetic liquid fuel'!$C$7 -> 0.06 | J27: ='Cost of synthetic liquid fuel'!$C$7 -> 0.06 | K27: ='Cost of synthetic liquid fuel'!$C$7 -> 0.06 | L27: ='Cost of synthetic liquid fuel'!$C$7 -> 0.06 | M27: ='Cost of synthetic liquid fuel'!$C$7 -> 0.06 | N27: ='Cost of synthetic liquid fuel'!$C$7 -> 0.06 | O27: ='Cost of synthetic liquid fuel'!$C$7 -> 0.06 | P27: ='Cost of synthetic liquid fuel'!$C$7 -> 0.06 | Q27: ='Cost of synthetic liquid fuel'!$C$7 -> 0.06 | R27: ='Cost of synthetic liquid fuel'!$C$7 -> 0.06 | S27: ='Cost of synthetic liquid fuel'!$C$7 -> 0.06 | T27: ='Cost of synthetic liquid fuel'!$C$7 -> 0.06 | U27: ='Cost of synthetic liquid fuel'!$C$7 -> 0.06 | V27: ='Cost of synthetic liquid fuel'!$C$7 -> 0.06 | W27: ='Cost of synthetic liquid fuel'!$C$7 -> 0.06 | X27: ='Cost of synthetic liquid fuel'!$C$7 -> 0.06 | Y27: ='Cost of synthetic liquid fuel'!$C$7 -> 0.06 | Z27: ='Cost of synthetic liquid fuel'!$C$7 -> 0.06 | AA27: ='Cost of synthetic liquid fuel'!$C$7 -> 0.06
B28: LCOE - Investment cost | C28: ct/kWh | D28: =D24/D$22*100 -> 3.218247187 | E28: 3.476650328 | F28: 3.92996132 | G28: 2.60557553 | H28: 2.877935599 | I28: 3.322772983 | J28: =J24/J$22*100 -> 2.220074263 | K28: 2.535526841 | L28: 3.017316274 | M28: 1.903412508 | N28: 2.271545041 | O28: 2.80498661 | P28: 1.555772972 | Q28: 2.01440474 | R28: 2.644808092 | S28: 1.311392704 | T28: 1.824010787 | U28: 2.510705146 | V28: 1.122084046 | W28: 1.66965986 | X28: 2.391502528 | Y28: 0.9568692172 | Z28: 1.521482971 | AA28: 2.257399583
B29: LCOE - Operating cost | C29: ct/kWh | D29: =IFERROR(D25/D$22*100,"") -> 0.6171 | E29: =IFERROR(E25/E$22*100,"") -> 0.6666488908 | F29: 0.7535714286 | G29: 0.49962 | H29: 0.5518451365 | I29: 0.6371428571 | J29: =IFERROR(J25/J$22*100,"") -> 0.4257 | K29: 0.4861881399 | L29: 0.5785714286 | M29: 0.36498 | N29: 0.4355695392 | O29: 0.5378571429 | P29: 0.29832 | Q29: 0.3862627986 | R29: 0.5071428571 | S29: 0.25146 | T29: 0.3497546928 | U29: 0.4814285714 | V29: 0.21516 | W29: 0.3201578498 | X29: 0.4585714286 | Y29: 0.18348 | Z29: 0.2917448805 | AA29: 0.4328571429
B30: LCOE - electricity generation cost | C30: ct/kWhel | D30: =SUM(D28:D29) -> 3.835347187 | E30: 4.143299219 | F30: 4.683532748 | G30: 3.10519553 | H30: 3.429780736 | I30: 3.95991584 | J30: =SUM(J28:J29) -> 2.645774263 | K30: 3.021714981 | L30: 3.595887702 | M30: 2.268392508 | N30: 2.70711458 | O30: 3.342843753 | P30: 1.854092972 | Q30: 2.400667539 | R30: 3.151950949 | S30: 1.562852704 | T30: 2.173765479 | U30: 2.992133718 | V30: 1.337244046 | W30: 1.98981771 | X30: 2.850073957 | Y30: 1.140349217 | Z30: 1.813227851 | AA30: 2.690256726
B32: Data
B34: Full-load hours
B36: Origin | C36: Renewable energy source | D36: Auxiliary data | E36: Optimistic | F36: Reference | G36: Pessimistic
B37: North Africa | C37: PV | D37: =B37&C37 -> North AfricaPV | E37: 2500 | F37: 2344 | G37: 2100
B38: North Africa | C38: PV/wind combination | D38: North AfricaPV/wind combination | E38: 5015 | F38: 4287.4 | G38: 3485
B39: North and Baltic Seas | C39: Offshore wind | D39: North and Baltic SeasOffshore wind | E39: 4400 | F39: 4000 | G39: 3500
B40: Middle East | C40: PV | D40: Middle EastPV | E40: 2600 | F40: 2440 | G40: 2200
B41: Middle East | C41: PV/wind combination | D41: Middle EastPV/wind combination | E41: 4335 | F41: 4156.5 | G41: 3910
B42: Iceland | C42: Geothermal/hydropower | D42: IcelandGeothermal/hydropower | E42: 8000 | F42: 8000 | G42: 8000
B44: Lifetime
B46: Offshore wind | C46: 25
B47: PV | C47: 25
B48: PV/wind combination | C48: 22.5
B49: Geothermal/hydropower | C49: 40
B52: Investment cost und operating cost
B54: Grid connection cost | E54: 2017 | F54: 2020 | G54: 2025 | H54: 2030 | I54: 2035 | J54: 2040 | K54: 2045 | L54: 2050
B55: Offshore wind | C55: ct/kWh | E55: 1.5 | F55: 1.5 | G55: 1.32164354 | H55: 1.164494431 | I55: 1.026031028 | J55: 0.9040315203 | K55: 0.7965382792 | L55: 0.7018264474
B57: Investment cost
B58: Renewable energy source | C58: Scenario | D58: Auxiliary | E58: yeare
E59: 2017 | F59: 2020 | G59: 2025 | H59: 2030 | I59: 2035 | J59: 2040 | K59: 2045 | L59: 2050
B60: Geothermal | C60: Optimistic | D60: =B60&C60 -> GeothermalOptimistic | E60: 2614.0136 | F60: 2523.8752 | G60: 2456.2714 | H60: 2388.6676 | I60: 2321.0638 | J60: 2253.46 | K60: 2185.96 | L60: 2118.46
B61: hydropower | C61: Optimistic | D61: =B61&C61 -> hydropowerOptimistic | E61: 2388.6676 | F61: 2388.6676 | G61: 2388.6676 | H61: 2388.6676 | I61: 2388.6676 | J61: 2388.6676 | K61: 2388.6676 | L61: 2388.6676
B62: Offshore wind | C62: Optimistic | D62: =B62&C62 -> Offshore windOptimistic | E62: 3720 | F62: 2250 | G62: 1800 | H62: 1720 | I62: 1640 | J62: 1560 | K62: 1480 | L62: 1400
B63: Onshore wind | C63: Optimistic | D63: =B63&C63 -> Onshore windOptimistic | E63: 1658.54656 | F63: 1415.293065 | G63: 1172.039569 | H63: 928.7860736 | I63: 891.468776 | J63: 854.1514784 | K63: 816.8341808 | L63: 779.5168832
B64: PV | C64: Optimistic | D64: =B64&C64 -> PVOptimistic | E64: 1028.5 | F64: 832.7 | G64: 709.5 | H64: 608.3 | I64: 497.2 | J64: 419.1 | K64: 358.6 | L64: 305.8
B65: PV/wind combination | C65: Optimistic | D65: =B65&C65 -> PV/wind combinationOptimistic | E65: 2687.04656 | F65: 2247.993065 | G65: 1881.539569 | H65: 1537.086074 | I65: 1388.668776 | J65: 1273.251478 | K65: 1175.434181 | L65: 1085.316883
B66: Geothermal/hydropower | C66: Optimistic | D66: Geothermal/hydropowerOptimistic | E66: 2501.3406 | F66: 2456.2714 | G66: 2422.4695 | H66: 2388.6676 | I66: 2354.8657 | J66: 2321.0638 | K66: 2287.3138 | L66: 2253.5638
B67: Geothermal | C67: Reference | D67: GeothermalReference | E67: 2614.0136 | F67: 2523.8752 | G67: 2478.806 | H67: 2433.7368 | I67: 2388.6676 | J67: 2343.5984 | K67: 2298.5984 | L67: 2253.5984
B68: hydropower | C68: Reference | D68: hydropowerReference | E68: 2388.6676 | F68: 2388.6676 | G68: 2388.6676 | H68: 2388.6676 | I68: 2388.6676 | J68: 2388.6676 | K68: 2388.6676 | L68: 2388.6676
B69: Offshore wind | C69: Reference | D69: Offshore windReference | E69: 3720 | F69: 2800 | G69: 2350 | H69: 2200 | I69: 2050 | J69: 1900 | K69: 1750 | L69: 1600
B70: Onshore wind | C70: Reference | D70: Onshore windReference | E70: 1658.54656 | F70: 1525.862835 | G70: 1393.17911 | H70: 1260.495386 | I70: 1214.885355 | J70: 1169.275325 | K70: 1123.665294 | L70: 1078.055264
B71: PV | C71: Reference | D71: PVReference | E71: 1041.75 | F71: 862.35 | G71: 759.75 | H71: 680.65 | I71: 603.6 | J71: 546.55 | K71: 500.3 | L71: 455.9
B72: PV/wind combination | C72: Reference | D72: PV/wind combinationReference | E72: 2700.29656 | F72: 2388.212835 | G72: 2152.92911 | H72: 1941.145386 | I72: 1818.485355 | J72: 1715.825325 | K72: 1623.965294 | L72: 1533.955264
B73: Geothermal/hydropower | C73: Reference | D73: Geothermal/hydropowerReference | E73: 2501.3406 | F73: 2456.2714 | G73: 2433.7368 | H73: 2411.2022 | I73: 2388.6676 | J73: 2366.133 | K73: 2343.633 | L73: 2321.133
B74: Geothermal | C74: Pessimistic | D74: GeothermalPessimistic | E74: 2614.0136 | F74: 2576.670549 | G74: 2539.327497 | H74: 2501.984446 | I74: 2464.641394 | J74: 2427.298343 | K74: 2389.955291 | L74: 2352.61224
B75: hydropower | C75: Pessimistic | D75: hydropowerPessimistic | E75: 2388.6676 | F75: 2388.6676 | G75: 2388.6676 | H75: 2388.6676 | I75: 2388.6676 | J75: 2388.6676 | K75: 2388.6676 | L75: 2388.6676
B76: Offshore wind | C76: Pessimistic | D76: Offshore windPessimistic | E76: 3720 | F76: 3502.326087 | G76: 3284.652174 | H76: 3066.978261 | I76: 2849.304348 | J76: 2631.630435 | K76: 2413.956522 | L76: 2196.282609
B77: Onshore wind | C77: Pessimistic | D77: Onshore windPessimistic | E77: 1658.54656 | F77: 1604.46352 | G77: 1577.422 | H77: 1550.38048 | I77: 1532.3528 | J77: 1514.32512 | K77: 1496.32512 | L77: 1478.32512
B78: PV | C78: Pessimistic | D78: PVPessimistic | E78: 1055 | F78: 892 | G78: 810 | H78: 753 | I78: 710 | J78: 674 | K78: 642 | L78: 606
B79: PV/wind combination | C79: Pessimistic | D79: PV/wind combinationPessimistic | E79: 2713.54656 | F79: 2496.46352 | G79: 2387.422 | H79: 2303.38048 | I79: 2242.3528 | J79: 2188.32512 | K79: 2138.32512 | L79: 2084.32512
B80: Geothermal/hydropower | C80: Pessimistic | D80: Geothermal/hydropowerPessimistic | E80: 2501.3406 | F80: 2482.669074 | G80: 2463.997549 | H80: 2445.326023 | I80: 2426.654497 | J80: 2407.982971 | K80: 2389.311446 | L80: 2370.63992
B82: Operating cost
B83: Renewable energy source | C83: OPEX (% of investment cost)
B84: Geothermal | C84: 0.02
B85: hydropower | C85: 0.025
B86: Offshore wind | C86: 0.032
B87: Onshore wind | C87: 0.025
B88: PV | C88: 0.015
B89: PV/wind combination | C89: 0.02
B90: Geothermal/hydropower | C90: 0.0225

Sheet 2. Conversion >>>

Sheet H2 electrolysis
B1: Cost of hydrogen electrolysis
B3: Control Panel
B4: Technology of hydrogen electrolysis | C4: Low-temperature
B5: Investment cost (2016/17) | C5: €/kWel
B6: - Low-temperature | C6: =$D$41 -> 800
B7: - High-temperature | C7: =$D$42 -> 1000
B9: Scenario: Reference
C10: Low-temperature | D10: High-temperature
B11: Relative cost decline over 5 years | C11: 0.079 | D11: 0.0703
B13: Underlying assumptions
B14: Scenario | C14: ='Control Panel'!$C$4:$E$4 -> Reference
B15: Origin | C15: ='Control Panel'!$C$5:$E$5 -> North Africa
B16: Renewable energy source | C16: ='Control Panel'!$C$6:$E$6 -> PV
B17: Cost of capital (WACC) | C17: ='Control Panel'!$C$8:$E$8 -> 0.06
B19: Results by scenario
B21: ="Scenario: "&$C$14 -> Scenario: Reference | D21: 2017 | E21: 2020 | F21: 2025 | G21: 2030 | H21: 2035 | I21: 2040 | J21: 2045 | K21: 2050
B22: Operating cost | C22: €/kWel | D22: =IF($C$4="Low-temperature",$D$45,$D$46)*D23 -> 24 | E22: 22.104 | F22: 20.357784 | G22: 18.74951906 | H22: 17.26830706 | I22: 15.9041108 | J22: 14.64768605 | K22: 13.49051885
B23: Total investment cost | C23: €/kWel | D23: =IF($C$4="Low-temperature",$C$6,$C$7) -> 800 | E23: =IF($C$4="Low-temperature",IF($C$14="Optimistic",D23*(1-$D$56),IF($C$14="Reference",D23*(1-$E$56),D23*(1-$F$56))),IF($C$14="Optimistic",D23*(1-$D$57),IF($C$14="Reference",D23*(1-$E$57),D23*(1-$F$57)))) -> 736.8 | F23: 678.5928 | G23: 624.9839688 | H23: 575.6102353 | I23: 530.1370267 | J23: 488.2562016 | K23: 449.6839616
B24: Lifetime | C24: years | D24: =IF($C$4="Low-temperature",$D$49,$D$50) -> 25 | E24: 25 | F24: 25 | G24: 25 | H24: 25 | I24: 25 | J24: 25 | K24: 25
B25: Expected full-load hours | C25: hrs/year | D25: =IF($C$14="Optimistic",$D$53,IF($C$14="Reference",$E$53,$F$53)) -> 2344 | E25: 2344 | F25: 2344 | G25: 2344 | H25: 2344 | I25: 2344 | J25: 2344 | K25: 2344
B26: Investment cost per year | C26: €/kWel | D26: =(((1+'Cost of synthetic liquid fuel'!$C$7)^D$24)*'Cost of synthetic liquid fuel'!$C$7)/(((1+'Cost of synthetic liquid fuel'!$C$7)^D$24)-1)*D$23 -> 62.58137457 | E26: =(((1+'Cost of synthetic liquid fuel'!$C$7)^E$24)*'Cost of synthetic liquid fuel'!$C$7)/(((1+'Cost of synthetic liquid fuel'!$C$7)^E$24)-1)*E$23 -> 57.63744598 | F26: =(((1+'Cost of synthetic liquid fuel'!$C$7)^F$24)*'Cost of synthetic liquid fuel'!$C$7)/(((1+'Cost of synthetic liquid fuel'!$C$7)^F$24)-1)*F$23 -> 53.08408775 | G26: =(((1+'Cost of synthetic liquid fuel'!$C$7)^G$24)*'Cost of synthetic liquid fuel'!$C$7)/(((1+'Cost of synthetic liquid fuel'!$C$7)^G$24)-1)*G$23 -> 48.89044481 | H26: =(((1+'Cost of synthetic liquid fuel'!$C$7)^H$24)*'Cost of synthetic liquid fuel'!$C$7)/(((1+'Cost of synthetic liquid fuel'!$C$7)^H$24)-1)*H$23 -> 45.02809967 | I26: =(((1+'Cost of synthetic liquid fuel'!$C$7)^I$24)*'Cost of synthetic liquid fuel'!$C$7)/(((1+'Cost of synthetic liquid fuel'!$C$7)^I$24)-1)*I$23 -> 41.4708798 | J26: =(((1+'Cost of synthetic liquid fuel'!$C$7)^J$24)*'Cost of synthetic liquid fuel'!$C$7)/(((1+'Cost of synthetic liquid fuel'!$C$7)^J$24)-1)*J$23 -> 38.1946803 | K26: =(((1+'Cost of synthetic liquid fuel'!$C$7)^K$24)*'Cost of synthetic liquid fuel'!$C$7)/(((1+'Cost of synthetic liquid fuel'!$C$7)^K$24)-1)*K$23 -> 35.17730055
B27: Electricity generation cost | C27: ct/kWhel | D27: =INDEX('1. LCOE renewables'!$D$14:$K$16,MATCH($C$14,'1. LCOE renewables'!$B$14:$B$16,0),MATCH(D$21,'1. LCOE renewables'!$D$12:$K$12,0)) -> 4.143299219 | E27: =INDEX('1. LCOE renewables'!$D$14:$K$16,MATCH($C$14,'1. LCOE renewables'!$B$14:$B$16,0),MATCH(E$21,'1. LCOE renewables'!$D$12:$K$12,0)) -> 3.429780736 | F27: =INDEX('1. LCOE renewables'!$D$14:$K$16,MATCH($C$14,'1. LCOE renewables'!$B$14:$B$16,0),MATCH(F$21,'1. LCOE renewables'!$D$12:$K$12,0)) -> 3.021714981 | G27: =INDEX('1. LCOE renewables'!$D$14:$K$16,MATCH($C$14,'1. LCOE renewables'!$B$14:$B$16,0),MATCH(G$21,'1. LCOE renewables'!$D$12:$K$12,0)) -> 2.70711458 | H27: =INDEX('1. LCOE renewables'!$D$14:$K$16,MATCH($C$14,'1. LCOE renewables'!$B$14:$B$16,0),MATCH(H$21,'1. LCOE renewables'!$D$12:$K$12,0)) -> 2.400667539 | I27: =INDEX('1. LCOE renewables'!$D$14:$K$16,MATCH($C$14,'1. LCOE renewables'!$B$14:$B$16,0),MATCH(I$21,'1. LCOE renewables'!$D$12:$K$12,0)) -> 2.173765479 | J27: =INDEX('1. LCOE renewables'!$D$14:$K$16,MATCH($C$14,'1. LCOE renewables'!$B$14:$B$16,0),MATCH(J$21,'1. LCOE renewables'!$D$12:$K$12,0)) -> 1.98981771 | K27: =INDEX('1. LCOE renewables'!$D$14:$K$16,MATCH($C$14,'1. LCOE renewables'!$B$14:$B$16,0),MATCH(K$21,'1. LCOE renewables'!$D$12:$K$12,0)) -> 1.813227851
B28: Efficiency (electricity to hydrogen) | C28: % | D28: =IF($C$4="Low-temperature",D$62,D$63) -> 0.65 | E28: 0.6714285714 | F28: 0.6928571429 | G28: 0.7142857143 | H28: 0.7357142857 | I28: 0.7571428571 | J28: 0.7785714286 | K28: 0.8
B29: Electricity cost | C29: ct/kWhH2 | D29: =D27/D28 -> 6.374306491 | E29: =E27/E28 -> 5.108184075 | F29: =F27/F28 -> 4.361238117 | G29: 3.789960412 | H29: 3.263043257 | I29: 2.871011011 | J29: 2.555729169 | K29: 2.266534814
B30: Cost of water supply (desalination) | C30: ct/kWhH2 | D30: =IF($C$14="Optimistic",$D$97,IF($C$14="Reference",$E$97,$F$97)) -> 0.0001446450947 | E30: 0.0001446450947 | F30: 0.0001446450947 | G30: 0.0001446450947 | H30: 0.0001446450947 | I30: 0.0001446450947 | J30: 0.0001446450947 | K30: 0.0001446450947
B31: Investment cost | C31: ct/kWhH2 | D31: =D26/D25*100/D28 -> 4.107467483 | E31: =E26/E25*100/E28 -> 3.662244226 | F31: =F26/F25*100/F28 -> 3.268609604 | G31: 2.920077762 | H31: 2.611059824 | I31: 2.336726114 | J31: 2.09289196 | K31: 1.875922598
B32: Operating cost per year | C32: ct/kWhH2 | D32: =D22/D25*100/D28 -> 1.575216592 | E32: =E22/E25*100/E28 -> 1.404473168 | F32: =F22/F25*100/F28 -> 1.253514021 | G32: 1.119851821 | H32: 1.00134323 | I32: 0.8961360648 | J32: 0.8026254997 | K32: 0.7194176008
B33: Result: Cost of conversion to hydrogen, excluding electricity cost | C33: ct/kWhH2 | D33: =SUM(D30:D32) -> 5.68282872 | E33: =SUM(E30:E32) -> 5.066862039 | F33: 4.52226827 | G33: 4.040074228 | H33: 3.6125477 | I33: 3.233006824 | J33: 2.895662104 | K33: 2.595484844
B34: Result: Cost of conversion to hydrogen, including electricity cost | C34: ct/kWhH2 | D34: =SUM(D29:D32) -> 12.05713521 | E34: =SUM(E29:E32) -> 10.17504611 | F34: 8.883506388 | G34: 7.83003464 | H34: 6.875590956 | I34: 6.104017835 | J34: 5.451391273 | K34: 4.862019658
B36: Data
B38: Investment cost, operating cost, cost decline and full-load hours
B40: Investment cost | D40: Today
B41: Low-temperature | C41: €/kW(el) | D41: 800
B42: High-temperature | C42: €/kW(el) | D42: 1000
B44: Operating cost
B45: Low-temperature | C45: % of Capex | D45: 0.03
B46: High-temperature | C46: % of Capex | D46: 0.035
B48: Lifetime
B49: Low-temperature | C49: year | D49: 25
B50: High-temperature | C50: year | D50: 20
B52: Expected full-load hours | D52: Optimistic | E52: Reference | F52: Pessimistic
B53: Low-temperature | C53: hrs/year | D53: =INDEX('1. LCOE renewables'!$E$37:$G$42,MATCH('H2 electrolysis'!$C$15&'H2 electrolysis'!$C$16,'1. LCOE renewables'!$D$37:$D$42,0),MATCH('H2 electrolysis'!D$52,'1. LCOE renewables'!$E$36:$G$36,0)) -> 2500 | E53: =INDEX('1. LCOE renewables'!$E$37:$G$42,MATCH('H2 electrolysis'!$C$15&'H2 electrolysis'!$C$16,'1. LCOE renewables'!$D$37:$D$42,0),MATCH('H2 electrolysis'!E$52,'1. LCOE renewables'!$E$36:$G$36,0)) -> 2344 | F53: =INDEX('1. LCOE renewables'!$E$37:$G$42,MATCH('H2 electrolysis'!$C$15&'H2 electrolysis'!$C$16,'1. LCOE renewables'!$D$37:$D$42,0),MATCH('H2 electrolysis'!F$52,'1. LCOE renewables'!$E$36:$G$36,0)) -> 2100
B55: Relative cost decline (in five-year steps from today until 2050) | D55: Optimistic | E55: Reference | F55: Pessimistic
B56: Low-temperature | D56: 0.1795 | E56: =C11 -> 0.079 | F56: 0.0403
B57: High-temperature | D57: 0.1227 | E57: =D11 -> 0.0703 | F57: 0.0313
B59: Efficiency (electricity to hydrogen)
D61: 2017 | E61: 2020 | F61: 2025 | G61: 2030 | H61: 2035 | I61: 2040 | J61: 2045 | K61: 2050
B62: Low-temperature | C62: LHV | D62: 0.65 | E62: =D62+(($K$62-$D$62)/COUNT($E$61:$K$61)) -> 0.6714285714 | F62: 0.6928571429 | G62: 0.7142857143 | H62: 0.7357142857 | I62: 0.7571428571 | J62: 0.7785714286 | K62: 0.8
B63: High-temperature | C63: LHV | D63: 0.8 | E63: =D63+(($K$63-$D$63)/COUNT($E$61:$K$61)) -> 0.8142857143 | F63: 0.8285714286 | G63: 0.8428571429 | H63: 0.8571428571 | I63: 0.8714285714 | J63: 0.8857142857 | K63: 0.9
B65: Cost of water supply
B67: Assumptions
B68: Capacity | C68: kW(el) | D68: 100000
B69: Yearly electricity needed | C69: kWh(el)H2 | D69: =$D$68*$D$70 -> 800000000
B70: Expected full-load hours | C70: hrs | D70: 8000
B73: Calculation
B74: Amount of water | D74: Optimistic | E74: Reference | F74: Pessimistic
D75: 2017 | E75: 2017 | F75: 2017
B76: Amount of desalinated water* (per input el) | C76: m³/kWh(el) | D76: 0.0001366906475 | E76: 0.0001897482014 | F76: 0.000273381295
B77: Efficiency (el input/el output) | D77: 0.65
B78: Amount of desalinated water (per output el) | C78: m³/kWh(el)H2 | D78: =D76/D77 -> 0.0002102933038 | E78: =E76/D77 -> 0.0002919203099 | F78: =F76/D77 -> 0.0004205866076
B79: Amount of water needed | C79: m³/day | D79: =IFERROR(D78*$D$69/365,NA()) -> 460.9168303 | E79: =IFERROR(E78*$D$69/365,NA()) -> 639.8253368 | F79: =IFERROR(F78*$D$69/365,NA()) -> 921.8336606
B80: * Amount of desalinated water (refering to the INPUT electricity for electrolysis, not the OUTPUT)
D82: Optimistic | E82: Reference | F82: Pessimistic
B83: Cost | D83: 2017 | E83: 2017 | F83: 2017
B84: Investment cost (Capex) | C84: €/m³day | D84: 1150 | E84: 1150 | F84: 1150
B85: Lifetime | C85: years | D85: 25 | E85: 25 | F85: 25
B86: Investment cost per year | C86: €/m³day, y | D86: =(((1+'Cost of synthetic liquid fuel'!$C$7)^D$85)*'Cost of synthetic liquid fuel'!$C$7)/(((1+'Cost of synthetic liquid fuel'!$C$7)^D$85)-1)*D$84 -> 89.96072594 | E86: =(((1+'Cost of synthetic liquid fuel'!$C$7)^E$85)*'Cost of synthetic liquid fuel'!$C$7)/(((1+'Cost of synthetic liquid fuel'!$C$7)^E$85)-1)*E$84 -> 89.96072594 | F86: =(((1+'Cost of synthetic liquid fuel'!$C$7)^F$85)*'Cost of synthetic liquid fuel'!$C$7)/(((1+'Cost of synthetic liquid fuel'!$C$7)^F$85)-1)*F$84 -> 89.96072594
B87: Operating cost | C87: €/m³day, y | D87: =4%*D84 -> 46 | E87: =4%*E84 -> 46 | F87: =4%*F84 -> 46
B88: OPEX+CAPEX | C88: €/m³day, y | D88: =SUM(D86:D87) -> 135.9607259 | E88: =SUM(E86:E87) -> 135.9607259 | F88: =SUM(F86:F87) -> 135.9607259
B89: OPEX+CAPEX | C89: EUR,y | D89: =IFERROR(D79*D88,NA()) -> 62666.58685 | E89: =IFERROR(E79*E88,NA()) -> 86991.11727 | F89: =IFERROR(F79*F88,NA()) -> 125333.1737
B90: OPEX+CAPEX | C90: €/kWh(el) | D90: =D89/$D$69 -> 7.833323356e-05 | E90: =E89/$D$69 -> 0.0001087388966 | F90: =F89/$D$69 -> 0.0001566664671
B92: Electricity generation cost | C92: €/kWh(el) | D92: 0.03 | E92: 0.03 | F92: 0.03
B93: Energy Consumption | C93: kWh(el)/m³ | D93: 4.1 | E93: 4.1 | F93: 4.1
B94: Energy needed | C94: kWh(el),y | D94: =IFERROR(D79*D93*365,"") -> 689762.0365 | E94: =IFERROR(E79*E93*365,"") -> 957498.6165 | F94: =IFERROR(F79*F93*365,"") -> 1379524.073
B95: Cost of energy | C95: EUR | D95: =IFERROR(D94*D92,"") -> 20692.8611 | E95: =IFERROR(E94*E92,"") -> 28724.95849 | F95: =IFERROR(F94*F92,"") -> 41385.72219
B96: Cost of energy per kWh output | C96: ct/kWhel,H2 | D96: =IFERROR(D95/$D$69,"") -> 2.586607637e-05 | E96: =IFERROR(E95/$D$69,"") -> 3.590619812e-05 | F96: =IFERROR(F95/$D$69,"") -> 5.173215274e-05
B97: Total cost of water supply | C97: ct/kWhel,H2 | D97: =IFERROR(D90+D96,"") -> 0.0001041993099 | E97: =IFERROR(E90+E96,"") -> 0.0001446450947 | F97: =IFERROR(F90+F96,"") -> 0.0002083986199
B99: Overview of final results for hydrogen
B101: Optimistic | D101: 2017 | E101: 2020 | F101: 2025 | G101: 2030 | H101: 2035 | I101: 2040 | J101: 2045 | K101: 2050
B102: Operating cost | C102: €/kW | D102: =IF($C$4="Low-temperature",$D$45,$D$46)*D103 -> 24 | E102: 19.692 | F102: 16.157286 | G102: 13.25705316 | H102: 10.87741212 | I102: 8.924916645 | J102: 7.322894107 | K102: 6.008434615
B103: Total investment cost | C103: €/kW | D103: =IF($C$4="Low-temperature",$C$6,$C$7) -> 800 | E103: =IF($C$4="Low-temperature",D103*(1-$D$56),D103*(1-$D$57)) -> 656.4 | F103: 538.5762 | G103: 441.9017721 | H103: 362.580404 | I103: 297.4972215 | J103: 244.0964702 | K103: 200.2811538
B104: Lifetime | C104: years | D104: =IF($C$4="Low-temperature",$D$49,$D$50) -> 25 | E104: 25 | F104: 25 | G104: 25 | H104: 25 | I104: 25 | J104: 25 | K104: 25
B105: Expected full-load hours | C105: hrs/year | D105: =$D$25 -> 2344 | E105: 2344 | F105: 2344 | G105: 2344 | H105: 2344 | I105: 2344 | J105: 2344 | K105: 2344
B106: Investment cost per year | C106: €/kW,y | D106: =(((1+'Cost of synthetic liquid fuel'!$C$7)^D$104)*'Cost of synthetic liquid fuel'!$C$7)/(((1+'Cost of synthetic liquid fuel'!$C$7)^D$104)-1)*D$103 -> 62.58137457 | E106: =(((1+'Cost of synthetic liquid fuel'!$C$7)^E$104)*'Cost of synthetic liquid fuel'!$C$7)/(((1+'Cost of synthetic liquid fuel'!$C$7)^E$104)-1)*E$103 -> 51.34801783 | F106: =(((1+'Cost of synthetic liquid fuel'!$C$7)^F$104)*'Cost of synthetic liquid fuel'!$C$7)/(((1+'Cost of synthetic liquid fuel'!$C$7)^F$104)-1)*F$103 -> 42.13104863 | G106: =(((1+'Cost of synthetic liquid fuel'!$C$7)^G$104)*'Cost of synthetic liquid fuel'!$C$7)/(((1+'Cost of synthetic liquid fuel'!$C$7)^G$104)-1)*G$103 -> 34.5685254 | H106: =(((1+'Cost of synthetic liquid fuel'!$C$7)^H$104)*'Cost of synthetic liquid fuel'!$C$7)/(((1+'Cost of synthetic liquid fuel'!$C$7)^H$104)-1)*H$103 -> 28.36347509 | I106: =(((1+'Cost of synthetic liquid fuel'!$C$7)^I$104)*'Cost of synthetic liquid fuel'!$C$7)/(((1+'Cost of synthetic liquid fuel'!$C$7)^I$104)-1)*I$103 -> 23.27223131 | J106: =(((1+'Cost of synthetic liquid fuel'!$C$7)^J$104)*'Cost of synthetic liquid fuel'!$C$7)/(((1+'Cost of synthetic liquid fuel'!$C$7)^J$104)-1)*J$103 -> 19.09486579 | K106: =(((1+'Cost of synthetic liquid fuel'!$C$7)^K$104)*'Cost of synthetic liquid fuel'!$C$7)/(((1+'Cost of synthetic liquid fuel'!$C$7)^K$104)-1)*K$103 -> 15.66733738
B107: Electricity generation cost | C107: ct/kWhel | D107: =INDEX('1. LCOE renewables'!$D$14:$K$16,MATCH($B$101,'1. LCOE renewables'!$B$14:$B$16,0),MATCH(D$21,'1. LCOE renewables'!$D$12:$K$12,0)) -> 3.835347187 | E107: =INDEX('1. LCOE renewables'!$D$14:$K$16,MATCH($B$101,'1. LCOE renewables'!$B$14:$B$16,0),MATCH(E$21,'1. LCOE renewables'!$D$12:$K$12,0)) -> 3.10519553 | F107: =INDEX('1. LCOE renewables'!$D$14:$K$16,MATCH($B$101,'1. LCOE renewables'!$B$14:$B$16,0),MATCH(F$21,'1. LCOE renewables'!$D$12:$K$12,0)) -> 2.645774263 | G107: =INDEX('1. LCOE renewables'!$D$14:$K$16,MATCH($B$101,'1. LCOE renewables'!$B$14:$B$16,0),MATCH(G$21,'1. LCOE renewables'!$D$12:$K$12,0)) -> 2.268392508 | H107: =INDEX('1. LCOE renewables'!$D$14:$K$16,MATCH($B$101,'1. LCOE renewables'!$B$14:$B$16,0),MATCH(H$21,'1. LCOE renewables'!$D$12:$K$12,0)) -> 1.854092972 | I107: =INDEX('1. LCOE renewables'!$D$14:$K$16,MATCH($B$101,'1. LCOE renewables'!$B$14:$B$16,0),MATCH(I$21,'1. LCOE renewables'!$D$12:$K$12,0)) -> 1.562852704 | J107: =INDEX('1. LCOE renewables'!$D$14:$K$16,MATCH($B$101,'1. LCOE renewables'!$B$14:$B$16,0),MATCH(J$21,'1. LCOE renewables'!$D$12:$K$12,0)) -> 1.337244046 | K107: =INDEX('1. LCOE renewables'!$D$14:$K$16,MATCH($B$101,'1. LCOE renewables'!$B$14:$B$16,0),MATCH(K$21,'1. LCOE renewables'!$D$12:$K$12,0)) -> 1.140349217
B108: Efficiency (electricity to hydrogen) | C108: % | D108: =IF($C$4="Low-temperature",D$62,D$63) -> 0.65 | E108: 0.6714285714 | F108: 0.6928571429 | G108: 0.7142857143 | H108: 0.7357142857 | I108: 0.7571428571 | J108: 0.7785714286 | K108: 0.8
B109: Electricity cost | C109: ct/kWhH2 | D109: =D107/D108 -> 5.900534134 | E109: =E107/E108 -> 4.6247593 | F109: =F107/F108 -> 3.818643266 | G109: 3.175749511 | H109: 2.520126369 | I109: 2.064145081 | J109: 1.71756116 | K109: 1.425436521
B110: Cost of water supply (desalination) | C110: ct/kWhH2 | D110: =$D$97 -> 0.0001041993099 | E110: =$D$97 -> 0.0001041993099 | F110: 0.0001041993099 | G110: 0.0001041993099 | H110: 0.0001041993099 | I110: 0.0001041993099 | J110: 0.0001041993099 | K110: 0.0001041993099
B111: Investment cost | C111: ct/kWhH2 | D111: =D106/D105*100/D108 -> 4.107467483 | E111: =E106/E105*100/E108 -> 3.262618227 | F111: 2.594185113 | G111: 2.064673019 | H111: 1.644722536 | I111: 1.311301591 | J111: 1.046310397 | K111: 0.8355022069
B112: Operating cost per year | C112: ct/kWhH2 | D112: =D102/D105*100/D108 -> 1.575216592 | E112: =E102/E105*100/E108 -> 1.251216324 | F112: 0.9948717674 | G112: 0.7918035166 | H112: 0.6307522188 | I112: 0.5028850579 | J112: 0.4012607536 | K112: 0.3204156684
B113: Result: Cost of conversion to hydrogen | C113: ct/kWhH2 | D113: =SUM(D109:D112) -> 11.58332241 | E113: =SUM(E109:E112) -> 9.138698051 | F113: =SUM(F109:F112) -> 7.407804346 | G113: 6.032330245 | H113: 4.795705324 | I113: 3.878435929 | J113: 3.16523651 | K113: 2.581458596
B116: Reference | D116: 2017 | E116: 2020 | F116: 2025 | G116: 2030 | H116: 2035 | I116: 2040 | J116: 2045 | K116: 2050
B117: Operating cost | C117: €/kW | D117: =IF($C$4="Low-temperature",$D$45,$D$46)*D118 -> 24 | E117: 22.104 | F117: 20.357784 | G117: 18.74951906 | H117: 17.26830706 | I117: 15.9041108 | J117: 14.64768605 | K117: 13.49051885
B118: Total investment cost | C118: €/kW | D118: =IF($C$4="Low-temperature",$C$6,$C$7) -> 800 | E118: =IF($C$4="Low-temperature",D118*(1-$E$56),D118*(1-$E$57)) -> 736.8 | F118: 678.5928 | G118: 624.9839688 | H118: 575.6102353 | I118: 530.1370267 | J118: 488.2562016 | K118: 449.6839616
B119: Lifetime | C119: years | D119: =IF($C$4="Low-temperature",$D$49,$D$50) -> 25 | E119: 25 | F119: 25 | G119: 25 | H119: 25 | I119: 25 | J119: 25 | K119: 25
B120: Expected full-load hours | C120: hrs/year | D120: =$D$25 -> 2344 | E120: 2344 | F120: 2344 | G120: 2344 | H120: 2344 | I120: 2344 | J120: 2344 | K120: 2344
B121: Investment cost per year | C121: €/kW,y | D121: =(((1+'Cost of synthetic liquid fuel'!$C$7)^D$119)*'Cost of synthetic liquid fuel'!$C$7)/(((1+'Cost of synthetic liquid fuel'!$C$7)^D$119)-1)*D$118 -> 62.58137457 | E121: =(((1+'Cost of synthetic liquid fuel'!$C$7)^E$119)*'Cost of synthetic liquid fuel'!$C$7)/(((1+'Cost of synthetic liquid fuel'!$C$7)^E$119)-1)*E$118 -> 57.63744598 | F121: =(((1+'Cost of synthetic liquid fuel'!$C$7)^F$119)*'Cost of synthetic liquid fuel'!$C$7)/(((1+'Cost of synthetic liquid fuel'!$C$7)^F$119)-1)*F$118 -> 53.08408775 | G121: =(((1+'Cost of synthetic liquid fuel'!$C$7)^G$119)*'Cost of synthetic liquid fuel'!$C$7)/(((1+'Cost of synthetic liquid fuel'!$C$7)^G$119)-1)*G$118 -> 48.89044481 | H121: =(((1+'Cost of synthetic liquid fuel'!$C$7)^H$119)*'Cost of synthetic liquid fuel'!$C$7)/(((1+'Cost of synthetic liquid fuel'!$C$7)^H$119)-1)*H$118 -> 45.02809967 | I121: =(((1+'Cost of synthetic liquid fuel'!$C$7)^I$119)*'Cost of synthetic liquid fuel'!$C$7)/(((1+'Cost of synthetic liquid fuel'!$C$7)^I$119)-1)*I$118 -> 41.4708798 | J121: =(((1+'Cost of synthetic liquid fuel'!$C$7)^J$119)*'Cost of synthetic liquid fuel'!$C$7)/(((1+'Cost of synthetic liquid fuel'!$C$7)^J$119)-1)*J$118 -> 38.1946803 | K121: =(((1+'Cost of synthetic liquid fuel'!$C$7)^K$119)*'Cost of synthetic liquid fuel'!$C$7)/(((1+'Cost of synthetic liquid fuel'!$C$7)^K$119)-1)*K$118 -> 35.17730055
B122: Electricity generation cost | C122: ct/kWhel | D122: =INDEX('1. LCOE renewables'!$D$14:$K$16,MATCH($B$116,'1. LCOE renewables'!$B$14:$B$16,0),MATCH(D$21,'1. LCOE renewables'!$D$12:$K$12,0)) -> 4.143299219 | E122: =INDEX('1. LCOE renewables'!$D$14:$K$16,MATCH($B$116,'1. LCOE renewables'!$B$14:$B$16,0),MATCH(E$21,'1. LCOE renewables'!$D$12:$K$12,0)) -> 3.429780736 | F122: =INDEX('1. LCOE renewables'!$D$14:$K$16,MATCH($B$116,'1. LCOE renewables'!$B$14:$B$16,0),MATCH(F$21,'1. LCOE renewables'!$D$12:$K$12,0)) -> 3.021714981 | G122: =INDEX('1. LCOE renewables'!$D$14:$K$16,MATCH($B$116,'1. LCOE renewables'!$B$14:$B$16,0),MATCH(G$21,'1. LCOE renewables'!$D$12:$K$12,0)) -> 2.70711458 | H122: =INDEX('1. LCOE renewables'!$D$14:$K$16,MATCH($B$116,'1. LCOE renewables'!$B$14:$B$16,0),MATCH(H$21,'1. LCOE renewables'!$D$12:$K$12,0)) -> 2.400667539 | I122: =INDEX('1. LCOE renewables'!$D$14:$K$16,MATCH($B$116,'1. LCOE renewables'!$B$14:$B$16,0),MATCH(I$21,'1. LCOE renewables'!$D$12:$K$12,0)) -> 2.173765479 | J122: =INDEX('1. LCOE renewables'!$D$14:$K$16,MATCH($B$116,'1. LCOE renewables'!$B$14:$B$16,0),MATCH(J$21,'1. LCOE renewables'!$D$12:$K$12,0)) -> 1.98981771 | K122: =INDEX('1. LCOE renewables'!$D$14:$K$16,MATCH($B$116,'1. LCOE renewables'!$B$14:$B$16,0),MATCH(K$21,'1. LCOE renewables'!$D$12:$K$12,0)) -> 1.813227851
B123: Efficiency (electricity to hydrogen) | C123: % | D123: =IF($C$4="Low-temperature",D$62,D$63) -> 0.65 | E123: 0.6714285714 | F123: 0.6928571429 | G123: 0.7142857143 | H123: 0.7357142857 | I123: 0.7571428571 | J123: 0.7785714286 | K123: 0.8
B124: Electricity cost | C124: ct/kWhH2 | D124: =D122/D123 -> 6.374306491 | E124: =E122/E123 -> 5.108184075 | F124: 4.361238117 | G124: 3.789960412 | H124: 3.263043257 | I124: 2.871011011 | J124: 2.555729169 | K124: 2.266534814
B125: Cost of water supply (desalination) | C125: ct/kWhH2 | D125: =$E$97 -> 0.0001446450947 | E125: =$E$97 -> 0.0001446450947 | F125: 0.0001446450947 | G125: 0.0001446450947 | H125: 0.0001446450947 | I125: 0.0001446450947 | J125: 0.0001446450947 | K125: 0.0001446450947
B126: Investment cost | C126: ct/kWhH2 | D126: =D121/D120/D123*100 -> 4.107467483 | E126: =E121/E120/E123*100 -> 3.662244226 | F126: =F121/F120/F123*100 -> 3.268609604 | G126: 2.920077762 | H126: 2.611059824 | I126: 2.336726114 | J126: 2.09289196 | K126: 1.875922598
B127: Operating cost per year | C127: ct/kWhH2 | D127: =D117/D120/D123*100 -> 1.575216592 | E127: =E117/E120/E123*100 -> 1.404473168 | F127: 1.253514021 | G127: 1.119851821 | H127: 1.00134323 | I127: 0.8961360648 | J127: 0.8026254997 | K127: 0.7194176008
B128: Result: Cost of conversion to hydrogen | C128: ct/kWhH2 | D128: =SUM(D124:D127) -> 12.05713521 | E128: =SUM(E124:E127) -> 10.17504611 | F128: 8.883506388 | G128: 7.83003464 | H128: 6.875590956 | I128: 6.104017835 | J128: 5.451391273 | K128: 4.862019658
B131: Pessimistic | D131: 2017 | E131: 2020 | F131: 2025 | G131: 2030 | H131: 2035 | I131: 2040 | J131: 2045 | K131: 2050
B132: Operating cost | C132: €/kW | D132: =IF($C$4="Low-temperature",$D$45,$D$46)*D133 -> 24 | E132: 23.0328 | F132: 22.10457816 | G132: 21.21376366 | H132: 20.35884898 | I132: 19.53838737 | J132: 18.75099036 | K132: 17.99532545
B133: Total investment cost | C133: €/kW | D133: =IF($C$4="Low-temperature",$C$6,$C$7) -> 800 | E133: =IF($C$4="Low-temperature",D133*(1-$F$56),D133*(1-$F$57)) -> 767.76 | F133: 736.819272 | G133: 707.1254553 | H133: 678.6282995 | I133: 651.279579 | J133: 625.033012 | K133: 599.8441816
B134: Lifetime | C134: years | D134: =IF($C$4="Low-temperature",$D$49,$D$50) -> 25 | E134: 25 | F134: 25 | G134: 25 | H134: 25 | I134: 25 | J134: 25 | K134: 25
B135: Expected full-load hours | C135: hrs/year | D135: =$D$25 -> 2344 | E135: 2344 | F135: 2344 | G135: 2344 | H135: 2344 | I135: 2344 | J135: 2344 | K135: 2344
B136: Investment cost per year | C136: €/kW,y | D136: =(((1+'Cost of synthetic liquid fuel'!$C$7)^D$134)*'Cost of synthetic liquid fuel'!$C$7)/(((1+'Cost of synthetic liquid fuel'!$C$7)^D$134)-1)*D$133 -> 62.58137457 | E136: =(((1+'Cost of synthetic liquid fuel'!$C$7)^E$134)*'Cost of synthetic liquid fuel'!$C$7)/(((1+'Cost of synthetic liquid fuel'!$C$7)^E$134)-1)*E$133 -> 60.05934517 | F136: =(((1+'Cost of synthetic liquid fuel'!$C$7)^F$134)*'Cost of synthetic liquid fuel'!$C$7)/(((1+'Cost of synthetic liquid fuel'!$C$7)^F$134)-1)*F$133 -> 57.63895356 | G136: =(((1+'Cost of synthetic liquid fuel'!$C$7)^G$134)*'Cost of synthetic liquid fuel'!$C$7)/(((1+'Cost of synthetic liquid fuel'!$C$7)^G$134)-1)*G$133 -> 55.31610374 | H136: =(((1+'Cost of synthetic liquid fuel'!$C$7)^H$134)*'Cost of synthetic liquid fuel'!$C$7)/(((1+'Cost of synthetic liquid fuel'!$C$7)^H$134)-1)*H$133 -> 53.08686475 | I136: =(((1+'Cost of synthetic liquid fuel'!$C$7)^I$134)*'Cost of synthetic liquid fuel'!$C$7)/(((1+'Cost of synthetic liquid fuel'!$C$7)^I$134)-1)*I$133 -> 50.94746411 | J136: =(((1+'Cost of synthetic liquid fuel'!$C$7)^J$134)*'Cost of synthetic liquid fuel'!$C$7)/(((1+'Cost of synthetic liquid fuel'!$C$7)^J$134)-1)*J$133 -> 48.8942813 | K136: =(((1+'Cost of synthetic liquid fuel'!$C$7)^K$134)*'Cost of synthetic liquid fuel'!$C$7)/(((1+'Cost of synthetic liquid fuel'!$C$7)^K$134)-1)*K$133 -> 46.92384177
B137: Electricity generation cost | C137: ct/kWhel | D137: =INDEX('1. LCOE renewables'!$D$14:$K$16,MATCH($B$131,'1. LCOE renewables'!$B$14:$B$16,0),MATCH(D$21,'1. LCOE renewables'!$D$12:$K$12,0)) -> 4.683532748 | E137: =INDEX('1. LCOE renewables'!$D$14:$K$16,MATCH($B$131,'1. LCOE renewables'!$B$14:$B$16,0),MATCH(E$21,'1. LCOE renewables'!$D$12:$K$12,0)) -> 3.95991584 | F137: =INDEX('1. LCOE renewables'!$D$14:$K$16,MATCH($B$131,'1. LCOE renewables'!$B$14:$B$16,0),MATCH(F$21,'1. LCOE renewables'!$D$12:$K$12,0)) -> 3.595887702 | G137: =INDEX('1. LCOE renewables'!$D$14:$K$16,MATCH($B$131,'1. LCOE renewables'!$B$14:$B$16,0),MATCH(G$21,'1. LCOE renewables'!$D$12:$K$12,0)) -> 3.342843753 | H137: =INDEX('1. LCOE renewables'!$D$14:$K$16,MATCH($B$131,'1. LCOE renewables'!$B$14:$B$16,0),MATCH(H$21,'1. LCOE renewables'!$D$12:$K$12,0)) -> 3.151950949 | I137: =INDEX('1. LCOE renewables'!$D$14:$K$16,MATCH($B$131,'1. LCOE renewables'!$B$14:$B$16,0),MATCH(I$21,'1. LCOE renewables'!$D$12:$K$12,0)) -> 2.992133718 | J137: =INDEX('1. LCOE renewables'!$D$14:$K$16,MATCH($B$131,'1. LCOE renewables'!$B$14:$B$16,0),MATCH(J$21,'1. LCOE renewables'!$D$12:$K$12,0)) -> 2.850073957 | K137: =INDEX('1. LCOE renewables'!$D$14:$K$16,MATCH($B$131,'1. LCOE renewables'!$B$14:$B$16,0),MATCH(K$21,'1. LCOE renewables'!$D$12:$K$12,0)) -> 2.690256726
B138: Efficiency (electricity to hydrogen) | C138: % | D138: =IF($C$4="Low-temperature",D$62,D$63) -> 0.65 | E138: 0.6714285714 | F138: 0.6928571429 | G138: 0.7142857143 | H138: 0.7357142857 | I138: 0.7571428571 | J138: 0.7785714286 | K138: 0.8
B139: Electricity cost | C139: ct/kWhH2 | D139: =D137/D138 -> 7.205434997 | E139: =E137/E138 -> 5.897746996 | F139: 5.189941014 | G139: 4.679981254 | H139: 4.284205174 | I139: 3.951874722 | J139: 3.660645449 | K139: 3.362820907
B140: Cost of water supply (desalination) | C140: ct/kWhH2 | D140: =$F$97 -> 0.0002083986199 | E140: =$F$97 -> 0.0002083986199 | F140: 0.0002083986199 | G140: 0.0002083986199 | H140: 0.0002083986199 | I140: 0.0002083986199 | J140: 0.0002083986199 | K140: 0.0002083986199
B141: Investment cost | C141: ct/kWhH2 | D141: =D136/D135/D138*100 -> 4.107467483 | E141: =E136/E135/E138*100 -> 3.816130058 | F141: 3.549071769 | G141: 3.303862851 | H141: 3.078366192 | I141: 2.870695543 | J141: 2.679180646 | K141: 2.502337978
B142: Operating cost per year | C142: ct/kWhH2 | D142: =D132/D135/D138*100 -> 1.575216592 | E142: =E132/E135/E138*100 -> 1.46348849 | F142: 1.361071454 | G142: 1.267033666 | H142: 1.180555543 | I142: 1.100913707 | J142: 1.027467612 | K142: 0.9596483281
B143: Result: Cost of conversion to hydrogen | C143: ct/kWhH2 | D143: =SUM(D139:D142) -> 12.88832747 | E143: =SUM(E139:E142) -> 11.17757394 | F143: 10.10029263 | G143: 9.25108617 | H143: 8.543335307 | I143: 7.92369237 | J143: 7.367502105 | K143: 6.825015612

Sheet PtG-Methane
B1: Cost of producing synthetic methane
B3: Control Panel
B4: Expected full-load hours per year | C4: 8000
B6: Scenario: Reference
B7: Relative cost decline over 5 years | C7: 0.065
B9: Underlying assumptions - for information only
B10: Scenario | C10: ='Control Panel'!$C$4:$E$4 -> Reference
B11: Origin | C11: ='Control Panel'!$C$5:$E$5 -> North Africa
B12: Renewable energy source | C12: ='Control Panel'!$C$6:$E$6 -> PV
B13: Method of CO2 extraction | C13: ='Control Panel'!$C$7:$E$7 -> Direct Air Capture - TSA
B14: Cost of capital (WACC) | C14: ='Control Panel'!$C$8:$E$8 -> 0.06
B17: Results by scenario
B19: ="Scenario: "&$C$10 -> Scenario: Reference | D19: 2016/17 | E19: 2020 | F19: 2025 | G19: 2030 | H19: 2035 | I19: 2040 | J19: 2045 | K19: 2050
B20: Operating cost | C20: €/kWMethane | D20: =$D$43*D$21 -> 24 | E20: 22.44 | F20: 20.9814 | G20: 19.617609 | H20: 18.34246442 | I20: 17.15020423 | J20: 16.03544095 | K20: 14.99313729
B21: Investment cost | C21: €/kWMethane | D21: =$D$37 -> 800 | E21: =IF($C$10="Optimistic",D21*(1-$C$46),IF($C$10="Reference",D21*(1-$D$46),D21*(1-$E$46))) -> 748 | F21: 699.38 | G21: 653.9203 | H21: 611.4154805 | I21: 571.6734743 | J21: 534.5146984 | K21: 499.771243
B22: Lifetime | C22: years | D22: =$D$40 -> 30 | E22: 30 | F22: 30 | G22: 30 | H22: 30 | I22: 30 | J22: 30 | K22: 30
B23: Investment cost per year | C23: €/kWMethane | D23: =(((1+'Cost of methane'!$C$7)^D$22)*'Cost of methane'!$C$7)/(((1+'Cost of methane'!$C$7)^D$22)-1)*D$21 -> 58.11912919 | E23: =(((1+'Cost of methane'!$C$7)^E$22)*'Cost of methane'!$C$7)/(((1+'Cost of methane'!$C$7)^E$22)-1)*E$21 -> 54.34138579 | F23: =(((1+'Cost of methane'!$C$7)^F$22)*'Cost of methane'!$C$7)/(((1+'Cost of methane'!$C$7)^F$22)-1)*F$21 -> 50.80919572 | G23: =(((1+'Cost of methane'!$C$7)^G$22)*'Cost of methane'!$C$7)/(((1+'Cost of methane'!$C$7)^G$22)-1)*G$21 -> 47.506598 | H23: =(((1+'Cost of methane'!$C$7)^H$22)*'Cost of methane'!$C$7)/(((1+'Cost of methane'!$C$7)^H$22)-1)*H$21 -> 44.41866913 | I23: =(((1+'Cost of methane'!$C$7)^I$22)*'Cost of methane'!$C$7)/(((1+'Cost of methane'!$C$7)^I$22)-1)*I$21 -> 41.53145563 | J23: =(((1+'Cost of methane'!$C$7)^J$22)*'Cost of methane'!$C$7)/(((1+'Cost of methane'!$C$7)^J$22)-1)*J$21 -> 38.83191102 | K23: =(((1+'Cost of methane'!$C$7)^K$22)*'Cost of methane'!$C$7)/(((1+'Cost of methane'!$C$7)^K$22)-1)*K$21 -> 36.3078368
B24: Electricity cost of hydrogen electrolysis | C24: €/kWhMethane | D24: =IF($C$10="Optimistic",E$62,IF($C$10="Reference",E$63,E$64)) -> 7.967883114 | E24: 6.385230093 | F24: 5.451547647 | G24: 4.737450515 | H24: 4.078804071 | I24: 3.588763763 | J24: 3.194661461 | K24: 2.833168518
B25: Cost of conversion of hydrogen electrolysis | C25: €/kWhMethane | D25: =IF($C$10="Optimistic",E$65,IF($C$10="Reference",E$66,E$67)) -> 7.1035359 | E25: 6.333577549 | F25: 5.652835338 | G25: 5.050092785 | H25: 4.515684624 | I25: 4.04125853 | J25: 3.619577631 | K25: 3.244356054
B26: Storage cost for hydrogen | C26: ct/kWhMethane | D26: =INDEX($D$73:$I$73,MATCH($C$11&" "&$C$12,$D$71:$I$71,0)) -> 0.5383092372 | E26: 0.5383092372 | F26: 0.5383092372 | G26: 0.5383092372 | H26: 0.5383092372 | I26: 0.5383092372 | J26: 0.5383092372 | K26: 0.5383092372
B27: CO2 cost | C27: ct/kWhMethane | D27: =IF($C$13='Auxiliary data'!$F$6,IF($C$10="Optimistic",E$96,IF($C$10="Reference",E$97,E$98)),IF($C$11='Auxiliary data'!$C$8,$D$93,$D$92)) -> 2.865194471 | E27: =IF($C$13='Auxiliary data'!$F$6,IF($C$10="Optimistic",F$96,IF($C$10="Reference",F$97,F$98)),IF($C$11='Auxiliary data'!$C$8,$D$93,$D$92)) -> 2.829875306 | F27: =IF($C$13='Auxiliary data'!$F$6,IF($C$10="Optimistic",G$96,IF($C$10="Reference",G$97,G$98)),IF($C$11='Auxiliary data'!$C$8,$D$93,$D$92)) -> 2.809676051 | G27: =IF($C$13='Auxiliary data'!$F$6,IF($C$10="Optimistic",H$96,IF($C$10="Reference",H$97,H$98)),IF($C$11='Auxiliary data'!$C$8,$D$93,$D$92)) -> 2.022673995 | H27: =IF($C$13='Auxiliary data'!$F$6,IF($C$10="Optimistic",I$96,IF($C$10="Reference",I$97,I$98)),IF($C$11='Auxiliary data'!$C$8,$D$93,$D$92)) -> 2.007504867 | I27: =IF($C$13='Auxiliary data'!$F$6,IF($C$10="Optimistic",J$96,IF($C$10="Reference",J$97,J$98)),IF($C$11='Auxiliary data'!$C$8,$D$93,$D$92)) -> 1.996273215 | J27: =IF($C$13='Auxiliary data'!$F$6,IF($C$10="Optimistic",K$96,IF($C$10="Reference",K$97,K$98)),IF($C$11='Auxiliary data'!$C$8,$D$93,$D$92)) -> 1.9871678 | K27: =IF($C$13='Auxiliary data'!$F$6,IF($C$10="Optimistic",L$96,IF($C$10="Reference",L$97,L$98)),IF($C$11='Auxiliary data'!$C$8,$D$93,$D$92)) -> 1.978426602
B28: Investment cost | C28: ct/kWhMethane | D28: =D23/$C$4*100 -> 0.7264891149 | E28: 0.6792673224 | F28: 0.6351149465 | G28: 0.593832475 | H28: 0.5552333641 | I28: 0.5191431954 | J28: 0.4853988877 | K28: =K23/$C$4*100 -> 0.45384796
B29: Operating cost | C29: ct/kWhMethane | D29: =D20/$C$4*100 -> 0.3 | E29: 0.2805 | F29: 0.2622675 | G29: 0.2452201125 | H29: 0.2292808052 | I29: 0.2143775529 | J29: 0.2004430119 | K29: 0.1874142161
B30: Result: Cost of conversion into methane | C30: ct/kWhMethane | D30: =SUM(D26:D29) -> 4.429992823 | E30: =SUM(E26:E29) -> 4.327951866 | F30: 4.245367735 | G30: 3.40003582 | H30: 3.330328273 | I30: 3.2681032 | J30: 3.211318937 | K30: 3.157998015
B32: Data
B34: Investment cost, operating cost und cost decline
B36: Investment cost | D36: Today
B37: Methanisation | C37: €/kWMethane | D37: 800
B39: Lifetime
B40: Methanisation | C40: years | D40: 30
B42: Operating cost
B43: Methanisation | C43: % of investment cost | D43: 0.03
B45: Relative cost decline over 5 years | C45: Optimistic | D45: Reference | E45: Pessimistic
B46: Methanisation | C46: 0.1855 | D46: =C7 -> 0.065 | E46: 0.0188
B48: Efficiency and conversion of the cost of hydrogen
B50: Efficiency - hydrogen to methane
B51: H2tG efficiency | D51: 0.8
B53: Calculated cost of hydrogen electrolysis | E53: Heute | F53: 2020 | G53: 2025 | H53: 2030 | I53: 2035 | J53: 2040 | K53: 2045 | L53: 2050
B54: Electricity cost | C54: ct/kWh(H2) | D54: Optimistic | E54: ='H2 electrolysis'!D$109 -> 5.900534134 | F54: ='H2 electrolysis'!E$109 -> 4.6247593 | G54: ='H2 electrolysis'!F$109 -> 3.818643266 | H54: ='H2 electrolysis'!G$109 -> 3.175749511 | I54: ='H2 electrolysis'!H$109 -> 2.520126369 | J54: ='H2 electrolysis'!I$109 -> 2.064145081 | K54: ='H2 electrolysis'!J$109 -> 1.71756116 | L54: ='H2 electrolysis'!K$109 -> 1.425436521
D55: Reference | E55: ='H2 electrolysis'!D$124 -> 6.374306491 | F55: ='H2 electrolysis'!E$124 -> 5.108184075 | G55: ='H2 electrolysis'!F$124 -> 4.361238117 | H55: ='H2 electrolysis'!G$124 -> 3.789960412 | I55: ='H2 electrolysis'!H$124 -> 3.263043257 | J55: ='H2 electrolysis'!I$124 -> 2.871011011 | K55: ='H2 electrolysis'!J$124 -> 2.555729169 | L55: ='H2 electrolysis'!K$124 -> 2.266534814
D56: Pessimistic | E56: ='H2 electrolysis'!D$139 -> 7.205434997 | F56: ='H2 electrolysis'!E$139 -> 5.897746996 | G56: ='H2 electrolysis'!F$139 -> 5.189941014 | H56: ='H2 electrolysis'!G$139 -> 4.679981254 | I56: ='H2 electrolysis'!H$139 -> 4.284205174 | J56: ='H2 electrolysis'!I$139 -> 3.951874722 | K56: ='H2 electrolysis'!J$139 -> 3.660645449 | L56: ='H2 electrolysis'!K$139 -> 3.362820907
B57: Cost of conversion into hydrogen | C57: ct/kWh(H2) | D57: Optimistic | E57: =SUM('H2 electrolysis'!D$110:D$112) -> 5.682788275 | F57: =SUM('H2 electrolysis'!E$110:E$112) -> 4.513938751 | G57: =SUM('H2 electrolysis'!F$110:F$112) -> 3.58916108 | H57: =SUM('H2 electrolysis'!G$110:G$112) -> 2.856580735 | I57: =SUM('H2 electrolysis'!H$110:H$112) -> 2.275578954 | J57: =SUM('H2 electrolysis'!I$110:I$112) -> 1.814290848 | K57: =SUM('H2 electrolysis'!J$110:J$112) -> 1.44767535 | L57: =SUM('H2 electrolysis'!K$110:K$112) -> 1.156022075
D58: Reference | E58: =SUM('H2 electrolysis'!D$125:D$127) -> 5.68282872 | F58: =SUM('H2 electrolysis'!E$125:E$127) -> 5.066862039 | G58: =SUM('H2 electrolysis'!F$125:F$127) -> 4.52226827 | H58: =SUM('H2 electrolysis'!G$125:G$127) -> 4.040074228 | I58: =SUM('H2 electrolysis'!H$125:H$127) -> 3.6125477 | J58: =SUM('H2 electrolysis'!I$125:I$127) -> 3.233006824 | K58: =SUM('H2 electrolysis'!J$125:J$127) -> 2.895662104 | L58: =SUM('H2 electrolysis'!K$125:K$127) -> 2.595484844
D59: Pessimistic | E59: =SUM('H2 electrolysis'!D$140:D$142) -> 5.682892474 | F59: =SUM('H2 electrolysis'!E$140:E$142) -> 5.279826947 | G59: =SUM('H2 electrolysis'!F$140:F$142) -> 4.910351621 | H59: =SUM('H2 electrolysis'!G$140:G$142) -> 4.571104915 | I59: =SUM('H2 electrolysis'!H$140:H$142) -> 4.259130134 | J59: =SUM('H2 electrolysis'!I$140:I$142) -> 3.971817649 | K59: =SUM('H2 electrolysis'!J$140:J$142) -> 3.706856656 | L59: =SUM('H2 electrolysis'!K$140:K$142) -> 3.462194705
B61: Methanisation
B62: Electricity cost | C62: ct/kWh(methane) | D62: Optimistic | E62: =E54/$D$51 -> 7.375667668 | F62: =F54/$D$51 -> 5.780949125 | G62: 4.773304082 | H62: 3.969686888 | I62: 3.150157962 | J62: 2.580181351 | K62: 2.14695145 | L62: 1.781795652
D63: Reference | E63: 7.967883114 | F63: =F55/$D$51 -> 6.385230093 | G63: 5.451547647 | H63: 4.737450515 | I63: 4.078804071 | J63: 3.588763763 | K63: 3.194661461 | L63: 2.833168518
D64: Pessimistic | E64: 9.006793747 | F64: 7.372183745 | G64: 6.487426267 | H64: 5.849976568 | I64: 5.355256467 | J64: 4.939843402 | K64: 4.575806811 | L64: 4.203526134
B65: Cost of conversion into methane | C65: ct/kWh(methane) | D65: Optimistic | E65: =E57/$D$51 -> 7.103485343 | F65: 5.642423438 | G65: 4.48645135 | H65: 3.570725919 | I65: 2.844473693 | J65: 2.26786356 | K65: 1.809594187 | L65: 1.445027593
D66: Reference | E66: 7.1035359 | F66: 6.333577549 | G66: 5.652835338 | H66: 5.050092785 | I66: 4.515684624 | J66: 4.04125853 | K66: 3.619577631 | L66: 3.244356054
D67: Pessimistic | E67: 7.103615592 | F67: 6.599783684 | G67: 6.137939526 | H67: 5.713881144 | I67: 5.323912667 | J67: 4.964772061 | K67: 4.63357082 | L67: 4.327743381
B69: Cost of hydrogen storage
B71: Storage cost for H2 from hydrogen electrolysis | D71: North Africa PV | E71: North Africa PV/wind combination | F71: Middle East PV | G71: Middle East PV/wind combination | H71: Iceland Geothermal/hydropower | I71: North and Baltic Seas offshore wind
B72: H2 storage | C72: ct/kWh(H2) | D72: 0.4306473897 | E72: 0.2827075244 | F72: 0.4233379574 | G72: 0.2926057141 | H72: 0 | I72: 0.3426296418
B73: H2 storage | C73: ct/kWh(methane) | D73: =D72/$D$51 -> 0.5383092372 | E73: 0.3533844055 | F73: 0.5291724467 | G73: 0.3657571426 | H73: 0 | I73: 0.4282870522
B75: Cost of CO2
B77: Amound of CO2 needed | C77: t(CO2)/kWh(methane) | D77: 0.000198
B79: CO2 cost - capture from cement industry | D79: Today
B80: Cost of purchasing CO2 | C80: €/t (CO2) | D80: 32.6
B81: Cost of purchasing CO2 - Iceland | C81: €/t (CO2) | D81: =D80*50% -> 16.3
B83: CO2 cost - Direct Air Capture* | E83: 2017 | F83: 2020 | G83: 2025 | H83: 2030 | I83: 2035 | J83: 2040 | K83: 2045 | L83: 2050
B84: =$C$11&"-"&$C$12 -> North Africa-PV | C84: €/t CO2 | D84: Optimistic | E84: =INDEX($E$102:$L$119,MATCH($B84&"-"&$D84,$B$102:$B$119,0),MATCH(E$83,$E$101:$L$101,0)) -> 143.9369114 | F84: 142.1115323 | G84: 140.9629791 | H84: 101.0584471 | I84: 100.0226983 | J84: 99.29459759 | K84: 98.73057595 | L84: 98.23833888
B85: =$C$11&"-"&$C$12 -> North Africa-PV | C85: €/t CO2 | D85: Reference | E85: 144.7067915 | F85: 142.9229953 | G85: 141.9028309 | H85: 102.1552523 | I85: 101.3891347 | J85: 100.8218795 | K85: 100.3620101 | L85: 99.92053546
B86: North Africa-PV | C86: €/t CO2 | D86: Pessimistic | E86: 146.0573753 | F86: 144.248333 | G86: 143.3382627 | H86: 103.7445752 | I86: 103.2673432 | J86: 102.8678001 | K86: 102.5126507 | L86: 102.1131076
B87: * Heat is released in other conversion steps (efficiency losses) and can be used here without further cost
B89: Assumed data and conversions in ct/kWh(methane)
B91: Capture from cement industry | D91: Today
B92: Cost of purchasing CO2 | C92: ct/kWh(methane) | D92: =$D$77*D80*100 -> 0.64548
B93: Cost of purchasing CO2 - Iceland | C93: ct/kWh(methane) | D93: =$D$77*D81*100 -> 0.32274
B95: Direct Air Capture - TSA* | E95: 2017 | F95: 2020 | G95: 2025 | H95: 2030 | I95: 2035 | J95: 2040 | K95: 2045 | L95: 2050
B96: =$C$11&"-"&$C$12 -> North Africa-PV | C96: ct/kWh(methane) | D96: Optimistic | E96: =E84*100*$D$77 -> 2.849950846 | F96: 2.813808339 | G96: 2.791066986 | H96: 2.000957253 | I96: 1.980449426 | J96: 1.966033032 | K96: 1.954865404 | L96: 1.94511911
B97: =$C$11&"-"&$C$12 -> North Africa-PV | C97: ct/kWh(methane) | D97: Reference | E97: 2.865194471 | F97: 2.829875306 | G97: 2.809676051 | H97: 2.022673995 | I97: 2.007504867 | J97: 1.996273215 | K97: 1.9871678 | L97: 1.978426602
B98: North Africa-PV | C98: ct/kWh(methane) | D98: Pessimistic | E98: 2.891936031 | F98: 2.856116994 | G98: 2.838097601 | H98: 2.054142589 | I98: 2.044693396 | J98: 2.036782443 | K98: 2.029750484 | L98: 2.021839531
B99: * Heat is released in other conversion steps (efficiency losses) and can be used here without further cost
B101: CO2 cost - Direct Air Capture | E101: 2017 | F101: 2020 | G101: 2025 | H101: 2030 | I101: 2035 | J101: 2040 | K101: 2045 | L101: 2050
B102: North Africa-PV-Optimistic | C102: €/t CO2 | D102: Optimistic | E102: 143.9369114 | F102: 142.1115323 | G102: 140.9629791 | H102: 101.0584471 | I102: 100.0226983 | J102: 99.29459759 | K102: 98.73057595 | L102: 98.23833888
B103: North Africa-PV-Reference | C103: €/t CO2 | D103: Reference | E103: 144.7067915 | F103: 142.9229953 | G103: 141.9028309 | H103: 102.1552523 | I103: 101.3891347 | J103: 100.8218795 | K103: 100.3620101 | L103: 99.92053546
B104: North Africa-PV-Pessimistic | C104: €/t CO2 | D104: Pessimistic | E104: 146.0573753 | F104: 144.248333 | G104: 143.3382627 | H104: 103.7445752 | I104: 103.2673432 | J104: 102.8678001 | K104: 102.5126507 | L104: 102.1131076
B105: Middle East-PV-Optimistic | C105: €/t CO2 | D105: Optimistic | E105: 143.568128 | F105: 141.8129558 | G105: 140.7085777 | H105: 100.8403324 | I105: 99.84442009 | J105: 99.1443233 | K105: 98.60199479 | L105: 98.12868991
B106: Middle East-PV-Reference | C106: €/t CO2 | D106: Reference | E106: 144.2992539 | F106: 142.5856398 | G106: 141.605613 | H106: 101.8889787 | I106: 101.1530034 | J106: 100.6080665 | K106: 100.1662903 | L106: 99.74218518
B107: Middle East-PV-Pessimistic | C107: €/t CO2 | D107: Pessimistic | E107: 145.5251557 | F107: 143.7983426 | G107: 142.9296391 | H107: 103.3647066 | I107: 102.909167 | J107: 102.5277849 | K107: 102.1887787 | L107: 101.8073967
B108: North Africa-PV/wind combination-Optimistic | C108: €/t CO2 | D108: Optimistic | E108: 148.0301994 | F108: 145.7946673 | G108: 143.9287932 | H108: 103.213859 | I108: 102.4581615 | J108: 101.8704904 | K108: 101.3724333 | L108: 100.9135823
B109: North Africa-PV/wind combination-Reference | C109: €/t CO2 | D109: Reference | E109: 150.4309809 | F109: 148.5722714 | G109: 147.1709676 | H109: 106.9485476 | I109: 106.2180085 | J109: 105.6065854 | K109: 105.0594851 | L109: 104.523403
B110: North Africa-PV/wind combination-Pessimistic | C110: €/t CO2 | D110: Pessimistic | E110: 154.230948 | F110: 152.6403607 | G110: 151.8414035 | H110: 112.264546 | I110: 111.8173905 | J110: 111.4215248 | K110: 111.0551702 | L110: 110.6595072
B111: Middle East-PV/wind combination-Optimistic | C111: €/t CO2 | D111: Optimistic | E111: 150.1763415 | F111: 147.5901377 | G111: 145.4315775 | H111: 104.4415285 | I111: 103.5672902 | J111: 102.8874354 | K111: 102.3112517 | L111: 101.7804241
B112: Middle East-PV/wind combination-Reference | C112: €/t CO2 | D112: Reference | E112: 150.9374626 | F112: 149.020217 | G112: 147.5747822 | H112: 107.3126389 | I112: 106.5590931 | J112: 105.9284146 | K112: 105.3640845 | L112: 104.8111196
B113: Middle East-PV/wind combination-Pessimistic | C113: €/t CO2 | D113: Pessimistic | E113: 152.0698171 | F113: 150.6521197 | G113: 149.9400056 | H113: 110.4300807 | I113: 110.0315292 | J113: 109.6786923 | K113: 109.3521588 | L113: 108.9995027
B114: Iceland-geothermal/hydropower-Optimistic | C114: €/t CO2 | D114: Optimistic | E114: 141.3023904 | F114: 141.1770958 | G114: 141.0831249 | H114: 102.0280764 | I114: 101.9341055 | J114: 101.8401346 | K114: 101.746308 | L114: 101.6524814
B115: Iceland-geothermal/hydropower-Reference | C115: €/t CO2 | D115: Reference | E115: 141.3023904 | F115: 141.1770958 | G115: 141.1144485 | H115: 102.0907237 | I115: 102.0280764 | J115: 101.9654291 | K115: 101.9028781 | L115: 101.840327
B116: Iceland-geothermal/hydropower-Pessimistic | C116: €/t CO2 | D116: Pessimistic | E116: 141.3023904 | F116: 141.2504826 | G116: 141.1985749 | H116: 102.1855895 | I116: 102.1336818 | J116: 102.0817741 | K116: 102.0298663 | L116: 101.9779586
B117: North and Baltic Seas-offshore wind-Optimistic | C117: €/t CO2 | D117: Optimistic | E117: 161.3964634 | F117: 152.1900273 | G117: 148.9258394 | H117: 109.0708585 | I117: 108.2236694 | J117: 107.4176401 | K117: 106.6478765 | L117: 105.9100664
B118: North and Baltic Seas-offshore wind-Reference | C118: €/t CO2 | D118: Reference | E118: 163.7262554 | F118: 157.3882191 | G118: 153.8422015 | H118: 113.4548757 | I118: 112.0753417 | J118: 110.7369674 | K118: 109.4348588 | L118: 108.1647038
B119: North and Baltic Seas-offshore wind-Pessimistic | C119: €/t CO2 | D119: Pessimistic | E119: 167.3873571 | F119: 165.6735371 | G119: 163.5138258 | H119: 122.4460554 | I119: 120.3860768 | J119: 118.367258 | K119: 116.3847048 | L119: 114.4341051

Sheet PtL
B1: Cost of producing synthetic liquid fuels
B3: Control Panel
B4: Expected full-load hours per year | C4: 8000
B5: Investment cost (2016/17), €/kW(PtL) | C5: 850
B7: Scenario: Reference
B8: Relative cost decline over 5 years | C8: 0.073
B10: Underlying assumptions - for information only
B11: Scenario | C11: ='Control Panel'!$C$4:$E$4 -> Reference
B12: Origin | C12: ='Control Panel'!$C$5:$E$5 -> North Africa
B13: Renewable energy source | C13: ='Control Panel'!$C$6:$E$6 -> PV
B14: Method of CO2 extraction | C14: ='Control Panel'!$C$7:$E$7 -> Direct Air Capture - TSA
B15: Cost of capital (WACC) | C15: ='Control Panel'!$C$8:$E$8 -> 0.06
B17: Results by scenario
B19: ="Scenario: "&$C$11 -> Scenario: Reference | D19: 2016/17 | E19: 2020 | F19: 2025 | G19: 2030 | H19: 2035 | I19: 2040 | J19: 2045 | K19: 2050
B20: Operating cost | C20: €/kW(PtL) | D20: =$D$43*D21 -> 25.5 | E20: =$D$43*E21 -> 23.6385 | F20: 21.9128895 | G20: 20.31324857 | H20: 18.83038142 | I20: 17.45576358 | J20: 16.18149284 | K20: 15.00024386
B21: Investment cost | C21: €/kW(PtL) | D21: =$C$5 -> 850 | E21: =IF($C$11="Optimistic",D21*(1-$C$46),IF($C$11="Reference",D21*(1-$D$46),D21*(1-$E$46))) -> 787.95 | F21: 730.42965 | G21: 677.1082856 | H21: 627.6793807 | I21: 581.8587859 | J21: 539.3830945 | K21: 500.0081286
B22: Lifetime | C22: years | D22: =$D$40 -> 30 | E22: 30 | F22: 30 | G22: 30 | H22: 30 | I22: 30 | J22: 30 | K22: 30
B23: Investment cost per year | C23: €/kW(PtL),y | D23: =(((1+'Cost of synthetic liquid fuel'!$C$7)^D$22)*'Cost of synthetic liquid fuel'!$C$7)/(((1+'Cost of synthetic liquid fuel'!$C$7)^D$22)-1)*D$21 -> 61.75157477 | E23: =(((1+'Cost of synthetic liquid fuel'!$C$7)^E$22)*'Cost of synthetic liquid fuel'!$C$7)/(((1+'Cost of synthetic liquid fuel'!$C$7)^E$22)-1)*E$21 -> 57.24370981 | F23: =(((1+'Cost of synthetic liquid fuel'!$C$7)^F$22)*'Cost of synthetic liquid fuel'!$C$7)/(((1+'Cost of synthetic liquid fuel'!$C$7)^F$22)-1)*F$21 -> 53.06491899 | G23: =(((1+'Cost of synthetic liquid fuel'!$C$7)^G$22)*'Cost of synthetic liquid fuel'!$C$7)/(((1+'Cost of synthetic liquid fuel'!$C$7)^G$22)-1)*G$21 -> 49.19117991 | H23: =(((1+'Cost of synthetic liquid fuel'!$C$7)^H$22)*'Cost of synthetic liquid fuel'!$C$7)/(((1+'Cost of synthetic liquid fuel'!$C$7)^H$22)-1)*H$21 -> 45.60022377 | I23: =(((1+'Cost of synthetic liquid fuel'!$C$7)^I$22)*'Cost of synthetic liquid fuel'!$C$7)/(((1+'Cost of synthetic liquid fuel'!$C$7)^I$22)-1)*I$21 -> 42.27140744 | J23: =(((1+'Cost of synthetic liquid fuel'!$C$7)^J$22)*'Cost of synthetic liquid fuel'!$C$7)/(((1+'Cost of synthetic liquid fuel'!$C$7)^J$22)-1)*J$21 -> 39.18559469 | K23: =(((1+'Cost of synthetic liquid fuel'!$C$7)^K$22)*'Cost of synthetic liquid fuel'!$C$7)/(((1+'Cost of synthetic liquid fuel'!$C$7)^K$22)-1)*K$21 -> 36.32504628
B24: Electricity cost of hydrogen electrolysis | C24: ct/kWh(PtL) | D24: =IF($C$11="Optimistic",E63,IF($C$11="Reference",E$64,E$65)) -> 7.977855433 | E24: 6.393221621 | F24: 5.45837061 | G24: 4.743379739 | H24: 4.083908957 | I24: 3.593255332 | J24: 3.198659786 | K24: 2.836714411
B25: Cost of conversion of hydrogen electrolysis | C25: ct/kWh(PtL) | D25: =IF($C$11="Optimistic",E$66,IF($C$11="Reference",E$67,E$68)) -> 7.112426433 | E25: 6.341504429 | F25: 5.659910226 | G25: 5.056413302 | H25: 4.521336295 | I25: 4.046316425 | J25: 3.624107765 | K25: 3.248416575
B26: Storage cost for hydrogen | C26: ct/kWh(PtL) | D26: =INDEX($D$74:$I$74,MATCH($C$12&" "&$C$13,$D$72:$I$72,0)) -> 0.5389829659 | E26: 0.5389829659 | F26: 0.5389829659 | G26: 0.5389829659 | H26: 0.5389829659 | I26: 0.5389829659 | J26: 0.5389829659 | K26: 0.5389829659
B27: CO2 cost | C27: ct/kWh(PtL) | D27: =IF($C$14='Auxiliary data'!$F$6,IF($C$11="Optimistic",E$97,IF($C$11="Reference",E$98,E$99)),IF($C$12='Auxiliary data'!$C$8,$D$94,$D$93)) -> 3.673089002 | E27: =IF($C$14='Auxiliary data'!$F$6,IF($C$11="Optimistic",F$97,IF($C$11="Reference",F$98,F$99)),IF($C$12='Auxiliary data'!$C$8,$D$94,$D$93)) -> 3.608330829 | F27: =IF($C$14='Auxiliary data'!$F$6,IF($C$11="Optimistic",G$97,IF($C$11="Reference",G$98,G$99)),IF($C$12='Auxiliary data'!$C$8,$D$94,$D$93)) -> 3.571295219 | G27: =IF($C$14='Auxiliary data'!$F$6,IF($C$11="Optimistic",H$97,IF($C$11="Reference",H$98,H$99)),IF($C$12='Auxiliary data'!$C$8,$D$94,$D$93)) -> 2.661953372 | H27: =IF($C$14='Auxiliary data'!$F$6,IF($C$11="Optimistic",I$97,IF($C$11="Reference",I$98,I$99)),IF($C$12='Auxiliary data'!$C$8,$D$94,$D$93)) -> 2.634140567 | I27: =IF($C$14='Auxiliary data'!$F$6,IF($C$11="Optimistic",J$97,IF($C$11="Reference",J$98,J$99)),IF($C$12='Auxiliary data'!$C$8,$D$94,$D$93)) -> 2.61354718 | J27: =IF($C$14='Auxiliary data'!$F$6,IF($C$11="Optimistic",K$97,IF($C$11="Reference",K$98,K$99)),IF($C$12='Auxiliary data'!$C$8,$D$94,$D$93)) -> 2.596852277 | K27: =IF($C$14='Auxiliary data'!$F$6,IF($C$11="Optimistic",L$97,IF($C$11="Reference",L$98,L$99)),IF($C$12='Auxiliary data'!$C$8,$D$94,$D$93)) -> 2.580825171
B28: Investment cost | C28: ct/kWh(PtL) | D28: =D23/$C$4*100 -> 0.7718946846 | E28: 0.7155463726 | F28: 0.6633114874 | G28: 0.6148897488 | H28: 0.5700027972 | I28: 0.528392593 | J28: 0.4898199337 | K28: 0.4540630785
B29: Operating cost | C29: ct/kWh(PtL) | D29: =D20/$C$4*100 -> 0.31875 | E29: 0.29548125 | F29: 0.2739111187 | G29: 0.2539156071 | H29: 0.2353797678 | I29: 0.2181970447 | J29: 0.2022686605 | K29: 0.1875030482
B30: Result: Cost of conversion into synthetic liquid fuel | C30: ct/kWh(PtL) | D30: =SUM(D26:D29) -> 5.302716653 | E30: =SUM(E26:E29) -> 5.158341418 | F30: 5.047500791 | G30: 4.069741694 | H30: 3.978506098 | I30: 3.899119783 | J30: 3.827923837 | K30: 3.761374263
B32: Data
B34: Investment cost, operating cost und cost decline
B36: Investment cost
B37: Fischer-Tropsch & methanol synthesis | C37: €/kW(PtL) | D37: =$C$5 -> 850
B39: Lifetime
B40: Fischer-Tropsch & methanol synthesis | C40: yeare | D40: 30
B42: Operating cost
B43: Fischer-Tropsch & methanol synthesis | C43: % of investment cost | D43: 0.03
B45: Relative cost decline over 5 years | C45: Optimistic | D45: Reference | E45: Pessimistic
B46: Fischer-Tropsch & methanol synthesis | C46: 0.1383 | D46: =C8 -> 0.073 | E46: 0.0087
B48: Efficiency and conversion of the cost of hydrogen
B50: Efficiency - hydrogen to synthetic liquid fuel
B52: methanol route | C52: H2tP efficiency | D52: 0.799
B54: Calculated cost of hydrogen electrolysis | E54: Heute | F54: 2020 | G54: 2025 | H54: 2030 | I54: 2035 | J54: 2040 | K54: 2045 | L54: 2050
B55: Electricity cost | C55: ct/kWh(H2) | D55: Optimistic | E55: ='H2 electrolysis'!D$109 -> 5.900534134 | F55: ='H2 electrolysis'!E$109 -> 4.6247593 | G55: ='H2 electrolysis'!F$109 -> 3.818643266 | H55: ='H2 electrolysis'!G$109 -> 3.175749511 | I55: ='H2 electrolysis'!H$109 -> 2.520126369 | J55: ='H2 electrolysis'!I$109 -> 2.064145081 | K55: ='H2 electrolysis'!J$109 -> 1.71756116 | L55: ='H2 electrolysis'!K$109 -> 1.425436521
D56: Reference | E56: ='H2 electrolysis'!D$124 -> 6.374306491 | F56: ='H2 electrolysis'!E$124 -> 5.108184075 | G56: ='H2 electrolysis'!F$124 -> 4.361238117 | H56: ='H2 electrolysis'!G$124 -> 3.789960412 | I56: ='H2 electrolysis'!H$124 -> 3.263043257 | J56: ='H2 electrolysis'!I$124 -> 2.871011011 | K56: ='H2 electrolysis'!J$124 -> 2.555729169 | L56: ='H2 electrolysis'!K$124 -> 2.266534814
D57: Pessimistic | E57: ='H2 electrolysis'!D$139 -> 7.205434997 | F57: ='H2 electrolysis'!E$139 -> 5.897746996 | G57: ='H2 electrolysis'!F$139 -> 5.189941014 | H57: ='H2 electrolysis'!G$139 -> 4.679981254 | I57: ='H2 electrolysis'!H$139 -> 4.284205174 | J57: ='H2 electrolysis'!I$139 -> 3.951874722 | K57: ='H2 electrolysis'!J$139 -> 3.660645449 | L57: ='H2 electrolysis'!K$139 -> 3.362820907
B58: Cost of conversion into hydrogen | C58: ct/kWh(H2) | D58: Optimistic | E58: =SUM('H2 electrolysis'!D$110:D$112) -> 5.682788275 | F58: =SUM('H2 electrolysis'!E$110:E$112) -> 4.513938751 | G58: =SUM('H2 electrolysis'!F$110:F$112) -> 3.58916108 | H58: =SUM('H2 electrolysis'!G$110:G$112) -> 2.856580735 | I58: =SUM('H2 electrolysis'!H$110:H$112) -> 2.275578954 | J58: =SUM('H2 electrolysis'!I$110:I$112) -> 1.814290848 | K58: =SUM('H2 electrolysis'!J$110:J$112) -> 1.44767535 | L58: =SUM('H2 electrolysis'!K$110:K$112) -> 1.156022075
D59: Reference | E59: =SUM('H2 electrolysis'!D$125:D$127) -> 5.68282872 | F59: =SUM('H2 electrolysis'!E$125:E$127) -> 5.066862039 | G59: =SUM('H2 electrolysis'!F$125:F$127) -> 4.52226827 | H59: =SUM('H2 electrolysis'!G$125:G$127) -> 4.040074228 | I59: =SUM('H2 electrolysis'!H$125:H$127) -> 3.6125477 | J59: =SUM('H2 electrolysis'!I$125:I$127) -> 3.233006824 | K59: =SUM('H2 electrolysis'!J$125:J$127) -> 2.895662104 | L59: =SUM('H2 electrolysis'!K$125:K$127) -> 2.595484844
D60: Pessimistic | E60: =SUM('H2 electrolysis'!D$140:D$142) -> 5.682892474 | F60: =SUM('H2 electrolysis'!E$140:E$142) -> 5.279826947 | G60: =SUM('H2 electrolysis'!F$140:F$142) -> 4.910351621 | H60: =SUM('H2 electrolysis'!G$140:G$142) -> 4.571104915 | I60: =SUM('H2 electrolysis'!H$140:H$142) -> 4.259130134 | J60: =SUM('H2 electrolysis'!I$140:I$142) -> 3.971817649 | K60: =SUM('H2 electrolysis'!J$140:J$142) -> 3.706856656 | L60: =SUM('H2 electrolysis'!K$140:K$142) -> 3.462194705
B62: Methanol route & Fischer-Tropsch
B63: Electricity cost | C63: ct/kWh(PtL) | D63: Optimistic | E63: =E55/$D$52 -> 7.384898791 | F63: 5.788184356 | G63: 4.77927818 | H63: 3.974655207 | I63: 3.154100588 | J63: 2.583410614 | K63: 2.149638498 | L63: 1.784025684
D64: Reference | E64: 7.977855433 | F64: 6.393221621 | G64: 5.45837061 | H64: 4.743379739 | I64: 4.083908957 | J64: 3.593255332 | K64: 3.198659786 | L64: 2.836714411
D65: Pessimistic | E65: 9.01806633 | F65: 7.381410508 | G65: 6.495545699 | H65: 5.857298191 | I65: 5.361958916 | J65: 4.946025935 | K65: 4.581533728 | L65: 4.208787118
B66: Cost of conversion into liquid fuel | C66: ct/kWh(PtL) | D66: Optimistic | E66: 7.112375813 | F66: =F58/$D$52 -> 5.649485295 | G66: 4.492066433 | H66: 3.575194912 | I66: 2.848033735 | J66: 2.270701937 | K66: 1.811859011 | L66: 1.446836138
D67: Reference | E67: 7.112426433 | F67: 6.341504429 | G67: 5.659910226 | H67: 5.056413302 | I67: 4.521336295 | J67: 4.046316425 | K67: 3.624107765 | L67: 3.248416575
D68: Pessimistic | E68: 7.112506225 | F68: 6.608043738 | G68: 6.145621553 | H68: 5.721032435 | I68: 5.330575887 | J68: 4.970985793 | K68: 4.639370033 | L68: 4.333159831
B70: Cost of hydrogen storage
B72: Storage cost for H2 from hydrogen electrolysis | D72: North Africa PV | E72: North Africa PV/wind combination | F72: Middle East PV | G72: Middle East PV/wind combination | H72: Iceland Geothermal/hydropower | I72: North and Baltic Seas offshore wind
B73: H2 storage | C73: ct/kWh(H2) | D73: 0.4306473897 | E73: 0.2827075244 | F73: 0.4233379574 | G73: 0.2926057141 | H73: 0 | I73: 0.3426296418
B74: H2 storage | C74: ct/kWh(PtL) | D74: =D73/$D$52 -> 0.5389829659 | E74: 0.3538266889 | F74: 0.5298347402 | G74: 0.3662149112 | H74: 0 | I74: 0.4288230811
B76: Cost of CO2
B78: Amound of CO2 needed (DME) | C78: kg(CO2)/kg(PtL) | D78: 2.033
C79: t(CO2)/kWh(PtL) | D79: 0.0002509876543
B81: CO2 cost - capture from cement industry | D81: Today
B82: Cost of purchasing CO2 | C82: €/t (CO2) | D82: 32.6
B83: Cost of purchasing CO2 - Iceland | C83: €/t (CO2) | D83: =D82*50% -> 16.3
B85: CO2 cost - Direct Air Capture* | E85: 2017 | F85: 2020 | G85: 2025 | H85: 2030 | I85: 2035 | J85: 2040 | K85: 2045 | L85: 2050
B86: =$C$12&"-"&$C$13 -> North Africa-PV | C86: €/t CO2 | D86: Optimistic | E86: =INDEX($E$103:$L$120,MATCH($B86&"-"&$D86,$B$103:$B$120,0),MATCH(E$85,$E$102:$L$102,0)) -> 145.2318289 | F86: 142.5915483 | G86: 140.9302482 | H86: 104.4726855 | I86: 102.9745488 | J86: 101.9214032 | K86: 101.1055861 | L86: 100.3936004
B87: =$C$12&"-"&$C$13 -> North Africa-PV | C87: €/t CO2 | D87: Reference | E87: 146.3454054 | F87: 143.7652716 | G87: 142.2896767 | H87: 106.0591358 | I87: 104.9510015 | J87: 104.1305074 | K87: 103.4653391 | L87: 102.8267776
B88: North Africa-PV | C88: €/t CO2 | D88: Pessimistic | E88: 148.2989284 | F88: 145.682278 | G88: 144.3659263 | H88: 108.3579779 | I88: 107.6676959 | J88: 107.0897854 | K88: 106.5760872 | L88: 105.9981766
B89: * Heat is released in other conversion steps (efficiency losses) and can be used here without further cost
B90: Assumed data and conversions in ct/kWh(PtL)
B92: Capture from cement industry | D92: Today
B93: Cost of purchasing CO2 | C93: ct/kWh(PtL) | D93: =D82*$D$79*100 -> 0.8182197531
B94: Cost of purchasing CO2 - Iceland | C94: ct/kWh(PtL) | D94: =D83*$D$79*100 -> 0.4091098765
B96: Direct Air Capture - TSA* | E96: 2017 | F96: 2020 | G96: 2025 | H96: 2030 | I96: 2035 | J96: 2040 | K96: 2045 | L96: 2050
B97: =$C$12&"-"&$C$13 -> North Africa-PV | C97: ct/kWh(PtL) | D97: Optimistic | E97: =E86*$D$79*100 -> 3.645139606 | F97: 3.578871824 | G97: 3.537175242 | H97: 2.622135427 | I97: 2.584534045 | J97: 2.558101391 | K97: 2.53762539 | L97: 2.519755427
B98: =$C$12&"-"&$C$13 -> North Africa-PV | C98: ct/kWh(PtL) | D98: Reference | E98: 3.673089002 | F98: 3.608330829 | G98: 3.571295219 | H98: 2.661953372 | I98: 2.634140567 | J98: 2.61354718 | K98: 2.596852277 | L98: 2.580825171
B99: North Africa-PV | C99: ct/kWh(PtL) | D99: Pessimistic | E99: 3.722120019 | F99: 3.656445323 | G99: 3.62340652 | H99: 2.719651471 | I99: 2.702326245 | J99: 2.687821404 | K99: 2.674928212 | L99: 2.660423372
B100: * Heat is released in other conversion steps (efficiency losses) and can be used here without further cost
B102: CO2 cost - Direct Air Capture | E102: 2017 | F102: 2020 | G102: 2025 | H102: 2030 | I102: 2035 | J102: 2040 | K102: 2045 | L102: 2050
B103: North Africa-PV-Optimistic | C103: €/t CO2 | D103: Optimistic | E103: 145.2318289 | F103: 142.5915483 | G103: 140.9302482 | H103: 104.4726855 | I103: 102.9745488 | J103: 101.9214032 | K103: 101.1055861 | L103: 100.3936004
B104: North Africa-PV-Reference | C104: €/t CO2 | D104: Reference | E104: 146.3454054 | F104: 143.7652716 | G104: 142.2896767 | H104: 106.0591358 | I104: 104.9510015 | J104: 104.1305074 | K104: 103.4653391 | L104: 102.8267776
B105: North Africa-PV-Pessimistic | C105: €/t CO2 | D105: Pessimistic | E105: 148.2989284 | F105: 145.682278 | G105: 144.3659263 | H105: 108.3579779 | I105: 107.6676959 | J105: 107.0897854 | K105: 106.5760872 | L105: 105.9981766
B106: Middle East-PV-Optimistic | C106: €/t CO2 | D106: Optimistic | E106: 144.69841 | F106: 142.1596787 | G106: 140.5622748 | H106: 104.1571982 | I106: 102.7166821 | J106: 101.7040421 | K106: 100.9196027 | L106: 100.235001
B107: Middle East-PV-Reference | C107: €/t CO2 | D107: Reference | E107: 145.7559313 | F107: 143.277311 | G107: 141.8597723 | H107: 105.6739901 | I107: 104.6094545 | J107: 103.8212422 | K107: 103.1822444 | L107: 102.5688066
B108: Middle East-PV-Pessimistic | C108: €/t CO2 | D108: Pessimistic | E108: 147.5291108 | F108: 145.031399 | G108: 143.7748814 | H108: 107.8085251 | I108: 107.1496196 | J108: 106.5979777 | K108: 106.1076294 | L108: 105.5559875
B109: North Africa-PV/wind combination-Optimistic | C109: €/t CO2 | D109: Optimistic | E109: 151.1524776 | F109: 147.9189401 | G109: 145.2200864 | H109: 107.5903349 | I109: 106.4972724 | J109: 105.647248 | K109: 104.926844 | L109: 104.2631489
B110: North Africa-PV/wind combination-Reference | C110: €/t CO2 | D110: Reference | E110: 154.6250366 | F110: 151.936546 | G110: 149.9096601 | H110: 112.9922951 | I110: 111.9356225 | J110: 111.0512427 | K110: 110.2599011 | L110: 109.4844967
B111: North Africa-PV/wind combination-Pessimistic | C111: €/t CO2 | D111: Pessimistic | E111: 160.1214176 | F111: 157.8207466 | G111: 156.665112 | H111: 120.681507 | I111: 120.0347287 | J111: 119.4621371 | K111: 118.9322314 | L111: 118.3599332
B112: Middle East-PV/wind combination-Optimistic | C112: €/t CO2 | D112: Optimistic | E112: 154.2567189 | F112: 150.5159598 | G112: 147.3937565 | H112: 109.3660711 | I112: 108.1015479 | J112: 107.1181864 | K112: 106.2847778 | L112: 105.5169736
B113: Middle East-PV/wind combination-Reference | C113: €/t CO2 | D113: Reference | E113: 155.3576261 | F113: 152.5844673 | G113: 150.4937491 | H113: 113.5189272 | I113: 112.428977 | J113: 111.5167456 | K113: 110.7004824 | L113: 109.9006582
B114: Middle East-PV/wind combination-Pessimistic | C114: €/t CO2 | D114: Pessimistic | E114: 156.995496 | F114: 154.944898 | G114: 153.9148759 | H114: 118.0280841 | I114: 117.4516078 | J114: 116.9412544 | K114: 116.4689471 | L114: 115.9588552
B115: Iceland-geothermal/hydropower-Optimistic | C115: €/t CO2 | D115: Optimistic | E115: 141.4211824 | F115: 141.2399527 | G115: 141.1040305 | H115: 105.875185 | I115: 105.7392628 | J115: 105.6033406 | K115: 105.4676271 | L115: 105.3319136
B116: Iceland-geothermal/hydropower-Reference | C116: €/t CO2 | D116: Reference | E116: 141.4211824 | F116: 141.2399527 | G116: 141.1493379 | H116: 105.9657998 | I116: 105.875185 | J116: 105.7845702 | K116: 105.6940946 | L116: 105.6036189
B117: Iceland-geothermal/hydropower-Pessimistic | C117: €/t CO2 | D117: Pessimistic | E117: 141.4211824 | F117: 141.3461015 | G117: 141.2710207 | H117: 106.1030165 | I117: 106.0279357 | J117: 105.9528549 | K117: 105.877774 | L117: 105.8026932
B118: North and Baltic Seas-offshore wind-Optimistic | C118: €/t CO2 | D118: Optimistic | E118: 170.4858238 | F118: 157.1693715 | G118: 152.4479568 | H118: 116.0620662 | I118: 114.8366678 | J118: 113.670804 | K118: 112.5573958 | L118: 111.4902062
B119: North and Baltic Seas-offshore wind-Reference | C119: €/t CO2 | D119: Reference | E119: 173.8557015 | F119: 164.6881847 | G119: 159.5591235 | H119: 122.403234 | I119: 120.4078366 | J119: 118.4719738 | K119: 116.5885668 | L119: 114.7513782
B120: North and Baltic Seas-offshore wind-Pessimistic | C120: €/t CO2 | D120: Pessimistic | E120: 179.1512236 | F120: 176.6723053 | G120: 173.5484372 | H120: 135.4083332 | I120: 132.4287213 | J120: 129.5086441 | K120: 126.6410225 | L120: 123.8196194

Sheet 3. Transport cost
B1: Transport cost - tanker
B3: PtL
B5: Origin | C5: Cost for PtL
C6: ct/kWh(PtL)
B7: North and Baltic Seas | C7: 0
B8: Iceland | C8: 0.0142690403
B9: Middle East | C9: 0.06678777612
B10: North Africa | C10: 0.02192814627
B12: PtG-methane
B14: Land | C14: Cost for PtG (ct/kWh(Methane))
C15: 2016/17 | D15: 2020 | E15: 2025 | F15: 2030 | G15: 2035 | H15: 2040 | I15: 2045 | J15: 2050
B16: North and Baltic Seas | C16: 0 | D16: 0 | E16: 0 | F16: 0 | G16: 0 | H16: 0 | I16: 0 | J16: 0
B17: Iceland | C17: 0.913802176 | D17: 0.913802176 | E17: 0.9077051085 | F17: 0.8985595072 | G17: 0.8985595072 | H17: 0.8680741696 | I17: 0.8680741696 | J17: 0.837588832
B18: Middle East | C18: 1.191485786 | D18: 1.191485786 | E18: 1.185388719 | F18: 1.176243117 | G18: 1.176243117 | H18: 1.14575778 | I18: 1.14575778 | J18: 1.115272442
B19: North Africa | C19: 0.9548302368 | D19: 0.9548302368 | E19: 0.9487331693 | F19: 0.939587568 | G19: 0.939587568 | H19: 0.9091022304 | I19: 0.9091022304 | J19: 0.8786168928

Sheet 4. Taxes & levies
B1: Taxes, levies, distribution, grid tariffs, procurement cost of fossil fuels
B3: Control Panel - assumptions about taxes and levies
B4: Fossil and synthetic methane
D5: Fossil | E5: PtG-methane
B6: Value added tax | C6: % | D6: 0 | E6: 0
B7: Concession fee | C7: ct/kWh | D7: 0 | E7: 0
B8: Natural gas tax | C8: ct/kWh | D8: 0 | E8: 0
B9: Fossil and synthetic liquid fuels
D10: Fossil | E10: PtL
B11: Value added tax | C11: % | D11: 0 | E11: 0
B12: Mineral oil tax | C12: ct/kWh | D12: 0 | E12: 0
B14: PtG-methane
C16: Unit | D16: 2017
B17: Distribution | C17: ct/kWh | D17: 0.43
B18: Grid tariff | C18: ct/kWh | D18: 1.59
B20: Fossil natural gas | N20: Synthetic methane
E21: 2017 | F21: 2020 | G21: 2025 | H21: 2030 | I21: 2035 | J21: 2040 | K21: 2045 | L21: 2050 | Q21: 2017 | R21: 2020 | S21: 2025 | T21: 2030 | U21: 2035 | V21: 2040 | W21: 2045 | X21: 2050
B22: Purchase prices | C22: Optimistic | D22: ct/kWh | E22: 1.348190406 | F22: 1.417615507 | G22: 1.552536257 | H22: 1.695820233 | I22: 1.833528725 | J22: 1.972631088 | K22: 2.111733451 | L22: 2.250835814 | N22: Purchase prices (including transport, excluding taxes, grid tariffs) | O22: Optimistic | P22: ct/kWh | Q22: 10.3185576 | R22: 9.436031917 | S22: 8.711058096 | T22: 8.095702672 | U22: 7.580766347 | V22: 7.109554415 | W22: 6.729487205 | X22: 6.368562305
C23: Reference | D23: ct/kWh | E23: 1.348190406 | F23: 1.642184275 | G23: 1.952578265 | H23: 2.267153869 | I23: 2.457474922 | J23: 2.648492911 | K23: 2.8395109 | L23: 3.03052889 | O23: Reference | P23: ct/kWh | Q23: 10.31860816 | R23: 9.674725815 | S23: 9.138693458 | T23: 8.656161814 | U23: 8.231577473 | V23: 7.818772464 | W23: 7.473248027 | X23: 7.41035338
C24: Pessimistic | D24: ct/kWh | E24: 1.348190406 | F24: 1.866753043 | G24: 2.352620273 | H24: 2.838487504 | I24: 3.081421119 | J24: 3.324354734 | K24: 3.567288349 | L24: 3.810221965 | O24: Pessimistic | P24: ct/kWh | Q24: 10.31868785 | R24: 9.8212903 | S24: 9.368153585 | T24: 8.955290242 | U24: 8.58900274 | V24: 8.224712848 | W24: 7.919224633 | X24: 7.608047354
B25: Taxes/levies | C25: Optimistic | D25: ct/kWh | E25: =$D$6*SUM($D$7:$D$8,E22,$D$17:$D$18)+SUM($D$7:$D$8) -> 0 | F25: =$D$6*SUM($D$7:$D$8,F22,$D$17:$D$18)+SUM($D$7:$D$8) -> 0 | G25: =$D$6*SUM($D$7:$D$8,G22,$D$17:$D$18)+SUM($D$7:$D$8) -> 0 | H25: =$D$6*SUM($D$7:$D$8,H22,$D$17:$D$18)+SUM($D$7:$D$8) -> 0 | I25: 0 | J25: 0 | K25: 0 | L25: 0 | N25: Taxes/levies | O25: Optimistic | P25: ct/kWh | Q25: =$E$6*SUM($E$7:$E$8,Q22,$D$17:$D$18)+SUM($E$7:$E$8) -> 0 | R25: =$E$6*SUM($E$7:$E$8,R22,$D$17:$D$18)+SUM($E$7:$E$8) -> 0 | S25: 0 | T25: 0 | U25: 0 | V25: 0 | W25: 0 | X25: 0
C26: Reference | D26: ct/kWh | E26: 0 | F26: 0 | G26: 0 | H26: 0 | I26: 0 | J26: 0 | K26: 0 | L26: 0 | O26: Reference | P26: ct/kWh | Q26: =$E$6*SUM($E$7:$E$8,Q23,$D$17:$D$18)+SUM($E$7:$E$8) -> 0 | R26: =$E$6*SUM($E$7:$E$8,R23,$D$17:$D$18)+SUM($E$7:$E$8) -> 0 | S26: 0 | T26: 0 | U26: 0 | V26: 0 | W26: 0 | X26: 0
C27: Pessimistic | D27: ct/kWh | E27: 0 | F27: =$D$6*SUM($D$7:$D$8,F24,$D$17:$D$18)+SUM($D$7:$D$8) -> 0 | G27: 0 | H27: 0 | I27: 0 | J27: 0 | K27: =$D$6*SUM($D$7:$D$8,K24,$D$17:$D$18)+SUM($D$7:$D$8) -> 0 | L27: 0 | O27: Pessimistic | P27: ct/kWh | Q27: =$E$6*SUM($E$7:$E$8,Q24,$D$17:$D$18)+SUM($E$7:$E$8) -> 0 | R27: =$E$6*SUM($E$7:$E$8,R24,$D$17:$D$18)+SUM($E$7:$E$8) -> 0 | S27: 0 | T27: 0 | U27: 0 | V27: 0 | W27: 0 | X27: 0
B28: Total cost of fossil natural gas | C28: Optimistic | D28: ct/kWh | E28: =SUM(E22,E25,$D$17:$D$18) -> 3.368190406 | F28: =SUM(F22,F25,$D$17:$D$18) -> 3.437615507 | G28: =SUM(G22,G25,$D$17:$D$18) -> 3.572536257 | H28: =SUM(H22,H25,$D$17:$D$18) -> 3.715820233 | I28: =SUM(I22,I25,$D$17:$D$18) -> 3.853528725 | J28: 3.992631088 | K28: 4.131733451 | L28: 4.270835814 | N28: Total cost of synthetic methane | O28: Optimistic | P28: ct/kWh | Q28: =SUM(Q22,Q25,$D$17:$D$18) -> 12.3385576 | R28: 11.45603192 | S28: 10.7310581 | T28: 10.11570267 | U28: 9.600766347 | V28: 9.129554415 | W28: 8.749487205 | X28: 8.388562305
C29: Reference | D29: ct/kWh | E29: 3.368190406 | F29: 3.662184275 | G29: 3.972578265 | H29: 4.287153869 | I29: 4.477474922 | J29: 4.668492911 | K29: 4.8595109 | L29: 5.05052889 | O29: Reference | P29: ct/kWh | Q29: 12.33860816 | R29: 11.69472581 | S29: 11.15869346 | T29: 10.67616181 | U29: 10.25157747 | V29: 9.838772464 | W29: 9.493248027 | X29: 9.43035338
C30: Pessimistic | D30: ct/kWh | E30: 3.368190406 | F30: =SUM(F24,F27,$D$17:$D$18) -> 3.886753043 | G30: 4.372620273 | H30: 4.858487504 | I30: 5.101421119 | J30: 5.344354734 | K30: =SUM(K24,K27,$D$17:$D$18) -> 5.587288349 | L30: 5.830221965 | O30: Pessimistic | P30: ct/kWh | Q30: 12.33868785 | R30: 11.8412903 | S30: 11.38815358 | T30: 10.97529024 | U30: 10.60900274 | V30: 10.24471285 | W30: 9.939224633 | X30: 9.628047354
B33: PtL
C35: Unit | D35: 2017
B36: Distribution | C36: ct/kWh | D36: 1
B38: Fossil fuels (premium petrol) | N38: Synthetic liquid fuels
E39: 2017 | F39: 2020 | G39: 2025 | H39: 2030 | I39: 2035 | J39: 2040 | K39: 2045 | L39: 2050 | Q39: 2017 | R39: 2020 | S39: 2025 | T39: 2030 | U39: 2035 | V39: 2040 | W39: 2045 | X39: 2050
B40: Purchase prices | C40: Optimistic | D40: ct/kWh | E40: 3.865 | F40: 4.17314806 | G40: 4.300284718 | H40: 4.419624713 | I40: 4.544162483 | J40: 4.66740081 | K40: 4.790639136 | L40: 4.913877463 | N40: Purchase prices | O40: Optimistic | P40: ct/kWh | Q40: 9.762270261 | R40: 8.918455924 | S40: 8.223990022 | T40: 7.631502105 | U40: 7.122429371 | V40: 6.681896713 | W40: 6.29803577 | X40: 5.961097664
C41: Reference | D41: ct/kWh | E41: 3.865 | F41: 4.656175123 | G41: 5.424816923 | H41: 6.189560391 | I41: 6.549526964 | J41: 6.908843815 | K41: 7.268160666 | L41: 7.627477517 | O41: Reference | P41: ct/kWh | Q41: 9.762320882 | R41: 9.192472417 | S41: 8.716226619 | T41: 8.280415111 | U41: 7.880746243 | V41: 7.513462575 | W41: 7.175326138 | X41: 6.863365481
C42: Pessimistic | D42: ct/kWh | E42: 3.865 | F42: 5.139202186 | G42: 6.549349128 | H42: 7.959496069 | I42: 8.554891444 | J42: 9.15028682 | K42: 9.745682195 | L42: 10.34107757 | O42: Pessimistic | P42: ct/kWh | Q42: 9.762400674 | R42: 9.395471443 | S42: 9.053909569 | T42: 8.735314584 | U42: 8.437570464 | V42: 8.158805191 | W42: 7.897356995 | X42: 7.651746032
B43: Taxes/levies | C43: Optimistic | D43: ct/kWh | E43: =SUM($D$36,$D$12,E40)*$D$11+$D$12 -> 0 | F43: 0 | G43: 0 | H43: 0 | I43: 0 | J43: 0 | K43: 0 | L43: 0 | N43: Taxes/levies | O43: Optimistic | P43: ct/kWh | Q43: =SUM($D$36,$E$12,Q40)*$E$11+$E$12 -> 0 | R43: =SUM($D$36,$E$12,R40)*$E$11+$E$12 -> 0 | S43: 0 | T43: 0 | U43: 0 | V43: 0 | W43: 0 | X43: 0
C44: Reference | D44: ct/kWh | E44: =SUM($D$36,$D$12,E41)*$D$11+$D$12 -> 0 | F44: =SUM($D$36,$D$12,F41)*$D$11+$D$12 -> 0 | G44: 0 | H44: 0 | I44: 0 | J44: 0 | K44: 0 | L44: 0 | O44: Reference | P44: ct/kWh | Q44: =SUM($D$36,$E$12,Q41)*$E$11+$E$12 -> 0 | R44: =SUM($D$36,$E$12,R41)*$E$11+$E$12 -> 0 | S44: 0 | T44: 0 | U44: 0 | V44: 0 | W44: 0 | X44: 0
C45: Pessimistic | D45: ct/kWh | E45: =SUM($D$36,$D$12,E42)*$D$11+$D$12 -> 0 | F45: =SUM($D$36,$D$12,F42)*$D$11+$D$12 -> 0 | G45: 0 | H45: 0 | I45: 0 | J45: 0 | K45: 0 | L45: 0 | O45: Pessimistic | P45: ct/kWh | Q45: =SUM($D$36,$E$12,Q42)*$E$11+$E$12 -> 0 | R45: =SUM($D$36,$E$12,R42)*$E$11+$E$12 -> 0 | S45: =SUM($D$36,$E$12,S42)*$E$11+$E$12 -> 0 | T45: 0 | U45: 0 | V45: 0 | W45: 0 | X45: 0
B46: Total cost of fossil liquid fuel (premium petrol) | C46: Optimistic | D46: ct/kWh | E46: =SUM($D$12,$D$36,E40,SUM($D$12,$D$36,E40)*$D$11) -> 4.865 | F46: 5.17314806 | G46: 5.300284718 | H46: 5.419624713 | I46: 5.544162483 | J46: 5.66740081 | K46: 5.790639136 | L46: 5.913877463 | N46: Total cost of synthetic liquid fuels | O46: Optimistic | P46: ct/kWh | Q46: =SUM($D$36,Q40,Q43) -> 10.76227026 | R46: =SUM($D$36,R40,R43) -> 9.918455924 | S46: 9.223990022 | T46: 8.631502105 | U46: 8.122429371 | V46: 7.681896713 | W46: 7.29803577 | X46: 6.961097664
C47: Reference | D47: ct/kWh | E47: =SUM($D$12,$D$36,E41,SUM($D$12,$D$36,E41)*$D$11) -> 4.865 | F47: 5.656175123 | G47: 6.424816923 | H47: 7.189560391 | I47: 7.549526964 | J47: 7.908843815 | K47: 8.268160666 | L47: 8.627477517 | O47: Reference | P47: ct/kWh | Q47: =SUM($D$36,Q41,Q44) -> 10.76232088 | R47: =SUM($D$36,R41,R44) -> 10.19247242 | S47: 9.716226619 | T47: 9.280415111 | U47: 8.880746243 | V47: 8.513462575 | W47: 8.175326138 | X47: 7.863365481
C48: Pessimistic | D48: ct/kWh | E48: 4.865 | F48: 6.139202186 | G48: 7.549349128 | H48: 8.959496069 | I48: 9.554891444 | J48: 10.15028682 | K48: 10.74568219 | L48: 11.34107757 | O48: Pessimistic | P48: ct/kWh | Q48: =SUM($D$36,Q42,Q45) -> 10.76240067 | R48: 10.39547144 | S48: 10.05390957 | T48: 9.735314584 | U48: 9.437570464 | V48: 9.158805191 | W48: 8.897356995 | X48: 8.651746032
B50: Fossil fuels (Diesel)
E51: 2017 | F51: 2020 | G51: 2025 | H51: 2030 | I51: 2035 | J51: 2040 | K51: 2045 | L51: 2050
B52: Purchase prices | C52: Optimistic | D52: ct/kWh | E52: 3.718 | F52: 4.014428069 | G52: 4.136729258 | H52: 4.251530319 | I52: 4.371331465 | J52: 4.48988259 | K52: 4.608433715 | L52: 4.72698484
C53: Reference | D53: ct/kWh | E53: 3.718 | F53: 4.479083857 | G53: 5.218491415 | H53: 5.954148909 | I53: 6.300424645 | J53: 6.64607537 | K53: 6.991726094 | L53: 7.337376819
C54: Pessimistic | D54: ct/kWh | E54: 3.718 | F54: 4.943739645 | G54: 6.300253572 | H54: 7.656767499 | I54: 8.229517824 | J54: 8.802268149 | K54: 9.375018474 | L54: 9.947768798
B55: Taxes/levies | C55: Optimistic | D55: ct/kWh | E55: =SUM($D$36,$D$12,E52)*$D$11+$D$12 -> 0 | F55: 0 | G55: 0 | H55: 0 | I55: 0 | J55: 0 | K55: 0 | L55: 0
C56: Reference | D56: ct/kWh | E56: =SUM($D$36,$D$12,E53)*$D$11+$D$12 -> 0 | F56: 0 | G56: 0 | H56: 0 | I56: 0 | J56: 0 | K56: 0 | L56: 0
C57: Pessimistic | D57: ct/kWh | E57: =SUM($D$36,$D$12,E54)*$D$11+$D$12 -> 0 | F57: 0 | G57: 0 | H57: 0 | I57: 0 | J57: 0 | K57: 0 | L57: 0
B58: Total cost of fossil liquid fuel (Diesel) | C58: Optimistic | D58: ct/kWh | E58: =SUM($D$12,$D$36,E52,SUM($D$12,$D$36,E52)*$D$11) -> 4.718 | F58: 5.014428069 | G58: 5.136729258 | H58: 5.251530319 | I58: 5.371331465 | J58: 5.48988259 | K58: 5.608433715 | L58: 5.72698484
C59: Reference | D59: ct/kWh | E59: 4.718 | F59: 5.479083857 | G59: 6.218491415 | H59: 6.954148909 | I59: 7.300424645 | J59: 7.64607537 | K59: 7.991726094 | L59: 8.337376819
C60: Pessimistic | D60: ct/kWh | E60: 4.718 | F60: 5.943739645 | G60: 7.300253572 | H60: 8.656767499 | I60: 9.229517824 | J60: 9.802268149 | K60: 10.37501847 | L60: 10.9477688
B63: Conversion
B64: ct/kWh | C64: ct/Liter
B65: 1 | C65: 10

Sheet Auxiliary data
B1: Auxiliary data for drop down menus and figure 3 (to be updated with a macro)
B3: List of names
B5: Scenarios | C5: Origin of synthetic fuels | D5: Renewable energy sources | E5: Transport | F5: CO2 technology | G5: Fossil fuels | H5: Grid connection cost
B6: Optimistic | C6: North Africa | D6: Offshore wind | E6: No transport cost | F6: Direct Air Capture - TSA | G6: Premium petrol | H6: None
B7: Reference | C7: Middle East | D7: Geothermal/hydropower | E7: Tanker transport | F7: CO2 capture cement industry | G7: Diesel | H7: Included
B8: Pessimistic | C8: Iceland | D8: PV
C9: North and Baltic Seas | D9: PV/wind combination
B11: Macro - inputs
B13: Combination | C13: Country | D13: EE | E13: Combination | F13: =INDEX($C$14:$C$19,MATCH($E$14,$B$14:$B$19,0)) -> Iceland
B14: 1 | C14: North Africa | D14: PV | E14: 6 | F14: =INDEX($D$14:$D$19,MATCH($E$14,$B$14:$B$19,0)) -> Geothermal/hydropower
B15: =B14+1 -> 2 | C15: Middle East | D15: PV
B16: =B15+1 -> 3 | C16: North Africa | D16: PV/wind combination
B17: =B16+1 -> 4 | C17: Middle East | D17: PV/wind combination
B18: =B17+1 -> 5 | C18: North and Baltic Seas | D18: Offshore wind
B19: =B18+1 -> 6 | C19: Iceland | D19: Geothermal/hydropower
B21: Data table PtL
C23: 2016/17 | D23: 2020 | E23: 2025 | F23: 2030 | G23: 2035 | H23: 2040 | I23: 2045 | J23: 2050 | K23: 2016/17 | L23: 2020 | M23: 2025 | N23: 2030 | O23: 2035 | P23: 2040 | Q23: 2045 | R23: 2050 | S23: 2016/17 | T23: 2020 | U23: 2025 | V23: 2030 | W23: 2035 | X23: 2040 | Y23: 2045 | Z23: 2050 | AA23: 2016/17 | AB23: 2020 | AC23: 2025 | AD23: 2030 | AE23: 2035 | AF23: 2040 | AG23: 2045 | AH23: 2050 | AI23: 2016/17 | AJ23: 2020 | AK23: 2025 | AL23: 2030 | AM23: 2035 | AN23: 2040 | AO23: 2045 | AP23: 2050 | AQ23: 2016/17 | AR23: 2020 | AS23: 2025 | AT23: 2030 | AU23: 2035 | AV23: 2040 | AW23: 2045 | AX23: 2050
C24: 2016/17North Africa-PV | D24: 2020North Africa-PV | E24: 2025North Africa-PV | F24: 2030North Africa-PV | G24: 2035North Africa-PV | H24: 2040North Africa-PV | I24: 2045North Africa-PV | J24: 2050North Africa-PV | K24: 2016/17Middle East-PV | L24: 2020Middle East-PV | M24: 2025Middle East-PV | N24: 2030Middle East-PV | O24: 2035Middle East-PV | P24: 2040Middle East-PV | Q24: 2045Middle East-PV | R24: 2050Middle East-PV | S24: 2016/17North Africa-PV/wind combination | T24: 2020North Africa-PV/wind combination | U24: 2025North Africa-PV/wind combination | V24: 2030North Africa-PV/wind combination | W24: 2035North Africa-PV/wind combination | X24: 2040North Africa-PV/wind combination | Y24: 2045North Africa-PV/wind combination | Z24: 2050North Africa-PV/wind combination | AA24: 2016/17Middle East-PV/wind combination | AB24: 2020Middle East-PV/wind combination | AC24: 2025Middle East-PV/wind combination | AD24: 2030Middle East-PV/wind combination | AE24: 2035Middle East-PV/wind combination | AF24: 2040Middle East-PV/wind combination | AG24: 2045Middle East-PV/wind combination | AH24: 2050Middle East-PV/wind combination | AI24: 2016/17North and Baltic Seas-Offshore wind | AJ24: 2020North and Baltic Seas-Offshore wind | AK24: 2025North and Baltic Seas-Offshore wind | AL24: 2030North and Baltic Seas-Offshore wind | AM24: 2035North and Baltic Seas-Offshore wind | AN24: 2040North and Baltic Seas-Offshore wind | AO24: 2045North and Baltic Seas-Offshore wind | AP24: 2050North and Baltic Seas-Offshore wind | AQ24: 2016/17Iceland-Geothermal/hydropower | AR24: 2020Iceland-Geothermal/hydropower | AS24: 2025Iceland-Geothermal/hydropower | AT24: 2030Iceland-Geothermal/hydropower | AU24: 2035Iceland-Geothermal/hydropower | AV24: 2040Iceland-Geothermal/hydropower | AW24: 2045Iceland-Geothermal/hydropower | AX24: 2050Iceland-Geothermal/hydropower
B25: Optimistic | C25: 19.79397001 | D25: 16.51726111 | E25: 14.17926397 | F25: 11.43072976 | G25: 9.748902263 | H25: 8.491284896 | I25: 7.506532348 | J25: 6.696275977 | K25: 19.25243264 | L25: 16.09724095 | M25: 13.8451894 | N25: 11.16499319 | O25: 9.544781316 | P25: 8.332844899 | Q25: 7.383616267 | R25: 6.602470791 | S25: 19.68618783 | T25: 16.65125944 | U25: 14.20862181 | V25: 11.21398798 | W25: 10.01850026 | X25: 9.073624426 | Y25: 8.294790508 | Z25: 7.626595137 | AA25: 21.59674964 | AB25: 18.20968409 | AC25: 15.48360776 | AD25: 12.23780327 | AE25: 10.91976804 | AF25: 9.879293041 | AG25: 9.020980137 | AH25: 8.282675598 | AI25: 30.79849015 | AJ25: 21.9268811 | AK25: 18.2301807 | AL25: 15.72515176 | AM25: 14.31595791 | AN25: 13.0850628 | AO25: 12.00268347 | AP25: 11.0445936 | AQ25: 12.0942369 | AR25: 11.24587393 | AS25: 10.54799654 | AT25: 9.071308097 | AU25: 8.558823884 | AV25: 8.114879746 | AW25: 7.727612561 | AX25: 7.387268214
B26: Reference | C26: 20.41492667 | D26: 17.91499561 | E26: 16.18770977 | F26: 13.89146288 | G26: 12.6056795 | H26: 11.56061969 | I26: 10.67261953 | J26: 9.868433395 | K26: 19.84213411 | L26: 17.43742853 | M26: 15.77519767 | N26: 13.5319491 | O26: 12.29425859 | P26: 11.28800272 | Q26: 10.43279598 | R26: 9.65826218 | S26: 21.62246171 | T26: 19.27269527 | U26: 17.43486021 | V26: 14.94792884 | W26: 13.83233782 | X26: 12.87879218 | Y26: 12.03584135 | Z26: 11.25840457 | AA26: 22.21064215 | AB26: 19.78938226 | AC26: 17.89599288 | AD26: 15.36063417 | AE26: 14.21190738 | AF26: 13.23018344 | AG26: 12.36240208 | AH26: 11.56207271 | AI26: 32.67751122 | AJ26: 26.46819601 | AK26: 22.77275984 | AL26: 19.99594729 | AM26: 18.26134089 | AN26: 16.66927912 | AO26: 15.20349511 | AP26: 13.84992262 | AQ26: 12.09428752 | AR26: 11.51989042 | AS26: 11.0413703 | AT26: 9.722495422 | AU26: 9.320552235 | AV26: 8.950994248 | AW26: 8.610586983 | AX26: 8.296355498
B27: Pessimistic | C27: 21.50424837 | D27: 19.28796676 | E27: 17.8972349 | F27: 15.921319 | G27: 15.00895485 | H27: 14.20976424 | I27: 13.49168011 | J27: 12.78921451 | K27: 20.83090015 | L27: 18.7118449 | M27: 17.38107505 | N27: 15.45191945 | O27: 14.57822046 | P27: 13.81274301 | Q27: 13.12485994 | R27: 12.45204429 | S27: 24.68720391 | T27: 22.66948773 | U27: 21.37916051 | V27: 19.42379077 | W27: 18.53604576 | X27: 17.73775578 | Y27: 17.00671222 | Z27: 16.29848415 | AA27: 23.12396257 | AB27: 21.28586816 | AC27: 20.0993298 | AD27: 18.22720676 | AE27: 17.40502508 | AF27: 16.66494953 | AG27: 15.98696372 | AH27: 15.33126921 | AI27: 35.63025886 | AJ27: 33.17297582 | AK27: 30.53131965 | AL27: 27.20718243 | AM27: 24.94023915 | AN27: 22.83078314 | AO27: 20.86241429 | AP27: 19.02086374 | AQ27: 12.09436731 | AR27: 11.72555365 | AS27: 11.38210734 | AT27: 10.18083886 | AU27: 9.881210309 | AV27: 9.600560599 | AW27: 9.337227967 | AX27: 9.089732568
B29: Data table PtG-methane
C31: 2016/17 | D31: 2020 | E31: 2025 | F31: 2030 | G31: 2035 | H31: 2040 | I31: 2045 | J31: 2050 | K31: 2016/17 | L31: 2020 | M31: 2025 | N31: 2030 | O31: 2035 | P31: 2040 | Q31: 2045 | R31: 2050 | S31: 2016/17 | T31: 2020 | U31: 2025 | V31: 2030 | W31: 2035 | X31: 2040 | Y31: 2045 | Z31: 2050 | AA31: 2016/17 | AB31: 2020 | AC31: 2025 | AD31: 2030 | AE31: 2035 | AF31: 2040 | AG31: 2045 | AH31: 2050 | AI31: 2016/17 | AJ31: 2020 | AK31: 2025 | AL31: 2030 | AM31: 2035 | AN31: 2040 | AO31: 2045 | AP31: 2050 | AQ31: 2016/17 | AR31: 2020 | AS31: 2025 | AT31: 2030 | AU31: 2035 | AV31: 2040 | AW31: 2045 | AX31: 2050
C32: 2016/17North Africa-PV | D32: 2020North Africa-PV | E32: 2025North Africa-PV | F32: 2030North Africa-PV | G32: 2035North Africa-PV | H32: 2040North Africa-PV | I32: 2045North Africa-PV | J32: 2050North Africa-PV | K32: 2016/17Middle East-PV | L32: 2020Middle East-PV | M32: 2025Middle East-PV | N32: 2030Middle East-PV | O32: 2035Middle East-PV | P32: 2040Middle East-PV | Q32: 2045Middle East-PV | R32: 2050Middle East-PV | S32: 2016/17North Africa-PV/wind combination | T32: 2020North Africa-PV/wind combination | U32: 2025North Africa-PV/wind combination | V32: 2030North Africa-PV/wind combination | W32: 2035North Africa-PV/wind combination | X32: 2040North Africa-PV/wind combination | Y32: 2045North Africa-PV/wind combination | Z32: 2050North Africa-PV/wind combination | AA32: 2016/17Middle East-PV/wind combination | AB32: 2020Middle East-PV/wind combination | AC32: 2025Middle East-PV/wind combination | AD32: 2030Middle East-PV/wind combination | AE32: 2035Middle East-PV/wind combination | AF32: 2040Middle East-PV/wind combination | AG32: 2045Middle East-PV/wind combination | AH32: 2050Middle East-PV/wind combination | AI32: 2016/17North and Baltic Seas-Offshore wind | AJ32: 2020North and Baltic Seas-Offshore wind | AK32: 2025North and Baltic Seas-Offshore wind | AL32: 2030North and Baltic Seas-Offshore wind | AM32: 2035North and Baltic Seas-Offshore wind | AN32: 2040North and Baltic Seas-Offshore wind | AO32: 2045North and Baltic Seas-Offshore wind | AP32: 2050North and Baltic Seas-Offshore wind | AQ32: 2016/17Iceland-Geothermal/hydropower | AR32: 2020Iceland-Geothermal/hydropower | AS32: 2025Iceland-Geothermal/hydropower | AT32: 2030Iceland-Geothermal/hydropower | AU32: 2035Iceland-Geothermal/hydropower | AV32: 2040Iceland-Geothermal/hydropower | AW32: 2045Iceland-Geothermal/hydropower | AX32: 2050Iceland-Geothermal/hydropower
B33: Optimistic | C33: 19.84873245 | D33: 16.56639576 | E33: 14.21884823 | F33: 11.57392784 | G33: 9.904749253 | H33: 8.62945719 | I33: 7.658532264 | J33: 6.832982081 | K33: 19.5057935 | L33: 16.34366664 | M33: 14.08123022 | N33: 11.50396522 | O33: 9.895669588 | P33: 8.665540479 | Q33: 7.729738037 | R33: 6.932950769 | S33: 19.67371688 | T33: 16.63960885 | U33: 14.19935743 | V33: 11.3219828 | W33: 10.13392693 | X33: 9.168674258 | Y33: 8.402324907 | Z33: 7.718108672 | AA33: 21.73842086 | AB33: 18.35838727 | AC33: 15.63986853 | AD33: 12.5161651 | AE33: 11.20766586 | AF33: 10.1484507 | AG33: 9.30400754 | AH33: 8.550954378 | AI33: 29.61921477 | AJ33: 20.87045042 | AK33: 17.20681459 | AL33: 14.81342518 | AM33: 13.41343609 | AN33: 12.19660079 | AO33: 11.13155725 | AP33: 10.19288538 | AQ33: 12.16860493 | AR33: 11.28359841 | AS33: 10.55676397 | AT33: 9.168118585 | AU33: 8.651321636 | AV33: 8.17824908 | AW33: 7.796324103 | AX33: 7.433541436
B34: Reference | C34: 20.45624207 | D34: 17.91404781 | E34: 16.14532927 | F34: 13.9258909 | G34: 12.62890859 | H34: 11.54851066 | I34: 10.66137845 | J34: 10.11413948 | K34: 20.08272484 | L34: 17.63448194 | M34: 15.93007647 | N34: 13.76306088 | O34: 12.51361525 | P34: 11.47160543 | Q34: 10.61692786 | R34: 10.0990183 | S34: 21.56805789 | T34: 19.17707347 | U34: 17.30421676 | V34: 14.9021473 | W34: 13.77455906 | X34: 12.78628783 | Y34: 11.9455843 | Z34: 11.42661832 | AA34: 22.33901933 | AB34: 19.87759422 | AC34: 17.94997895 | AD34: 15.50019645 | AE34: 14.33989252 | AF34: 13.32379512 | AG34: 12.45857567 | AH34: 11.91702357 | AI34: 31.4575429 | AJ34: 25.28555577 | AK34: 21.59881514 | AL34: 18.9190865 | AM34: 17.18393793 | AN34: 15.60039835 | AO34: 14.15006626 | AP34: 13.09825158 | AQ34: 12.16865549 | AR34: 11.52229231 | AS34: 10.98501954 | AT34: 9.729818143 | AU34: 9.303993386 | AV34: 8.889947961 | AW34: 8.543185013 | AX34: 8.479051854
B35: Pessimistic | C35: 21.52197396 | D35: 19.32841502 | E35: 17.93876173 | F35: 16.06557382 | G35: 15.15320613 | H35: 14.32236897 | I35: 13.60254826 | J35: 12.86882289 | K35: 21.05007879 | L35: 18.95227133 | M35: 17.62182427 | N35: 15.79486497 | O35: 14.92075708 | P35: 14.12329204 | Q35: 13.43336895 | R35: 12.72895758 | S35: 24.56642857 | T35: 22.56759148 | U35: 21.2763886 | V35: 19.42344419 | W35: 18.53516985 | X35: 17.70517168 | Y35: 16.97259215 | Z35: 16.23304766 | AA35: 23.23256159 | AB35: 21.41027629 | AC35: 20.22130325 | AD35: 18.45039988 | AE35: 17.626807 | AF35: 16.8542423 | AG35: 16.17399881 | AH35: 15.48621441 | AI35: 34.3463445 | AJ35: 31.9105182 | AK35: 29.29816814 | AL35: 26.11185054 | AM35: 23.87264609 | AN35: 21.79031704 | AO35: 19.8485586 | AP35: 18.03318506 | AQ35: 12.16873518 | AR35: 11.79141559 | AS35: 11.43361494 | AT35: 10.32454884 | AU35: 10.01715076 | AV35: 9.698484866 | AW35: 9.427856408 | AX35: 9.142811081
